Workbook

Sheet Cover
A1: =RIGHT(CELL("filename", $A$1), LEN(CELL("filename", $A$1)) - SEARCH("]", CELL("filename", $A$1))) -> 
B3: Transition & accelerated expenditure programme model
B5: Model code: | C5: PR24CA01
B6: Version number: | C6: 2
B7: File name: | C7: =MID(CELL("filename"), FIND("[", CELL("filename"), 1) + 1, FIND("]", CELL("filename"), 1) - FIND("[", CELL("filename"), 1) - 1) -> 
B8: Date: | C8: 2024-12-01
B10: For enquiries please contact: | C10: PR24@Ofwat.gov.uk

Sheet Conceptual model
A1: =RIGHT(CELL("filename", A1), LEN(CELL("filename", A1)) - SEARCH("]", CELL("filename", A1))) -> 
A3: Conceptual model
A28: End of sheet

Sheet Contents
A1: =RIGHT(CELL("filename", A1), LEN(CELL("filename", A1)) - SEARCH("]", CELL("filename", A1))) -> 
A5: REPORTS
A6: =HYPERLINK("#TOCrepobxOutputs_Year","1.Outputs") -> 1.Outputs
A9: Sheet | B9: Section | C9: Sub-section
A10: =HYPERLINK("#TOCobxUnallocated", "1.Unallocated") -> 1.Unallocated
A12: =HYPERLINK("#TOCobxInputs", "2.Inputs") -> 2.Inputs
B13: =HYPERLINK("#TOCobxInputs.TIME_INPUTS", "2.1.TIME INPUTS") -> 2.1.TIME INPUTS
B14: =HYPERLINK("#TOCobxInputs.COST_ALLOWANCE_INPUTS", "2.2.COST ALLOWANCE INPUTS") -> 2.2.COST ALLOWANCE INPUTS
C15: =HYPERLINK("#TOCobxInputs.COST_ALLOWANCE_INPUTS.Accelerated_programme", "2.2.1.Accelerated programme") -> 2.2.1.Accelerated programme
C16: =HYPERLINK("#TOCobxInputs.COST_ALLOWANCE_INPUTS.Accelerated_programme.Accelerated_programme___Scheme_1", "2.2.1.1.Accelerated programme - Scheme 1") -> 2.2.1.1.Accelerated programme - Scheme 1
C17: =HYPERLINK("#TOCobxInputs.COST_ALLOWANCE_INPUTS.Accelerated_programme.Accelerated_programme___Scheme_1.Component_1", "2.2.1.1.1.Component 1") -> 2.2.1.1.1.Component 1
C19: =HYPERLINK("#TOCobxInputs.COST_ALLOWANCE_INPUTS.Accelerated_programme.Accelerated_programme___Scheme_1.Component_2", "2.2.1.1.2.Component 2") -> 2.2.1.1.2.Component 2
C21: =HYPERLINK("#TOCobxInputs.COST_ALLOWANCE_INPUTS.Accelerated_programme.Accelerated_programme___Scheme_1.Component_3", "2.2.1.1.3.Component 3") -> 2.2.1.1.3.Component 3
C23: =HYPERLINK("#TOCobxInputs.COST_ALLOWANCE_INPUTS.Accelerated_programme.Accelerated_programme___Scheme_1.Component_4", "2.2.1.1.4.Component 4") -> 2.2.1.1.4.Component 4
C25: =HYPERLINK("#TOCobxInputs.COST_ALLOWANCE_INPUTS.Accelerated_programme.Accelerated_programme___Scheme_1.Component_5", "2.2.1.1.5.Component 5") -> 2.2.1.1.5.Component 5
C27: =HYPERLINK("#TOCobxInputs.COST_ALLOWANCE_INPUTS.Accelerated_programme.Accelerated_programme___Scheme_1.Component_6", "2.2.1.1.6.Component 6") -> 2.2.1.1.6.Component 6
C29: =HYPERLINK("#TOCobxInputs.COST_ALLOWANCE_INPUTS.Accelerated_programme.Accelerated_programme___Scheme_1.Component_7", "2.2.1.1.7.Component 7") -> 2.2.1.1.7.Component 7
C31: =HYPERLINK("#TOCobxInputs.COST_ALLOWANCE_INPUTS.Accelerated_programme.Accelerated_programme___Scheme_1.Component_8", "2.2.1.1.8.Component 8") -> 2.2.1.1.8.Component 8
C33: =HYPERLINK("#TOCobxInputs.COST_ALLOWANCE_INPUTS.Accelerated_programme.Accelerated_programme___Scheme_1.Component_9", "2.2.1.1.9.Component 9") -> 2.2.1.1.9.Component 9
C35: =HYPERLINK("#TOCobxInputs.COST_ALLOWANCE_INPUTS.Accelerated_programme.Accelerated_programme___Scheme_1.Component_10", "2.2.1.1.10.Component 10") -> 2.2.1.1.10.Component 10
C37: =HYPERLINK("#TOCobxInputs.COST_ALLOWANCE_INPUTS.Accelerated_programme.Accelerated_programme___Scheme_1.Component_11", "2.2.1.1.11.Component 11") -> 2.2.1.1.11.Component 11
C39: =HYPERLINK("#TOCobxInputs.COST_ALLOWANCE_INPUTS.Accelerated_programme.Accelerated_programme___Scheme_1.Component_12", "2.2.1.1.12.Component 12") -> 2.2.1.1.12.Component 12
C42: =HYPERLINK("#TOCobxInputs.COST_ALLOWANCE_INPUTS.Accelerated_programme.Accelerated_programme___Scheme_2", "2.2.1.2.Accelerated programme - Scheme 2") -> 2.2.1.2.Accelerated programme - Scheme 2
C43: =HYPERLINK("#TOCobxInputs.COST_ALLOWANCE_INPUTS.Accelerated_programme.Accelerated_programme___Scheme_2.Component_1", "2.2.1.2.1.Component 1") -> 2.2.1.2.1.Component 1
C45: =HYPERLINK("#TOCobxInputs.COST_ALLOWANCE_INPUTS.Accelerated_programme.Accelerated_programme___Scheme_2.Component_2", "2.2.1.2.2.Component 2") -> 2.2.1.2.2.Component 2
C47: =HYPERLINK("#TOCobxInputs.COST_ALLOWANCE_INPUTS.Accelerated_programme.Accelerated_programme___Scheme_2.Component_3", "2.2.1.2.3.Component 3") -> 2.2.1.2.3.Component 3
C49: =HYPERLINK("#TOCobxInputs.COST_ALLOWANCE_INPUTS.Accelerated_programme.Accelerated_programme___Scheme_2.Component_4", "2.2.1.2.4.Component 4") -> 2.2.1.2.4.Component 4
C51: =HYPERLINK("#TOCobxInputs.COST_ALLOWANCE_INPUTS.Accelerated_programme.Accelerated_programme___Scheme_2.Component_5", "2.2.1.2.5.Component 5") -> 2.2.1.2.5.Component 5
C53: =HYPERLINK("#TOCobxInputs.COST_ALLOWANCE_INPUTS.Accelerated_programme.Accelerated_programme___Scheme_2.Component_6", "2.2.1.2.6.Component 6") -> 2.2.1.2.6.Component 6
C55: =HYPERLINK("#TOCobxInputs.COST_ALLOWANCE_INPUTS.Accelerated_programme.Accelerated_programme___Scheme_2.Component_7", "2.2.1.2.7.Component 7") -> 2.2.1.2.7.Component 7
C57: =HYPERLINK("#TOCobxInputs.COST_ALLOWANCE_INPUTS.Accelerated_programme.Accelerated_programme___Scheme_2.Component_8", "2.2.1.2.8.Component 8") -> 2.2.1.2.8.Component 8
C59: =HYPERLINK("#TOCobxInputs.COST_ALLOWANCE_INPUTS.Accelerated_programme.Accelerated_programme___Scheme_2.Component_9", "2.2.1.2.9.Component 9") -> 2.2.1.2.9.Component 9
C61: =HYPERLINK("#TOCobxInputs.COST_ALLOWANCE_INPUTS.Accelerated_programme.Accelerated_programme___Scheme_2.Component_10", "2.2.1.2.10.Component 10") -> 2.2.1.2.10.Component 10
C63: =HYPERLINK("#TOCobxInputs.COST_ALLOWANCE_INPUTS.Accelerated_programme.Accelerated_programme___Scheme_2.Component_11", "2.2.1.2.11.Component 11") -> 2.2.1.2.11.Component 11
C65: =HYPERLINK("#TOCobxInputs.COST_ALLOWANCE_INPUTS.Accelerated_programme.Accelerated_programme___Scheme_2.Component_12", "2.2.1.2.12.Component 12") -> 2.2.1.2.12.Component 12
C68: =HYPERLINK("#TOCobxInputs.COST_ALLOWANCE_INPUTS.Accelerated_programme.Accelerated_programme___Scheme_3", "2.2.1.3.Accelerated programme - Scheme 3") -> 2.2.1.3.Accelerated programme - Scheme 3
C69: =HYPERLINK("#TOCobxInputs.COST_ALLOWANCE_INPUTS.Accelerated_programme.Accelerated_programme___Scheme_3.Component_1", "2.2.1.3.1.Component 1") -> 2.2.1.3.1.Component 1
C71: =HYPERLINK("#TOCobxInputs.COST_ALLOWANCE_INPUTS.Accelerated_programme.Accelerated_programme___Scheme_3.Component_2", "2.2.1.3.2.Component 2") -> 2.2.1.3.2.Component 2
C73: =HYPERLINK("#TOCobxInputs.COST_ALLOWANCE_INPUTS.Accelerated_programme.Accelerated_programme___Scheme_3.Component_3", "2.2.1.3.3.Component 3") -> 2.2.1.3.3.Component 3
C75: =HYPERLINK("#TOCobxInputs.COST_ALLOWANCE_INPUTS.Accelerated_programme.Accelerated_programme___Scheme_3.Component_4", "2.2.1.3.4.Component 4") -> 2.2.1.3.4.Component 4
C77: =HYPERLINK("#TOCobxInputs.COST_ALLOWANCE_INPUTS.Accelerated_programme.Accelerated_programme___Scheme_3.Component_5", "2.2.1.3.5.Component 5") -> 2.2.1.3.5.Component 5
C79: =HYPERLINK("#TOCobxInputs.COST_ALLOWANCE_INPUTS.Accelerated_programme.Accelerated_programme___Scheme_3.Component_6", "2.2.1.3.6.Component 6") -> 2.2.1.3.6.Component 6
C81: =HYPERLINK("#TOCobxInputs.COST_ALLOWANCE_INPUTS.Accelerated_programme.Accelerated_programme___Scheme_3.Component_7", "2.2.1.3.7.Component 7") -> 2.2.1.3.7.Component 7
C83: =HYPERLINK("#TOCobxInputs.COST_ALLOWANCE_INPUTS.Accelerated_programme.Accelerated_programme___Scheme_3.Component_8", "2.2.1.3.8.Component 8") -> 2.2.1.3.8.Component 8
C85: =HYPERLINK("#TOCobxInputs.COST_ALLOWANCE_INPUTS.Accelerated_programme.Accelerated_programme___Scheme_3.Component_9", "2.2.1.3.9.Component 9") -> 2.2.1.3.9.Component 9
C87: =HYPERLINK("#TOCobxInputs.COST_ALLOWANCE_INPUTS.Accelerated_programme.Accelerated_programme___Scheme_3.Component_10", "2.2.1.3.10.Component 10") -> 2.2.1.3.10.Component 10
C89: =HYPERLINK("#TOCobxInputs.COST_ALLOWANCE_INPUTS.Accelerated_programme.Accelerated_programme___Scheme_3.Component_11", "2.2.1.3.11.Component 11") -> 2.2.1.3.11.Component 11
C91: =HYPERLINK("#TOCobxInputs.COST_ALLOWANCE_INPUTS.Accelerated_programme.Accelerated_programme___Scheme_3.Component_12", "2.2.1.3.12.Component 12") -> 2.2.1.3.12.Component 12
C94: =HYPERLINK("#TOCobxInputs.COST_ALLOWANCE_INPUTS.Accelerated_programme.Accelerated_programme___Scheme_4", "2.2.1.4.Accelerated programme - Scheme 4") -> 2.2.1.4.Accelerated programme - Scheme 4
C95: =HYPERLINK("#TOCobxInputs.COST_ALLOWANCE_INPUTS.Accelerated_programme.Accelerated_programme___Scheme_4.Component_1", "2.2.1.4.1.Component 1") -> 2.2.1.4.1.Component 1
C97: =HYPERLINK("#TOCobxInputs.COST_ALLOWANCE_INPUTS.Accelerated_programme.Accelerated_programme___Scheme_4.Component_2", "2.2.1.4.2.Component 2") -> 2.2.1.4.2.Component 2
C99: =HYPERLINK("#TOCobxInputs.COST_ALLOWANCE_INPUTS.Accelerated_programme.Accelerated_programme___Scheme_4.Component_3", "2.2.1.4.3.Component 3") -> 2.2.1.4.3.Component 3
C101: =HYPERLINK("#TOCobxInputs.COST_ALLOWANCE_INPUTS.Accelerated_programme.Accelerated_programme___Scheme_4.Component_4", "2.2.1.4.4.Component 4") -> 2.2.1.4.4.Component 4
C103: =HYPERLINK("#TOCobxInputs.COST_ALLOWANCE_INPUTS.Accelerated_programme.Accelerated_programme___Scheme_4.Component_5", "2.2.1.4.5.Component 5") -> 2.2.1.4.5.Component 5
C105: =HYPERLINK("#TOCobxInputs.COST_ALLOWANCE_INPUTS.Accelerated_programme.Accelerated_programme___Scheme_4.Component_6", "2.2.1.4.6.Component 6") -> 2.2.1.4.6.Component 6
C107: =HYPERLINK("#TOCobxInputs.COST_ALLOWANCE_INPUTS.Accelerated_programme.Accelerated_programme___Scheme_4.Component_7", "2.2.1.4.7.Component 7") -> 2.2.1.4.7.Component 7
C109: =HYPERLINK("#TOCobxInputs.COST_ALLOWANCE_INPUTS.Accelerated_programme.Accelerated_programme___Scheme_4.Component_8", "2.2.1.4.8.Component 8") -> 2.2.1.4.8.Component 8
C111: =HYPERLINK("#TOCobxInputs.COST_ALLOWANCE_INPUTS.Accelerated_programme.Accelerated_programme___Scheme_4.Component_9", "2.2.1.4.9.Component 9") -> 2.2.1.4.9.Component 9
C113: =HYPERLINK("#TOCobxInputs.COST_ALLOWANCE_INPUTS.Accelerated_programme.Accelerated_programme___Scheme_4.Component_10", "2.2.1.4.10.Component 10") -> 2.2.1.4.10.Component 10
C115: =HYPERLINK("#TOCobxInputs.COST_ALLOWANCE_INPUTS.Accelerated_programme.Accelerated_programme___Scheme_4.Component_11", "2.2.1.4.11.Component 11") -> 2.2.1.4.11.Component 11
C117: =HYPERLINK("#TOCobxInputs.COST_ALLOWANCE_INPUTS.Accelerated_programme.Accelerated_programme___Scheme_4.Component_12", "2.2.1.4.12.Component 12") -> 2.2.1.4.12.Component 12
C120: =HYPERLINK("#TOCobxInputs.COST_ALLOWANCE_INPUTS.Accelerated_programme.Accelerated_programme___Scheme_5", "2.2.1.5.Accelerated programme - Scheme 5") -> 2.2.1.5.Accelerated programme - Scheme 5
C121: =HYPERLINK("#TOCobxInputs.COST_ALLOWANCE_INPUTS.Accelerated_programme.Accelerated_programme___Scheme_5.Component_1", "2.2.1.5.1.Component 1") -> 2.2.1.5.1.Component 1
C123: =HYPERLINK("#TOCobxInputs.COST_ALLOWANCE_INPUTS.Accelerated_programme.Accelerated_programme___Scheme_5.Component_2", "2.2.1.5.2.Component 2") -> 2.2.1.5.2.Component 2
C125: =HYPERLINK("#TOCobxInputs.COST_ALLOWANCE_INPUTS.Accelerated_programme.Accelerated_programme___Scheme_5.Component_3", "2.2.1.5.3.Component 3") -> 2.2.1.5.3.Component 3
C127: =HYPERLINK("#TOCobxInputs.COST_ALLOWANCE_INPUTS.Accelerated_programme.Accelerated_programme___Scheme_5.Component_4", "2.2.1.5.4.Component 4") -> 2.2.1.5.4.Component 4
C129: =HYPERLINK("#TOCobxInputs.COST_ALLOWANCE_INPUTS.Accelerated_programme.Accelerated_programme___Scheme_5.Component_5", "2.2.1.5.5.Component 5") -> 2.2.1.5.5.Component 5
C131: =HYPERLINK("#TOCobxInputs.COST_ALLOWANCE_INPUTS.Accelerated_programme.Accelerated_programme___Scheme_5.Component_6", "2.2.1.5.6.Component 6") -> 2.2.1.5.6.Component 6
C133: =HYPERLINK("#TOCobxInputs.COST_ALLOWANCE_INPUTS.Accelerated_programme.Accelerated_programme___Scheme_5.Component_7", "2.2.1.5.7.Component 7") -> 2.2.1.5.7.Component 7
C135: =HYPERLINK("#TOCobxInputs.COST_ALLOWANCE_INPUTS.Accelerated_programme.Accelerated_programme___Scheme_5.Component_8", "2.2.1.5.8.Component 8") -> 2.2.1.5.8.Component 8
C137: =HYPERLINK("#TOCobxInputs.COST_ALLOWANCE_INPUTS.Accelerated_programme.Accelerated_programme___Scheme_5.Component_9", "2.2.1.5.9.Component 9") -> 2.2.1.5.9.Component 9
C139: =HYPERLINK("#TOCobxInputs.COST_ALLOWANCE_INPUTS.Accelerated_programme.Accelerated_programme___Scheme_5.Component_10", "2.2.1.5.10.Component 10") -> 2.2.1.5.10.Component 10
C141: =HYPERLINK("#TOCobxInputs.COST_ALLOWANCE_INPUTS.Accelerated_programme.Accelerated_programme___Scheme_5.Component_11", "2.2.1.5.11.Component 11") -> 2.2.1.5.11.Component 11
C143: =HYPERLINK("#TOCobxInputs.COST_ALLOWANCE_INPUTS.Accelerated_programme.Accelerated_programme___Scheme_5.Component_12", "2.2.1.5.12.Component 12") -> 2.2.1.5.12.Component 12
C146: =HYPERLINK("#TOCobxInputs.COST_ALLOWANCE_INPUTS.Transition_expenditure", "2.2.2.Transition expenditure") -> 2.2.2.Transition expenditure
C147: =HYPERLINK("#TOCobxInputs.COST_ALLOWANCE_INPUTS.Transition_expenditure.Transition_expenditure___Scheme_1", "2.2.2.1.Transition expenditure - Scheme 1") -> 2.2.2.1.Transition expenditure - Scheme 1
C148: =HYPERLINK("#TOCobxInputs.COST_ALLOWANCE_INPUTS.Transition_expenditure.Transition_expenditure___Scheme_1.Component_1", "2.2.2.1.1.Component 1") -> 2.2.2.1.1.Component 1
C150: =HYPERLINK("#TOCobxInputs.COST_ALLOWANCE_INPUTS.Transition_expenditure.Transition_expenditure___Scheme_1.Component_2", "2.2.2.1.2.Component 2") -> 2.2.2.1.2.Component 2
C152: =HYPERLINK("#TOCobxInputs.COST_ALLOWANCE_INPUTS.Transition_expenditure.Transition_expenditure___Scheme_1.Component_3", "2.2.2.1.3.Component 3") -> 2.2.2.1.3.Component 3
C154: =HYPERLINK("#TOCobxInputs.COST_ALLOWANCE_INPUTS.Transition_expenditure.Transition_expenditure___Scheme_1.Component_4", "2.2.2.1.4.Component 4") -> 2.2.2.1.4.Component 4
C156: =HYPERLINK("#TOCobxInputs.COST_ALLOWANCE_INPUTS.Transition_expenditure.Transition_expenditure___Scheme_1.Component_5", "2.2.2.1.5.Component 5") -> 2.2.2.1.5.Component 5
C158: =HYPERLINK("#TOCobxInputs.COST_ALLOWANCE_INPUTS.Transition_expenditure.Transition_expenditure___Scheme_1.Component_6", "2.2.2.1.6.Component 6") -> 2.2.2.1.6.Component 6
C160: =HYPERLINK("#TOCobxInputs.COST_ALLOWANCE_INPUTS.Transition_expenditure.Transition_expenditure___Scheme_1.Component_7", "2.2.2.1.7.Component 7") -> 2.2.2.1.7.Component 7
C162: =HYPERLINK("#TOCobxInputs.COST_ALLOWANCE_INPUTS.Transition_expenditure.Transition_expenditure___Scheme_1.Component_8", "2.2.2.1.8.Component 8") -> 2.2.2.1.8.Component 8
C164: =HYPERLINK("#TOCobxInputs.COST_ALLOWANCE_INPUTS.Transition_expenditure.Transition_expenditure___Scheme_1.Component_9", "2.2.2.1.9.Component 9") -> 2.2.2.1.9.Component 9
C166: =HYPERLINK("#TOCobxInputs.COST_ALLOWANCE_INPUTS.Transition_expenditure.Transition_expenditure___Scheme_1.Component_10", "2.2.2.1.10.Component 10") -> 2.2.2.1.10.Component 10
C168: =HYPERLINK("#TOCobxInputs.COST_ALLOWANCE_INPUTS.Transition_expenditure.Transition_expenditure___Scheme_1.Component_11", "2.2.2.1.11.Component 11") -> 2.2.2.1.11.Component 11
C170: =HYPERLINK("#TOCobxInputs.COST_ALLOWANCE_INPUTS.Transition_expenditure.Transition_expenditure___Scheme_1.Component_12", "2.2.2.1.12.Component 12") -> 2.2.2.1.12.Component 12
C173: =HYPERLINK("#TOCobxInputs.COST_ALLOWANCE_INPUTS.Transition_expenditure.Transition_expenditure___Scheme_2", "2.2.2.2.Transition expenditure - Scheme 2") -> 2.2.2.2.Transition expenditure - Scheme 2
C174: =HYPERLINK("#TOCobxInputs.COST_ALLOWANCE_INPUTS.Transition_expenditure.Transition_expenditure___Scheme_2.Component_1", "2.2.2.2.1.Component 1") -> 2.2.2.2.1.Component 1
C176: =HYPERLINK("#TOCobxInputs.COST_ALLOWANCE_INPUTS.Transition_expenditure.Transition_expenditure___Scheme_2.Component_2", "2.2.2.2.2.Component 2") -> 2.2.2.2.2.Component 2
C178: =HYPERLINK("#TOCobxInputs.COST_ALLOWANCE_INPUTS.Transition_expenditure.Transition_expenditure___Scheme_2.Component_3", "2.2.2.2.3.Component 3") -> 2.2.2.2.3.Component 3
C180: =HYPERLINK("#TOCobxInputs.COST_ALLOWANCE_INPUTS.Transition_expenditure.Transition_expenditure___Scheme_2.Component_4", "2.2.2.2.4.Component 4") -> 2.2.2.2.4.Component 4
C182: =HYPERLINK("#TOCobxInputs.COST_ALLOWANCE_INPUTS.Transition_expenditure.Transition_expenditure___Scheme_2.Component_5", "2.2.2.2.5.Component 5") -> 2.2.2.2.5.Component 5
C184: =HYPERLINK("#TOCobxInputs.COST_ALLOWANCE_INPUTS.Transition_expenditure.Transition_expenditure___Scheme_2.Component_6", "2.2.2.2.6.Component 6") -> 2.2.2.2.6.Component 6
C186: =HYPERLINK("#TOCobxInputs.COST_ALLOWANCE_INPUTS.Transition_expenditure.Transition_expenditure___Scheme_2.Component_7", "2.2.2.2.7.Component 7") -> 2.2.2.2.7.Component 7
C188: =HYPERLINK("#TOCobxInputs.COST_ALLOWANCE_INPUTS.Transition_expenditure.Transition_expenditure___Scheme_2.Component_8", "2.2.2.2.8.Component 8") -> 2.2.2.2.8.Component 8
C190: =HYPERLINK("#TOCobxInputs.COST_ALLOWANCE_INPUTS.Transition_expenditure.Transition_expenditure___Scheme_2.Component_9", "2.2.2.2.9.Component 9") -> 2.2.2.2.9.Component 9
C192: =HYPERLINK("#TOCobxInputs.COST_ALLOWANCE_INPUTS.Transition_expenditure.Transition_expenditure___Scheme_2.Component_10", "2.2.2.2.10.Component 10") -> 2.2.2.2.10.Component 10
C194: =HYPERLINK("#TOCobxInputs.COST_ALLOWANCE_INPUTS.Transition_expenditure.Transition_expenditure___Scheme_2.Component_11", "2.2.2.2.11.Component 11") -> 2.2.2.2.11.Component 11
C196: =HYPERLINK("#TOCobxInputs.COST_ALLOWANCE_INPUTS.Transition_expenditure.Transition_expenditure___Scheme_2.Component_12", "2.2.2.2.12.Component 12") -> 2.2.2.2.12.Component 12
C199: =HYPERLINK("#TOCobxInputs.COST_ALLOWANCE_INPUTS.Transition_expenditure.Transition_expenditure___Scheme_3", "2.2.2.3.Transition expenditure - Scheme 3") -> 2.2.2.3.Transition expenditure - Scheme 3
C200: =HYPERLINK("#TOCobxInputs.COST_ALLOWANCE_INPUTS.Transition_expenditure.Transition_expenditure___Scheme_3.Component_1", "2.2.2.3.1.Component 1") -> 2.2.2.3.1.Component 1
C202: =HYPERLINK("#TOCobxInputs.COST_ALLOWANCE_INPUTS.Transition_expenditure.Transition_expenditure___Scheme_3.Component_2", "2.2.2.3.2.Component 2") -> 2.2.2.3.2.Component 2
C204: =HYPERLINK("#TOCobxInputs.COST_ALLOWANCE_INPUTS.Transition_expenditure.Transition_expenditure___Scheme_3.Component_3", "2.2.2.3.3.Component 3") -> 2.2.2.3.3.Component 3
C206: =HYPERLINK("#TOCobxInputs.COST_ALLOWANCE_INPUTS.Transition_expenditure.Transition_expenditure___Scheme_3.Component_4", "2.2.2.3.4.Component 4") -> 2.2.2.3.4.Component 4
C208: =HYPERLINK("#TOCobxInputs.COST_ALLOWANCE_INPUTS.Transition_expenditure.Transition_expenditure___Scheme_3.Component_5", "2.2.2.3.5.Component 5") -> 2.2.2.3.5.Component 5
C210: =HYPERLINK("#TOCobxInputs.COST_ALLOWANCE_INPUTS.Transition_expenditure.Transition_expenditure___Scheme_3.Component_6", "2.2.2.3.6.Component 6") -> 2.2.2.3.6.Component 6
C212: =HYPERLINK("#TOCobxInputs.COST_ALLOWANCE_INPUTS.Transition_expenditure.Transition_expenditure___Scheme_3.Component_7", "2.2.2.3.7.Component 7") -> 2.2.2.3.7.Component 7
C214: =HYPERLINK("#TOCobxInputs.COST_ALLOWANCE_INPUTS.Transition_expenditure.Transition_expenditure___Scheme_3.Component_8", "2.2.2.3.8.Component 8") -> 2.2.2.3.8.Component 8
C216: =HYPERLINK("#TOCobxInputs.COST_ALLOWANCE_INPUTS.Transition_expenditure.Transition_expenditure___Scheme_3.Component_9", "2.2.2.3.9.Component 9") -> 2.2.2.3.9.Component 9
C218: =HYPERLINK("#TOCobxInputs.COST_ALLOWANCE_INPUTS.Transition_expenditure.Transition_expenditure___Scheme_3.Component_10", "2.2.2.3.10.Component 10") -> 2.2.2.3.10.Component 10
C220: =HYPERLINK("#TOCobxInputs.COST_ALLOWANCE_INPUTS.Transition_expenditure.Transition_expenditure___Scheme_3.Component_11", "2.2.2.3.11.Component 11") -> 2.2.2.3.11.Component 11
C222: =HYPERLINK("#TOCobxInputs.COST_ALLOWANCE_INPUTS.Transition_expenditure.Transition_expenditure___Scheme_3.Component_12", "2.2.2.3.12.Component 12") -> 2.2.2.3.12.Component 12
C225: =HYPERLINK("#TOCobxInputs.COST_ALLOWANCE_INPUTS.Transition_expenditure.Transition_expenditure___Scheme_4", "2.2.2.4.Transition expenditure - Scheme 4") -> 2.2.2.4.Transition expenditure - Scheme 4
C226: =HYPERLINK("#TOCobxInputs.COST_ALLOWANCE_INPUTS.Transition_expenditure.Transition_expenditure___Scheme_4.Component_1", "2.2.2.4.1.Component 1") -> 2.2.2.4.1.Component 1
C228: =HYPERLINK("#TOCobxInputs.COST_ALLOWANCE_INPUTS.Transition_expenditure.Transition_expenditure___Scheme_4.Component_2", "2.2.2.4.2.Component 2") -> 2.2.2.4.2.Component 2
C230: =HYPERLINK("#TOCobxInputs.COST_ALLOWANCE_INPUTS.Transition_expenditure.Transition_expenditure___Scheme_4.Component_3", "2.2.2.4.3.Component 3") -> 2.2.2.4.3.Component 3
C232: =HYPERLINK("#TOCobxInputs.COST_ALLOWANCE_INPUTS.Transition_expenditure.Transition_expenditure___Scheme_4.Component_4", "2.2.2.4.4.Component 4") -> 2.2.2.4.4.Component 4
C234: =HYPERLINK("#TOCobxInputs.COST_ALLOWANCE_INPUTS.Transition_expenditure.Transition_expenditure___Scheme_4.Component_5", "2.2.2.4.5.Component 5") -> 2.2.2.4.5.Component 5
C236: =HYPERLINK("#TOCobxInputs.COST_ALLOWANCE_INPUTS.Transition_expenditure.Transition_expenditure___Scheme_4.Component_6", "2.2.2.4.6.Component 6") -> 2.2.2.4.6.Component 6
C238: =HYPERLINK("#TOCobxInputs.COST_ALLOWANCE_INPUTS.Transition_expenditure.Transition_expenditure___Scheme_4.Component_7", "2.2.2.4.7.Component 7") -> 2.2.2.4.7.Component 7
C240: =HYPERLINK("#TOCobxInputs.COST_ALLOWANCE_INPUTS.Transition_expenditure.Transition_expenditure___Scheme_4.Component_8", "2.2.2.4.8.Component 8") -> 2.2.2.4.8.Component 8
C242: =HYPERLINK("#TOCobxInputs.COST_ALLOWANCE_INPUTS.Transition_expenditure.Transition_expenditure___Scheme_4.Component_9", "2.2.2.4.9.Component 9") -> 2.2.2.4.9.Component 9
C244: =HYPERLINK("#TOCobxInputs.COST_ALLOWANCE_INPUTS.Transition_expenditure.Transition_expenditure___Scheme_4.Component_10", "2.2.2.4.10.Component 10") -> 2.2.2.4.10.Component 10
C246: =HYPERLINK("#TOCobxInputs.COST_ALLOWANCE_INPUTS.Transition_expenditure.Transition_expenditure___Scheme_4.Component_11", "2.2.2.4.11.Component 11") -> 2.2.2.4.11.Component 11
C248: =HYPERLINK("#TOCobxInputs.COST_ALLOWANCE_INPUTS.Transition_expenditure.Transition_expenditure___Scheme_4.Component_12", "2.2.2.4.12.Component 12") -> 2.2.2.4.12.Component 12
C251: =HYPERLINK("#TOCobxInputs.COST_ALLOWANCE_INPUTS.Transition_expenditure.Transition_expenditure___Scheme_5", "2.2.2.5.Transition expenditure - Scheme 5") -> 2.2.2.5.Transition expenditure - Scheme 5
C252: =HYPERLINK("#TOCobxInputs.COST_ALLOWANCE_INPUTS.Transition_expenditure.Transition_expenditure___Scheme_5.Component_1", "2.2.2.5.1.Component 1") -> 2.2.2.5.1.Component 1
C254: =HYPERLINK("#TOCobxInputs.COST_ALLOWANCE_INPUTS.Transition_expenditure.Transition_expenditure___Scheme_5.Component_2", "2.2.2.5.2.Component 2") -> 2.2.2.5.2.Component 2
C256: =HYPERLINK("#TOCobxInputs.COST_ALLOWANCE_INPUTS.Transition_expenditure.Transition_expenditure___Scheme_5.Component_3", "2.2.2.5.3.Component 3") -> 2.2.2.5.3.Component 3
C258: =HYPERLINK("#TOCobxInputs.COST_ALLOWANCE_INPUTS.Transition_expenditure.Transition_expenditure___Scheme_5.Component_4", "2.2.2.5.4.Component 4") -> 2.2.2.5.4.Component 4
C260: =HYPERLINK("#TOCobxInputs.COST_ALLOWANCE_INPUTS.Transition_expenditure.Transition_expenditure___Scheme_5.Component_5", "2.2.2.5.5.Component 5") -> 2.2.2.5.5.Component 5
C262: =HYPERLINK("#TOCobxInputs.COST_ALLOWANCE_INPUTS.Transition_expenditure.Transition_expenditure___Scheme_5.Component_6", "2.2.2.5.6.Component 6") -> 2.2.2.5.6.Component 6
C264: =HYPERLINK("#TOCobxInputs.COST_ALLOWANCE_INPUTS.Transition_expenditure.Transition_expenditure___Scheme_5.Component_7", "2.2.2.5.7.Component 7") -> 2.2.2.5.7.Component 7
C266: =HYPERLINK("#TOCobxInputs.COST_ALLOWANCE_INPUTS.Transition_expenditure.Transition_expenditure___Scheme_5.Component_8", "2.2.2.5.8.Component 8") -> 2.2.2.5.8.Component 8
C268: =HYPERLINK("#TOCobxInputs.COST_ALLOWANCE_INPUTS.Transition_expenditure.Transition_expenditure___Scheme_5.Component_9", "2.2.2.5.9.Component 9") -> 2.2.2.5.9.Component 9
C270: =HYPERLINK("#TOCobxInputs.COST_ALLOWANCE_INPUTS.Transition_expenditure.Transition_expenditure___Scheme_5.Component_10", "2.2.2.5.10.Component 10") -> 2.2.2.5.10.Component 10
C272: =HYPERLINK("#TOCobxInputs.COST_ALLOWANCE_INPUTS.Transition_expenditure.Transition_expenditure___Scheme_5.Component_11", "2.2.2.5.11.Component 11") -> 2.2.2.5.11.Component 11
C274: =HYPERLINK("#TOCobxInputs.COST_ALLOWANCE_INPUTS.Transition_expenditure.Transition_expenditure___Scheme_5.Component_12", "2.2.2.5.12.Component 12") -> 2.2.2.5.12.Component 12
B277: =HYPERLINK("#TOCobxInputs.TIME_VALUE_OF_MONEY_CORE_INPUTS", "2.3.TIME VALUE OF MONEY CORE INPUTS") -> 2.3.TIME VALUE OF MONEY CORE INPUTS
C278: =HYPERLINK("#TOCobxInputs.TIME_VALUE_OF_MONEY_CORE_INPUTS.These_values_should_not_be_overwritten", "2.3.1.These values should not be overwritten") -> 2.3.1.These values should not be overwritten
C279: =HYPERLINK("#TOCobxInputs.TIME_VALUE_OF_MONEY_CORE_INPUTS.Real_wholesale_WACC", "2.3.2.Real wholesale WACC") -> 2.3.2.Real wholesale WACC
C280: =HYPERLINK("#TOCobxInputs.TIME_VALUE_OF_MONEY_CORE_INPUTS.Accelerated_schemes_revenue_received_in_period", "2.3.3.Accelerated schemes revenue received in period") -> 2.3.3.Accelerated schemes revenue received in period
C281: =HYPERLINK("#TOCobxInputs.TIME_VALUE_OF_MONEY_CORE_INPUTS.Transition_schemes_revenue_received_in_period", "2.3.4.Transition schemes revenue received in period") -> 2.3.4.Transition schemes revenue received in period
B282: =HYPERLINK("#TOCobxInputs.COST_SHARING_INPUTS", "2.4.COST SHARING INPUTS") -> 2.4.COST SHARING INPUTS
B283: =HYPERLINK("#TOCobxInputs.NON_CHANGEABLE_INPUTS", "2.5.NON CHANGEABLE INPUTS") -> 2.5.NON CHANGEABLE INPUTS
C284: =HYPERLINK("#TOCobxInputs.NON_CHANGEABLE_INPUTS.Model_Tolerance", "2.5.1.Model Tolerance") -> 2.5.1.Model Tolerance
B285: =HYPERLINK("#TOCobxInputs.Model_Constants", "2.6.Model Constants") -> 2.6.Model Constants
A287: =HYPERLINK("#TOCobxTime", "3.Time") -> 3.Time
B288: =HYPERLINK("#TOCobxTime.MODEL_PERIOD", "3.1.MODEL PERIOD") -> 3.1.MODEL PERIOD
C289: =HYPERLINK("#TOCobxTime.MODEL_PERIOD.Model_Column_Counter_", "3.1.1.Model Column Counter ") -> 3.1.1.Model Column Counter
B290: =HYPERLINK("#TOCobxTime.PRE_FORECAST_PERIOD", "3.2.PRE FORECAST PERIOD") -> 3.2.PRE FORECAST PERIOD
B291: =HYPERLINK("#TOCobxTime.FORECAST_PERIOD", "3.3.FORECAST PERIOD") -> 3.3.FORECAST PERIOD
B292: =HYPERLINK("#TOCobxTime.POST_FORECAST_PERIOD", "3.4.POST FORECAST PERIOD") -> 3.4.POST FORECAST PERIOD
B293: =HYPERLINK("#TOCobxTime.MODELLING_PERIOD_CHECK", "3.5.MODELLING PERIOD CHECK") -> 3.5.MODELLING PERIOD CHECK
C294: =HYPERLINK("#TOCobxTime.MODELLING_PERIOD_CHECK.less", "3.5.1.less") -> 3.5.1.less
B295: =HYPERLINK("#TOCobxTime.FINANCIAL_YEAR", "3.6.FINANCIAL YEAR") -> 3.6.FINANCIAL YEAR
B296: =HYPERLINK("#TOCobxTime.Headers", "3.7.Headers") -> 3.7.Headers
A298: =HYPERLINK("#TOCobxCalcs", "4.Calcs") -> 4.Calcs
B299: =HYPERLINK("#TOCobxCalcs.COST_ALLOWANCES", "4.1.COST ALLOWANCES") -> 4.1.COST ALLOWANCES
C300: =HYPERLINK("#TOCobxCalcs.COST_ALLOWANCES.Accelerated_programme", "4.1.1.Accelerated programme") -> 4.1.1.Accelerated programme
C301: =HYPERLINK("#TOCobxCalcs.COST_ALLOWANCES.Accelerated_programme.Accelerated_programme___Scheme_1", "4.1.1.1.Accelerated programme - Scheme 1") -> 4.1.1.1.Accelerated programme - Scheme 1
C303: =HYPERLINK("#TOCobxCalcs.COST_ALLOWANCES.Accelerated_programme.Accelerated_programme___Scheme_2", "4.1.1.2.Accelerated programme - Scheme 2") -> 4.1.1.2.Accelerated programme - Scheme 2
C305: =HYPERLINK("#TOCobxCalcs.COST_ALLOWANCES.Accelerated_programme.Accelerated_programme___Scheme_3", "4.1.1.3.Accelerated programme - Scheme 3") -> 4.1.1.3.Accelerated programme - Scheme 3
C307: =HYPERLINK("#TOCobxCalcs.COST_ALLOWANCES.Accelerated_programme.Accelerated_programme___Scheme_4", "4.1.1.4.Accelerated programme - Scheme 4") -> 4.1.1.4.Accelerated programme - Scheme 4
C309: =HYPERLINK("#TOCobxCalcs.COST_ALLOWANCES.Accelerated_programme.Accelerated_programme___Scheme_5", "4.1.1.5.Accelerated programme - Scheme 5") -> 4.1.1.5.Accelerated programme - Scheme 5
C311: =HYPERLINK("#TOCobxCalcs.COST_ALLOWANCES.Accelerated_programme.Accelerated_programme___Aggregation", "4.1.1.6.Accelerated programme - Aggregation") -> 4.1.1.6.Accelerated programme - Aggregation
C313: =HYPERLINK("#TOCobxCalcs.COST_ALLOWANCES.Transition_expenditure", "4.1.2.Transition expenditure") -> 4.1.2.Transition expenditure
C314: =HYPERLINK("#TOCobxCalcs.COST_ALLOWANCES.Transition_expenditure.Transition_expenditure___Scheme_1", "4.1.2.1.Transition expenditure - Scheme 1") -> 4.1.2.1.Transition expenditure - Scheme 1
C316: =HYPERLINK("#TOCobxCalcs.COST_ALLOWANCES.Transition_expenditure.Transition_expenditure___Scheme_2", "4.1.2.2.Transition expenditure - Scheme 2") -> 4.1.2.2.Transition expenditure - Scheme 2
C318: =HYPERLINK("#TOCobxCalcs.COST_ALLOWANCES.Transition_expenditure.Transition_expenditure___Scheme_3", "4.1.2.3.Transition expenditure - Scheme 3") -> 4.1.2.3.Transition expenditure - Scheme 3
C320: =HYPERLINK("#TOCobxCalcs.COST_ALLOWANCES.Transition_expenditure.Transition_expenditure___Scheme_4", "4.1.2.4.Transition expenditure - Scheme 4") -> 4.1.2.4.Transition expenditure - Scheme 4
C322: =HYPERLINK("#TOCobxCalcs.COST_ALLOWANCES.Transition_expenditure.Transition_expenditure___Scheme_5", "4.1.2.5.Transition expenditure - Scheme 5") -> 4.1.2.5.Transition expenditure - Scheme 5
C324: =HYPERLINK("#TOCobxCalcs.COST_ALLOWANCES.Transition_expenditure.Transition_expenditure___Aggregation", "4.1.2.6.Transition expenditure - Aggregation") -> 4.1.2.6.Transition expenditure - Aggregation
B326: =HYPERLINK("#TOCobxCalcs.REVENUE_AND_EXPENDITURE", "4.2.REVENUE AND EXPENDITURE") -> 4.2.REVENUE AND EXPENDITURE
C327: =HYPERLINK("#TOCobxCalcs.REVENUE_AND_EXPENDITURE.Accelerated_programme___Net_expenditure_position", "4.2.1.Accelerated programme - Net expenditure position") -> 4.2.1.Accelerated programme - Net expenditure position
C328: =HYPERLINK("#TOCobxCalcs.REVENUE_AND_EXPENDITURE.Transition_expenditure___Net_expenditure_position", "4.2.2.Transition expenditure - Net expenditure position") -> 4.2.2.Transition expenditure - Net expenditure position
C329: =HYPERLINK("#TOCobxCalcs.REVENUE_AND_EXPENDITURE.Accelerated_programme___RCV_adjustment__pre_time_value_of_money_", "4.2.3.Accelerated programme - RCV adjustment (pre time value of money)") -> 4.2.3.Accelerated programme - RCV adjustment (pre time value of money)
C330: =HYPERLINK("#TOCobxCalcs.REVENUE_AND_EXPENDITURE.Transition_expenditure___RCV_adjustment__pre_time_value_of_money_", "4.2.4.Transition expenditure - RCV adjustment (pre time value of money)") -> 4.2.4.Transition expenditure - RCV adjustment (pre time value of money)
B331: =HYPERLINK("#TOCobxCalcs.TIME_VALUE_OF_MONEY_FACTORS", "4.3.TIME VALUE OF MONEY FACTORS") -> 4.3.TIME VALUE OF MONEY FACTORS
C332: =HYPERLINK("#TOCobxCalcs.TIME_VALUE_OF_MONEY_FACTORS.The_time_value_of_money_approach_in_the_cost_sharing_reconciliation_model_has_been_applied_to_ensure_consistency_between_the_two_models", "4.3.1.The time value of money approach in the cost sharing reconciliation model has been applied to ensure consistency between the two models") -> 4.3.1.The time value of money approach in the cost sharing reconciliation model has been applied to ensure consistency between the two models
B333: =HYPERLINK("#TOCobxCalcs.TVM_ADJUSTMENT", "4.4.TVM ADJUSTMENT") -> 4.4.TVM ADJUSTMENT
C334: =HYPERLINK("#TOCobxCalcs.TVM_ADJUSTMENT.Accelerated_programme", "4.4.1.Accelerated programme") -> 4.4.1.Accelerated programme
C335: =HYPERLINK("#TOCobxCalcs.TVM_ADJUSTMENT.Accelerated_programme.Accelerated_programme___WR", "4.4.1.1.Accelerated programme - WR") -> 4.4.1.1.Accelerated programme - WR
C337: =HYPERLINK("#TOCobxCalcs.TVM_ADJUSTMENT.Accelerated_programme.Accelerated_programme___WN_", "4.4.1.2.Accelerated programme - WN+") -> 4.4.1.2.Accelerated programme - WN+
C339: =HYPERLINK("#TOCobxCalcs.TVM_ADJUSTMENT.Accelerated_programme.Accelerated_programme___WWN_", "4.4.1.3.Accelerated programme - WWN+") -> 4.4.1.3.Accelerated programme - WWN+
C341: =HYPERLINK("#TOCobxCalcs.TVM_ADJUSTMENT.Accelerated_programme.Accelerated_programme___BR", "4.4.1.4.Accelerated programme - BR") -> 4.4.1.4.Accelerated programme - BR
C343: =HYPERLINK("#TOCobxCalcs.TVM_ADJUSTMENT.Transition_expenditure", "4.4.2.Transition expenditure") -> 4.4.2.Transition expenditure
C344: =HYPERLINK("#TOCobxCalcs.TVM_ADJUSTMENT.Transition_expenditure.Transition_expenditure___WR", "4.4.2.1.Transition expenditure - WR") -> 4.4.2.1.Transition expenditure - WR
C346: =HYPERLINK("#TOCobxCalcs.TVM_ADJUSTMENT.Transition_expenditure.Transition_expenditure___WN_", "4.4.2.2.Transition expenditure - WN+") -> 4.4.2.2.Transition expenditure - WN+
C348: =HYPERLINK("#TOCobxCalcs.TVM_ADJUSTMENT.Transition_expenditure.Transition_expenditure___WWN_", "4.4.2.3.Transition expenditure - WWN+") -> 4.4.2.3.Transition expenditure - WWN+
C350: =HYPERLINK("#TOCobxCalcs.TVM_ADJUSTMENT.Transition_expenditure.Transition_expenditure___BR", "4.4.2.4.Transition expenditure - BR") -> 4.4.2.4.Transition expenditure - BR
B352: =HYPERLINK("#TOCobxCalcs.COST_SHARING", "4.5.COST SHARING") -> 4.5.COST SHARING
C353: =HYPERLINK("#TOCobxCalcs.COST_SHARING.INDEXATION", "4.5.1.INDEXATION") -> 4.5.1.INDEXATION
C354: =HYPERLINK("#TOCobxCalcs.COST_SHARING.ACCELERATED_PROGRAMME", "4.5.2.ACCELERATED PROGRAMME") -> 4.5.2.ACCELERATED PROGRAMME
C355: =HYPERLINK("#TOCobxCalcs.COST_SHARING.ACCELERATED_PROGRAMME.ACTIVE_SHARING_RATE", "4.5.2.1.ACTIVE SHARING RATE") -> 4.5.2.1.ACTIVE SHARING RATE
C357: =HYPERLINK("#TOCobxCalcs.COST_SHARING.ACCELERATED_PROGRAMME.WATER_RESOURCES", "4.5.2.2.WATER RESOURCES") -> 4.5.2.2.WATER RESOURCES
C358: =HYPERLINK("#TOCobxCalcs.COST_SHARING.ACCELERATED_PROGRAMME.WATER_RESOURCES.Variance_to_forecast_totex", "4.5.2.2.1.Variance to forecast totex") -> 4.5.2.2.1.Variance to forecast totex
C360: =HYPERLINK("#TOCobxCalcs.COST_SHARING.ACCELERATED_PROGRAMME.WATER_RESOURCES.Variance_to_forecast_totex___time_adjusted", "4.5.2.2.2.Variance to forecast totex - time adjusted") -> 4.5.2.2.2.Variance to forecast totex - time adjusted
... 43 more rows

Sheet SWB approved AP schemes
A1: Scheme 1 | B1: Cost 2022-25, £m
A2: Storm overflows | B2: 23
B4: Name | C4: Unit | D4: decimal places | E4: Component level at completion
A5: Component 1 | B5: Total storm overflows improved (cumulative) | C5: Nr | D5: 0 | E5: 15
A6: Component 2 | B6: Total spill reduction per annum | C6: Nr | D6: 0 | E6: 330
A8: Scheme 3 | B8: Cost 2022-25, £m
A9: Nutrient neutrality | B9: 12.01
B11: Name | C11: Unit | D11: decimal places | E11: Component level at completion
A12: Component 1 | B12: Axminster Kilmington WwTW Total P- permit | C12: mg/L | D12: 2 | E12: 0.25
A13: Component 2 | B13: Tatworth WwTW Total P- permit | C13: mg/L | D13: 2 | E13: 0.25
A14: Component 3 | B14: Bodmin Nanstallon WwTW Total P- permit | C14: mg/L | D14: 2 | E14: 0.25
A15: Component 4 | B15: Camelford WwTW Total P- permit | C15: mg/L | D15: 2 | E15: 0.25
A16: Component 5 | B16: Scarlett's Well WwTW Total P- permit | C16: mg/L | D16: 2 | E16: 0.25
A18: Scheme 11 | B18: Cost 2022-25, £m
A19: Colliford smart metering | B19: 5.65
B21: Name | C21: Unit | D21: decimal places | E21: Component level at completion
A22: Component 1 | B22: PR19 delivery AMR meters – unmeasured properties | C22: Nr | D22: 0 | E22: 36447
A23: Component 2 | B23: PR19 delivery basic to AMR meter upgrades | C23: Nr | D23: 0 | E23: 49632
A24: Component 3 | B24: Green recovery delivery AMI meters – unmeasured properties | C24: Nr | D24: 0 | E24: 21470
A25: Component 4 | B25: Green recovery delivery basic to AMI meter upgrades | C25: Nr | D25: 0 | E25: 57500
A26: Component 5 | B26: Green recovery delivery AMR to AMI meter upgrades | C26: Nr | D26: 0 | E26: 18000
A27: Component 6 | B27: Acceleration AMI for AMR replacements | C27: Nr | D27: 0 | E27: 8954
A28: Component 7 | B28: Acceleration AMI for basic replacements | C28: Nr | D28: 0 | E28: 31160
A29: Component 8 | B29: Acceleration flow regulators | C29: Nr | D29: 0 | E29: 29866
A30: Component 9 | B30: Baseline basic meters | C30: Nr | D30: 0 | E30: 604307
A31: Component 10 | B31: Baseline AMR smart meters | C31: Nr | D31: 0 | E31: 214599
A32: Component 11 | B32: Baseline AMI smart meters | C32: Nr | D32: 0 | E32: 96970
A33: Component 12 | B33: Per capita consumption reduction | C33: l/h/d (cum.) | D33: 2 | E33: 0.2
A34: Component 13 | B34: Leakage reduction | C34: Ml/d (cum.) | D34: 3 | E34: 0.125
A36: Scheme 12 | B36: Cost 2022-25, £m
A37: Supply pipe leakage | B37: 8.51
B39: Name | C39: Unit | D39: decimal places | E39: Component level at completion
A40: Component 1 | B40: Leaking supply pipes replaced | C40: Nr | D40: 0 | E40: 4835

Sheet PR19 cost sharing
C2: PR19 cost sharing rates | E2: Run on 14 Apr 2024 14:33
A4: Company Acronym | B4: Item Code | C4: Item Description | D4: Item Unit | E4: Item Table Suite | F4: 2020-25
A5: Company Acronym | B5: Item Code | C5: Item Description | D5: Item Unit | E5: Item Table Suite | F5: Price Review 2019
A6: Company Acronym | B6: Item Code | C6: Item Description | D6: Item Unit | E6: Item Table Suite | F6: Default for Price Review 2019 base run
A7: Company Acronym | B7: Item Code | C7: Item Description | D7: Item Unit | E7: Item Table Suite | F7: Latest | G7: Revised by CMA | H7: Final CS rates
A8: ANH | B8: C_WR_WN_OUTPERFORM_001 | C8: Cost sharing rate for outperform | D8: % | E8: Price Review 2019 | F8: 0.3189391196 | G8: 0.45 | H8: =IF(ISBLANK(G8),F8,G8) -> 0.45
A9: ANH | B9: C_WR_WN_UNDERPERFORM_001 | C9: Cost sharing rate for underperform | D9: % | E9: Price Review 2019 | F9: 0.6810608804 | G9: 0.55 | H9: =IF(ISBLANK(G9),F9,G9) -> 0.55
A10: ANH | B10: C_WWN_OUTPERFORM_001 | C10: Cost sharing rate for outperform | D10: % | E10: Price Review 2019 | F10: 0.3496275683 | G10: 0.45 | H10: 0.45
A11: ANH | B11: C_WWN_UNDERPERFORM_001 | C11: Cost sharing rate for underperform | D11: % | E11: Price Review 2019 | F11: 0.6503724317 | G11: 0.55 | H11: 0.55
A12: WSH | B12: C_WR_WN_OUTPERFORM_001 | C12: Cost sharing rate for outperform | D12: % | E12: Price Review 2019 | F12: 0.4265520002 | H12: 0.4265520002
A13: WSH | B13: C_WR_WN_UNDERPERFORM_001 | C13: Cost sharing rate for underperform | D13: % | E13: Price Review 2019 | F13: 0.5734479998 | H13: 0.5734479998
A14: WSH | B14: C_WWN_OUTPERFORM_001 | C14: Cost sharing rate for outperform | D14: % | E14: Price Review 2019 | F14: 0.4150714664 | H14: 0.4150714664
A15: WSH | B15: C_WWN_UNDERPERFORM_001 | C15: Cost sharing rate for underperform | D15: % | E15: Price Review 2019 | F15: 0.5849285336 | H15: 0.5849285336
A16: HDD | B16: C_WR_WN_OUTPERFORM_001 | C16: Cost sharing rate for outperform | D16: % | E16: Price Review 2019 | F16: 0.5396005513 | H16: 0.5396005513
A17: HDD | B17: C_WR_WN_UNDERPERFORM_001 | C17: Cost sharing rate for underperform | D17: % | E17: Price Review 2019 | F17: 0.5 | H17: 0.5
A18: HDD | B18: C_WWN_OUTPERFORM_001 | C18: Cost sharing rate for outperform | D18: % | E18: Price Review 2019 | F18: 0.5911325572 | H18: 0.5911325572
A19: HDD | B19: C_WWN_UNDERPERFORM_001 | C19: Cost sharing rate for underperform | D19: % | E19: Price Review 2019 | F19: 0.5 | H19: 0.5
A20: NES | B20: C_WR_WN_OUTPERFORM_001 | C20: Cost sharing rate for outperform | D20: % | E20: Price Review 2019 | F20: 0.4619024717 | G20: 0.45 | H20: 0.45
A21: NES | B21: C_WR_WN_UNDERPERFORM_001 | C21: Cost sharing rate for underperform | D21: % | E21: Price Review 2019 | F21: 0.5380975283 | G21: 0.55 | H21: 0.55
A22: NES | B22: C_WWN_OUTPERFORM_001 | C22: Cost sharing rate for outperform | D22: % | E22: Price Review 2019 | F22: 0.3440448377 | G22: 0.45 | H22: 0.45
A23: NES | B23: C_WWN_UNDERPERFORM_001 | C23: Cost sharing rate for underperform | D23: % | E23: Price Review 2019 | F23: 0.6559551623 | G23: 0.55 | H23: 0.55
A24: SVE | B24: C_WR_WN_OUTPERFORM_001 | C24: Cost sharing rate for outperform | D24: % | E24: Price Review 2019 | F24: 0.5 | H24: 0.5
A25: SVE | B25: C_WR_WN_UNDERPERFORM_001 | C25: Cost sharing rate for underperform | D25: % | E25: Price Review 2019 | F25: 0.5 | H25: 0.5
A26: SVE | B26: C_WWN_OUTPERFORM_001 | C26: Cost sharing rate for outperform | D26: % | E26: Price Review 2019 | F26: 0.5 | H26: 0.5
A27: SVE | B27: C_WWN_UNDERPERFORM_001 | C27: Cost sharing rate for underperform | D27: % | E27: Price Review 2019 | F27: 0.5 | H27: 0.5
A28: SWB | B28: C_WR_WN_OUTPERFORM_001 | C28: Cost sharing rate for outperform | D28: % | E28: Price Review 2019 | F28: 0.5 | H28: 0.5
A29: SWB | B29: C_WR_WN_UNDERPERFORM_001 | C29: Cost sharing rate for underperform | D29: % | E29: Price Review 2019 | F29: 0.5 | H29: 0.5
A30: SWB | B30: C_WWN_OUTPERFORM_001 | C30: Cost sharing rate for outperform | D30: % | E30: Price Review 2019 | F30: 0.5 | H30: 0.5
A31: SWB | B31: C_WWN_UNDERPERFORM_001 | C31: Cost sharing rate for underperform | D31: % | E31: Price Review 2019 | F31: 0.5 | H31: 0.5
A32: SRN | B32: C_WR_WN_OUTPERFORM_001 | C32: Cost sharing rate for outperform | D32: % | E32: Price Review 2019 | F32: 0.3644785983 | H32: 0.3644785983
A33: SRN | B33: C_WR_WN_UNDERPERFORM_001 | C33: Cost sharing rate for underperform | D33: % | E33: Price Review 2019 | F33: 0.6355214017 | H33: 0.6355214017
A34: SRN | B34: C_WWN_OUTPERFORM_001 | C34: Cost sharing rate for outperform | D34: % | E34: Price Review 2019 | F34: 0.3607645973 | H34: 0.3607645973
A35: SRN | B35: C_WWN_UNDERPERFORM_001 | C35: Cost sharing rate for underperform | D35: % | E35: Price Review 2019 | F35: 0.6392354027 | H35: 0.6392354027
A36: TMS | B36: C_WR_WN_OUTPERFORM_001 | C36: Cost sharing rate for outperform | D36: % | E36: Price Review 2019 | F36: 0.3227046095 | H36: 0.3227046095
A37: TMS | B37: C_WR_WN_UNDERPERFORM_001 | C37: Cost sharing rate for underperform | D37: % | E37: Price Review 2019 | F37: 0.75 | H37: 0.75
A38: TMS | B38: C_WWN_OUTPERFORM_001 | C38: Cost sharing rate for outperform | D38: % | E38: Price Review 2019 | F38: 0.4422123213 | H38: 0.4422123213
A39: TMS | B39: C_WWN_UNDERPERFORM_001 | C39: Cost sharing rate for underperform | D39: % | E39: Price Review 2019 | F39: 0.75 | H39: 0.75
A40: NWT | B40: C_WR_WN_OUTPERFORM_001 | C40: Cost sharing rate for outperform | D40: % | E40: Price Review 2019 | F40: 0.5 | H40: 0.5
A41: NWT | B41: C_WR_WN_UNDERPERFORM_001 | C41: Cost sharing rate for underperform | D41: % | E41: Price Review 2019 | F41: 0.5 | H41: 0.5
A42: NWT | B42: C_WWN_OUTPERFORM_001 | C42: Cost sharing rate for outperform | D42: % | E42: Price Review 2019 | F42: 0.5 | H42: 0.5
A43: NWT | B43: C_WWN_UNDERPERFORM_001 | C43: Cost sharing rate for underperform | D43: % | E43: Price Review 2019 | F43: 0.5 | H43: 0.5
A44: WSX | B44: C_WR_WN_OUTPERFORM_001 | C44: Cost sharing rate for outperform | D44: % | E44: Price Review 2019 | F44: 0.4386353668 | H44: 0.4386353668
A45: WSX | B45: C_WR_WN_UNDERPERFORM_001 | C45: Cost sharing rate for underperform | D45: % | E45: Price Review 2019 | F45: 0.5613646332 | H45: 0.5613646332
A46: WSX | B46: C_WWN_OUTPERFORM_001 | C46: Cost sharing rate for outperform | D46: % | E46: Price Review 2019 | F46: 0.4132858401 | H46: 0.4132858401
A47: WSX | B47: C_WWN_UNDERPERFORM_001 | C47: Cost sharing rate for underperform | D47: % | E47: Price Review 2019 | F47: 0.5867141599 | H47: 0.5867141599
A48: YKY | B48: C_WR_WN_OUTPERFORM_001 | C48: Cost sharing rate for outperform | D48: % | E48: Price Review 2019 | F48: 0.3806022445 | G48: 0.45 | H48: 0.45
A49: YKY | B49: C_WR_WN_UNDERPERFORM_001 | C49: Cost sharing rate for underperform | D49: % | E49: Price Review 2019 | F49: 0.6193977555 | G49: 0.55 | H49: 0.55
A50: YKY | B50: C_WWN_OUTPERFORM_001 | C50: Cost sharing rate for outperform | D50: % | E50: Price Review 2019 | F50: 0.3320545747 | G50: 0.45 | H50: 0.45
A51: YKY | B51: C_WWN_UNDERPERFORM_001 | C51: Cost sharing rate for underperform | D51: % | E51: Price Review 2019 | F51: 0.6679454253 | G51: 0.55 | H51: 0.55
A52: AFW | B52: C_WR_WN_OUTPERFORM_001 | C52: Cost sharing rate for outperform | D52: % | E52: Price Review 2019 | F52: 0.4651435963 | H52: 0.4651435963
A53: AFW | B53: C_WR_WN_UNDERPERFORM_001 | C53: Cost sharing rate for underperform | D53: % | E53: Price Review 2019 | F53: 0.5348564037 | H53: 0.5348564037
A54: AFW | B54: C_WWN_OUTPERFORM_001 | C54: Cost sharing rate for outperform | D54: % | E54: Price Review 2019 | F54: 0.65 | H54: 0.65
A55: AFW | B55: C_WWN_UNDERPERFORM_001 | C55: Cost sharing rate for underperform | D55: % | E55: Price Review 2019 | F55: 0.5 | H55: 0.5
A56: BRL | B56: C_WR_WN_OUTPERFORM_001 | C56: Cost sharing rate for outperform | D56: % | E56: Price Review 2019 | F56: 0.3976002152 | G56: 0.45 | H56: 0.45
A57: BRL | B57: C_WR_WN_UNDERPERFORM_001 | C57: Cost sharing rate for underperform | D57: % | E57: Price Review 2019 | F57: 0.6023997848 | G57: 0.55 | H57: 0.55
A58: BRL | B58: C_WWN_OUTPERFORM_001 | C58: Cost sharing rate for outperform | D58: % | E58: Price Review 2019 | F58: 0.65 | G58: 0.45 | H58: 0.45
A59: BRL | B59: C_WWN_UNDERPERFORM_001 | C59: Cost sharing rate for underperform | D59: % | E59: Price Review 2019 | F59: 0.5 | G59: 0.55 | H59: 0.55
A60: PRT | B60: C_WR_WN_OUTPERFORM_001 | C60: Cost sharing rate for outperform | D60: % | E60: Price Review 2019 | F60: 0.600827488 | H60: 0.600827488
A61: PRT | B61: C_WR_WN_UNDERPERFORM_001 | C61: Cost sharing rate for underperform | D61: % | E61: Price Review 2019 | F61: 0.5 | H61: 0.5
A62: PRT | B62: C_WWN_OUTPERFORM_001 | C62: Cost sharing rate for outperform | D62: % | E62: Price Review 2019 | F62: 0.65 | H62: 0.65
A63: PRT | B63: C_WWN_UNDERPERFORM_001 | C63: Cost sharing rate for underperform | D63: % | E63: Price Review 2019 | F63: 0.5 | H63: 0.5
A64: SEW | B64: C_WR_WN_OUTPERFORM_001 | C64: Cost sharing rate for outperform | D64: % | E64: Price Review 2019 | F64: 0.3808896849 | H64: 0.3808896849
A65: SEW | B65: C_WR_WN_UNDERPERFORM_001 | C65: Cost sharing rate for underperform | D65: % | E65: Price Review 2019 | F65: 0.6191103151 | H65: 0.6191103151
A66: SEW | B66: C_WWN_OUTPERFORM_001 | C66: Cost sharing rate for outperform | D66: % | E66: Price Review 2019 | F66: 0.65 | H66: 0.65
A67: SEW | B67: C_WWN_UNDERPERFORM_001 | C67: Cost sharing rate for underperform | D67: % | E67: Price Review 2019 | F67: 0.5 | H67: 0.5
A68: SSC | B68: C_WR_WN_OUTPERFORM_001 | C68: Cost sharing rate for outperform | D68: % | E68: Price Review 2019 | F68: 0.4506148426 | H68: 0.4506148426
A69: SSC | B69: C_WR_WN_UNDERPERFORM_001 | C69: Cost sharing rate for underperform | D69: % | E69: Price Review 2019 | F69: 0.5493851574 | H69: 0.5493851574
A70: SSC | B70: C_WWN_OUTPERFORM_001 | C70: Cost sharing rate for outperform | D70: % | E70: Price Review 2019 | F70: 0.65 | H70: 0.65
A71: SSC | B71: C_WWN_UNDERPERFORM_001 | C71: Cost sharing rate for underperform | D71: % | E71: Price Review 2019 | F71: 0.5 | H71: 0.5
A72: SES | B72: C_WR_WN_OUTPERFORM_001 | C72: Cost sharing rate for outperform | D72: % | E72: Price Review 2019 | F72: 0.4463122703 | H72: 0.4463122703
A73: SES | B73: C_WR_WN_UNDERPERFORM_001 | C73: Cost sharing rate for underperform | D73: % | E73: Price Review 2019 | F73: 0.5536877297 | H73: =IF(ISBLANK(G73),F73,G73) -> 0.5536877297
A74: SES | B74: C_WWN_OUTPERFORM_001 | C74: Cost sharing rate for outperform | D74: % | E74: Price Review 2019 | F74: 0.65 | H74: 0.65
A75: SES | B75: C_WWN_UNDERPERFORM_001 | C75: Cost sharing rate for underperform | D75: % | E75: Price Review 2019 | F75: 0.5 | H75: 0.5

Sheet 23-24 APR data
C2: TEAP APR 23/24 | E2: Run on 07 Nov 2024 10:29
A4: Company Acronym | B4: Item Code | C4: Item Description | D4: Item Unit | E4: Item Table Suite | F4: 2023-24
A5: Company Acronym | B5: Item Code | C5: Item Description | D5: Item Unit | E5: Item Table Suite | F5: Cyclical
A6: Company Acronym | B6: Item Code | C6: Item Description | D6: Item Unit | E6: Item Table Suite | F6: Default for Cyclical base run
A7: Company Acronym | B7: Item Code | C7: Item Description | D7: Item Unit | E7: Item Table Suite | F7: Latest
A8: SWB | B8: B0292TET_ASC | C8: Total enhancement - Total enhancement expenditure - Accelerated scheme costs - Expenditure in report year (AMP8 only) | D8: £m | E8: Cyclical Foundation | F8: 0.124
A9: SWB | B9: A4X_006TE_WR | C9: Accelerated infrastructure delivery project - Total accelerated programme expenditure - Water resources - Expenditure in report year | D9: % | E9: Cyclical Foundation | F9: 0
A10: SWB | B10: B0292TET_TC | C10: Total enhancement - Total enhancement expenditure - Transition costs - Expenditure in report year (AMP8 only) | D10: £m | E10: Cyclical Foundation | F10: 0
A11: SWB | B11: B0373TET_ASC | C11: Total enhancement - Total enhancement expenditure - Accelerated scheme costs - Expenditure in report year (AMP8 only) | D11: £m | E11: Cyclical Foundation | F11: 0.132
A12: SWB | B12: B0373TET_TC | C12: Total enhancement - Total enhancement expenditure - Transition costs - Expenditure in report year (AMP8 only) | D12: £m | E12: Cyclical Foundation | F12: 0
A13: SWB | B13: B0212EIT_TC | C13: EA/NRW environmental programme (WINEP/NEP) - Ecological improvements at abstractions - Transition costs - Expenditure in report year (AMP8 only) | D13: £m | E13: Cyclical Foundation | F13: 0 | G13: Water Framework Directive
A14: SWB | B14: B0215ERT_TC | C14: EA/NRW environmental programme (WINEP/NEP) - Eels Regulations (measures at intakes) - Transition costs - Expenditure in report year (AMP8 only) | D14: £m | E14: Cyclical Foundation | F14: 0 | G14: Eels/fish screens
A15: SWB | B15: B0218INT_TC | C15: EA/NRW environmental programme (WINEP/NEP) - Invasive Non Native Species - Transition costs - Expenditure in report year (AMP8 only) | D15: £m | E15: Cyclical Foundation | F15: 0 | G15: Invasive non native species
A16: SWB | B16: B0221DWT_TC | C16: EA/NRW environmental programme (WINEP/NEP) - Drinking Water Protected Areas (schemes) - Transition costs - Expenditure in report year (AMP8 only) | D16: £m | E16: Cyclical Foundation | F16: 0 | G16: Drinking water protected areas
A17: SWB | B17: B0224WFT_TC | C17: EA/NRW environmental programme (WINEP/NEP) - Water Framework Directive measures - Transition costs - Expenditure in report year (AMP8 only) | D17: £m | E17: Cyclical Foundation | F17: 0 | G17: Water Framework Directive
A18: SWB | B18: B0227IVT_TC | C18: EA/NRW environmental programme (WINEP/NEP) - Investigations - Transition costs - Expenditure in report year (AMP8 only) | D18: £m | E18: Cyclical Foundation | F18: 0 | G18: Water - investigations
A19: SWB | B19: B0231SST_TC | C19: Supply-demand balance - Supply-side improvements delivering benefits in 2020-2025 - Transition costs - Expenditure in report year (AMP8 only) | D19: £m | E19: Cyclical Foundation | F19: 0 | G19: Supply
A20: SWB | B20: B0234DST_TC | C20: Supply-demand balance - Demand-side improvements delivering benefits in 2020-2025 (excl leakage and metering) - Transition costs - Expenditure in report year (AMP8 only) | D20: £m | E20: Cyclical Foundation | F20: 0 | G20: Demand
A21: SWB | B21: B0237LIT_TC | C21: Supply-demand balance - Leakage improvements delivering benefits in 2020-2025 - Transition costs - Expenditure in report year (AMP8 only) | D21: £m | E21: Cyclical Foundation | F21: 0 | G21: Leakage
A22: SWB | B22: B0240IIT_TC | C22: Supply-demand balance - Internal interconnectors delivering benefits in 2020-2025 - Transition costs - Expenditure in report year (AMP8 only) | D22: £m | E22: Cyclical Foundation | F22: 0 | G22: Supply-interconnectors
A23: SWB | B23: B0243SDT_TC | C23: Supply-demand balance - Supply demand balance improvements delivering benefits starting from 2026 - Transition costs - Expenditure in report year (AMP8 only) | D23: £m | E23: Cyclical Foundation | F23: 0 | G23: Supply
A24: SWB | B24: B0246SRT_TC | C24: Supply-demand balance - Strategic regional water resources - Transition costs - Expenditure in report year (AMP8 only) | D24: £m | E24: Cyclical Foundation | F24: 0 | G24: SRO
A25: SWB | B25: B0257TMT_TC | C25: Metering - Total metering expenditure - Transition costs - Expenditure in report year (AMP8 only) | D25: £m | E25: Cyclical Foundation | F25: 0 | G25: Metering
A26: SWB | B26: B0260ITT_TC | C26: Other enhancement - Improvements to taste, odour and colour - Transition costs - Expenditure in report year (AMP8 only) | D26: £m | E26: Cyclical Foundation | F26: 0 | G26: Taste, odour and colour
A27: SWB | B27: B0266ART_TC | C27: Other enhancement - Addressing raw water deterioration (total) - Transition costs - Expenditure in report year (AMP8 only) | D27: £m | E27: Cyclical Foundation | F27: 0 | G27: Raw water deterioration
A28: SWB | B28: B0269IRT_TC | C28: Other enhancement - Improvements to river flow - Transition costs - Expenditure in report year (AMP8 only) | D28: £m | E28: Cyclical Foundation | F28: 0
A29: SWB | B29: B0272ERT_TC | C29: Other enhancement - Enhancing resilience to low probability high consequence events - Transition costs - Expenditure in report year (AMP8 only) | D29: £m | E29: Cyclical Foundation | F29: 0 | G29: Water - resilience
A30: SWB | B30: B0263MLT_TC | C30: Other enhancement - Meeting lead standards (total) - Transition costs - Expenditure in report year (AMP8 only) | D30: £m | E30: Cyclical Foundation | F30: 0 | G30: Lead
A31: SWB | B31: B0275SST_TC | C31: Other enhancement - Security - SEMD - Transition costs - Expenditure in report year (AMP8 only) | D31: £m | E31: Cyclical Foundation | F31: 0 | G31: SEMD
A32: SWB | B32: B0278SNT_TC | C32: Other enhancement - Security - Non-SEMD - Transition costs - Expenditure in report year (AMP8 only) | D32: £m | E32: Cyclical Foundation | F32: 0 | G32: Cyber
A33: SWB | B33: B0279ALC_TC | C33: Other enhancement - Additional line 1 - Transition costs - Expenditure in report year (AMP8 only) | D33: £m | E33: Cyclical Foundation | F33: 0 | G33: Water - freeform
A34: SWB | B34: B0280ALO_TC | C34: Other enhancement - Additional line 1 - Transition costs - Expenditure in report year (AMP8 only) | D34: £m | E34: Cyclical Foundation | F34: 0 | G34: Water - freeform
A35: SWB | B35: B0281ALC_TC | C35: Other enhancement - Additional line 2 - Transition costs - Expenditure in report year (AMP8 only) | D35: £m | E35: Cyclical Foundation | F35: 0 | G35: Water - freeform
A36: SWB | B36: B0282ALO_TC | C36: Other enhancement - Additional line 2 - Transition costs - Expenditure in report year (AMP8 only) | D36: £m | E36: Cyclical Foundation | F36: 0 | G36: Water - freeform
A37: SWB | B37: B0283ALC_TC | C37: Other enhancement - Additional line 3 - Transition costs - Expenditure in report year (AMP8 only) | D37: £m | E37: Cyclical Foundation | F37: 0 | G37: Water - freeform
A38: SWB | B38: B0284ALO_TC | C38: Other enhancement - Additional line 3 - Transition costs - Expenditure in report year (AMP8 only) | D38: £m | E38: Cyclical Foundation | F38: 0 | G38: Water - freeform
A39: SWB | B39: B0285ALC_TC | C39: Other enhancement - Additional line 4 - Transition costs - Expenditure in report year (AMP8 only) | D39: £m | E39: Cyclical Foundation | F39: 0 | G39: Water - freeform
A40: SWB | B40: B0286ALO_TC | C40: Other enhancement - Additional line 4 - Transition costs - Expenditure in report year (AMP8 only) | D40: £m | E40: Cyclical Foundation | F40: 0 | G40: Water - freeform
A41: SWB | B41: B0287ALC_TC | C41: Other enhancement - Additional line 5 - Transition costs - Expenditure in report year (AMP8 only) | D41: £m | E41: Cyclical Foundation | F41: 0 | G41: Water - freeform
A42: SWB | B42: B0288ALO_TC | C42: Other enhancement - Additional line 5 - Transition costs - Expenditure in report year (AMP8 only) | D42: £m | E42: Cyclical Foundation | F42: 0 | G42: Water - freeform
A43: SWB | B43: B0286ALO_6TC | C43: Other enhancement - Additional line 6 - Transition costs - Expenditure in report year (AMP8 only) | D43: % | E43: Cyclical Foundation | F43: 0 | G43: Water - freeform
A44: SWB | B44: B0287ALC_6TC | C44: Other enhancement - Additional line 6 - Transition costs - Expenditure in report year (AMP8 only) | D44: % | E44: Cyclical Foundation | F44: 0 | G44: Water - freeform
A45: SWB | B45: B0286ALO_7TC | C45: Other enhancement - Additional line 7 - Transition costs - Expenditure in report year (AMP8 only) | D45: % | E45: Cyclical Foundation | F45: 0 | G45: Water - freeform
A46: SWB | B46: B0287ALC_7TC | C46: Other enhancement - Additional line 7 - Transition costs - Expenditure in report year (AMP8 only) | D46: % | E46: Cyclical Foundation | F46: 0 | G46: Water - freeform
A47: SWB | B47: B0286ALO_8TC | C47: Other enhancement - Additional line 8 - Transition costs - Expenditure in report year (AMP8 only) | D47: % | E47: Cyclical Foundation | F47: 0 | G47: Water - freeform
A48: SWB | B48: B0287ALC_8TC | C48: Other enhancement - Additional line 8 - Transition costs - Expenditure in report year (AMP8 only) | D48: % | E48: Cyclical Foundation | F48: 0 | G48: Water - freeform
A49: SWB | B49: B0286ALO_9TC | C49: Other enhancement - Additional line 9 - Transition costs - Expenditure in report year (AMP8 only) | D49: % | E49: Cyclical Foundation | F49: 0 | G49: Water - freeform
A50: SWB | B50: B0287ALC_9TC | C50: Other enhancement - Additional line 9 - Transition costs - Expenditure in report year (AMP8 only) | D50: % | E50: Cyclical Foundation | F50: 0 | G50: Water - freeform
A51: SWB | B51: B0286ALO_10TC | C51: Other enhancement - Additional line 10 - Transition costs - Expenditure in report year (AMP8 only) | D51: % | E51: Cyclical Foundation | F51: 0 | G51: Water - freeform
A52: SWB | B52: B0287ALC_10TC | C52: Other enhancement - Additional line 10 - Transition costs - Expenditure in report year (AMP8 only) | D52: % | E52: Cyclical Foundation | F52: 0 | G52: Water - freeform
A53: SWB | B53: B0295CDT_TC | C53: EA/NRW environmental programme (WINEP/NEP) - Conservation drivers - Transition costs - Expenditure in report year (AMP8 only) | D53: £m | E53: Cyclical Foundation | F53: 0
A54: SWB | B54: B0298EDT_TC | C54: EA/NRW environmental programme (WINEP/NEP) - Event Duration Monitoring at intermittent discharges - Transition costs - Expenditure in report year (AMP8 only) | D54: £m | E54: Cyclical Foundation | F54: 0 | G54: Event duration monitoring
A55: SWB | B55: B0301FMT_TC | C55: EA/NRW environmental programme (WINEP/NEP) - Flow monitoring at sewage treatment works - Transition costs - Expenditure in report year (AMP8 only) | D55: £m | E55: Cyclical Foundation | F55: 0 | G55: Flow monitoring STW
A56: SWB | B56: B0304SIT_TC | C56: EA/NRW environmental programme (WINEP/NEP) - Schemes to increase flow to full treatment - Transition costs - Expenditure in report year (AMP8 only) | D56: £m | E56: Cyclical Foundation | F56: 0 | G56: Flow to full treatment
A57: SWB | B57: B0307SIT_TC | C57: EA/NRW environmental programme (WINEP/NEP) - Schemes to increase storm tank capacity - Transition costs - Expenditure in report year (AMP8 only) | D57: £m | E57: Cyclical Foundation | F57: 0 | G57: Storm overflow
A58: SWB | B58: BO310_ETC | C58: Schemes to provide additional effective storage at sewage treatment works through green infrastructure.- Totex - Transition costs | D58: £m | E58: Cyclical Foundation | F58: 0 | G58: Storm overflow
A59: SWB | B59: B0310SST_TC | C59: EA/NRW environmental programme (WINEP/NEP) - Total for storage schemes in the network to reduce spill frequency at CSOs etc (grey + green) - Transition costs - Expenditure in report year (AMP8 only) | D59: £m | E59: Cyclical Foundation | F59: 0 | G59: Storm overflow
A60: SWB | B60: B0313CRT_TC | C60: EA/NRW environmental programme (WINEP/NEP) - Chemical removals schemes - Transition costs - Expenditure in report year (AMP8 only) | D60: £m | E60: Cyclical Foundation | F60: 0 | G60: Chemicals removal
A61: SWB | B61: B0316CMT_TC | C61: EA/NRW environmental programme (WINEP/NEP) - Chemicals monitoring/ investigations/ options appraisals - Transition costs - Expenditure in report year (AMP8 only) | D61: £m | E61: Cyclical Foundation | F61: 0 | G61: Chemical investigations
A62: SWB | B62: B0319NRT_TC | C62: EA/NRW environmental programme (WINEP/NEP) - Nitrogen removal - Transition costs - Expenditure in report year (AMP8 only) | D62: £m | E62: Cyclical Foundation | F62: 0 | G62: n removal
A63: SWB | B63: B0322PRT_TC | C63: EA/NRW environmental programme (WINEP/NEP) - Phosphorus removal - Transition costs - Expenditure in report year (AMP8 only) | D63: £m | E63: Cyclical Foundation | F63: 0 | G63: p removal
A64: SWB | B64: B0325RST_TC | C64: EA/NRW environmental programme (WINEP/NEP) - Reduction of sanitary parameters - Transition costs - Expenditure in report year (AMP8 only) | D64: £m | E64: Cyclical Foundation | F64: 0 | G64: Sanitary parameters
A65: SWB | B65: B0328UVT_TC | C65: EA/NRW environmental programme (WINEP/NEP) - UV disinfection (or similar) - Transition costs - Expenditure in report year (AMP8 only) | D65: £m | E65: Cyclical Foundation | F65: 0 | G65: Microbiological treatment
A66: SWB | B66: B0331INT_TC | C66: EA/NRW environmental programme (WINEP/NEP) - Investigations - Transition costs - Expenditure in report year (AMP8 only) | D66: £m | E66: Cyclical Foundation | F66: 0 | G66: Waste - investigations
A67: SWB | B67: B0335GST_TC | C67: Other enhancement - Growth at sewage treatment works (excluding sludge treatment) - Transition costs - Expenditure in report year (AMP8 only) | D67: £m | E67: Cyclical Foundation | F67: 0 | G67: Growth at STW
A68: SWB | B68: B0338RFT_TC | C68: Other enhancement - Reduce flooding risk for properties - Transition costs - Expenditure in report year (AMP8 only) | D68: £m | E68: Cyclical Foundation | F68: 0 | G68: Base
A69: SWB | B69: B0341FTT_TC | C69: Other enhancement - First time sewerage - Transition costs - Expenditure in report year (AMP8 only) | D69: £m | E69: Cyclical Foundation | F69: 0 | G69: First time sewerage
A70: SWB | B70: B0344SET_TC | C70: Other enhancement - Sludge enhancement (quality) - Transition costs - Expenditure in report year (AMP8 only) | D70: £m | E70: Cyclical Foundation | F70: 0 | G70: Base
A71: SWB | B71: B0347SET_TC | C71: Other enhancement - Sludge enhancement (growth) - Transition costs - Expenditure in report year (AMP8 only) | D71: £m | E71: Cyclical Foundation | F71: 0 | G71: Base
A72: SWB | B72: B0350ODT_TC | C72: Other enhancement - Odour - Transition costs - Expenditure in report year (AMP8 only) | D72: £m | E72: Cyclical Foundation | F72: 0 | G72: Odour and nuisance
A73: SWB | B73: B0353ERT_TC | C73: Other enhancement - Enhancing resilience to low probability high consequence events - Transition costs - Expenditure in report year (AMP8 only) | D73: £m | E73: Cyclical Foundation | F73: 0 | G73: Waste - resilience
A74: SWB | B74: B0356SST_TC | C74: Other enhancement - Security - SEMD - Transition costs - Expenditure in report year (AMP8 only) | D74: £m | E74: Cyclical Foundation | F74: 0 | G74: SEMD
A75: SWB | B75: B0359SNT_TC | C75: Other enhancement - Security - Non-SEMD - Transition costs - Expenditure in report year (AMP8 only) | D75: £m | E75: Cyclical Foundation | F75: 0 | G75: Security cyber
A76: SWB | B76: B0360ADC_TC | C76: Other enhancement - Additional line 1 - Transition costs - Expenditure in report year (AMP8 only) | D76: £m | E76: Cyclical Foundation | F76: 0 | G76: Waste - freeform
A77: SWB | B77: B0361ADO_TC | C77: Other enhancement - Additional line 1 - Transition costs - Expenditure in report year (AMP8 only) | D77: £m | E77: Cyclical Foundation | F77: 0 | G77: Waste - freeform
A78: SWB | B78: B0362ADC_TC | C78: Other enhancement - Additional line 2 - Transition costs - Expenditure in report year (AMP8 only) | D78: £m | E78: Cyclical Foundation | F78: 0 | G78: Waste - freeform
A79: SWB | B79: B0363ADO_TC | C79: Other enhancement - Additional line 2 - Transition costs - Expenditure in report year (AMP8 only) | D79: £m | E79: Cyclical Foundation | F79: 0 | G79: Waste - freeform
A80: SWB | B80: B0364ADC_TC | C80: Other enhancement - Additional line 3 - Transition costs - Expenditure in report year (AMP8 only) | D80: £m | E80: Cyclical Foundation | F80: 0 | G80: Waste - freeform
A81: SWB | B81: B0365ADO_TC | C81: Other enhancement - Additional line 3 - Transition costs - Expenditure in report year (AMP8 only) | D81: £m | E81: Cyclical Foundation | F81: 0 | G81: Waste - freeform
A82: SWB | B82: B0366ADC_TC | C82: Other enhancement - Additional line 4 - Transition costs - Expenditure in report year (AMP8 only) | D82: £m | E82: Cyclical Foundation | F82: 0 | G82: Waste - freeform
A83: SWB | B83: B0367ADO_TC | C83: Other enhancement - Additional line 4 - Transition costs - Expenditure in report year (AMP8 only) | D83: £m | E83: Cyclical Foundation | F83: 0 | G83: Waste - freeform
A84: SWB | B84: B0368ADC_TC | C84: Other enhancement - Additional line 5 - Transition costs - Expenditure in report year (AMP8 only) | D84: £m | E84: Cyclical Foundation | F84: 0 | G84: Waste - freeform
A85: SWB | B85: B0369ADO_TC | C85: Other enhancement - Additional line 5 - Transition costs - Expenditure in report year (AMP8 only) | D85: £m | E85: Cyclical Foundation | F85: 0 | G85: Waste - freeform
A86: SWB | B86: B0368ADC_6TC | C86: Other enhancement - Additional line 6 - Transition costs - Expenditure in report year (AMP8 only) | D86: % | E86: Cyclical Foundation | F86: 0 | G86: Waste - freeform
A87: SWB | B87: B0368ADC1_6TC | C87: Other enhancement - Additional line 6 - Transition costs - Expenditure in report year (AMP8 only_ - Opex | D87: £m | E87: Cyclical Foundation | F87: 0 | G87: Waste - freeform
A88: SWB | B88: B0368ADC2_6TC | C88: Other enhancement - Additional line 7 - Transition costs - Expenditure in report year (AMP8 only_ - Capex | D88: £m | E88: Cyclical Foundation | F88: 0 | G88: Waste - freeform
A89: SWB | B89: B0369ADO_7TC | C89: Other enhancement - Additional line 7 - Transition costs - Expenditure in report year (AMP8 only) | D89: % | E89: Cyclical Foundation | F89: 0 | G89: Waste - freeform
A90: SWB | B90: B0368ADC_8TC | C90: Other enhancement - Additional line 8 - Transition costs - Expenditure in report year (AMP8 only) | D90: % | E90: Cyclical Foundation | F90: 0 | G90: Waste - freeform
A91: SWB | B91: B0369ADO_8TC | C91: Other enhancement - Additional line 8 - Transition costs - Expenditure in report year (AMP8 only) | D91: % | E91: Cyclical Foundation | F91: 0 | G91: Waste - freeform
A92: SWB | B92: B0368ADC_9TC | C92: Other enhancement - Additional line 9 - Transition costs - Expenditure in report year (AMP8 only_ - Capex | D92: £m | E92: Cyclical Foundation | F92: 0 | G92: Waste - freeform
A93: SWB | B93: B0369ADO_9TC | C93: Other enhancement - Additional line 9 - Transition costs - Expenditure in report year (AMP8 only_ - Opex | D93: £m | E93: Cyclical Foundation | F93: 0 | G93: Waste - freeform
A94: SWB | B94: B0368ADC_10TC | C94: Other enhancement - Additional line 10 - Transition costs - Expenditure in report year (AMP8 only_ - Capex | D94: £m | E94: Cyclical Foundation | F94: 0 | G94: Waste - freeform
A95: SWB | B95: B0369ADO_10TC | C95: Other enhancement - Additional line 10 - Transition costs - Expenditure in report year (AMP8 only_ - Opex | D95: £m | E95: Cyclical Foundation | F95: 0 | G95: Waste - freeform

Sheet 24-25 ADD data
C2: TEAP 24/25 ADD | E2: Run on 07 Nov 2024 10:31
A4: Company Acronym | B4: Item Code | C4: Item Description | D4: Item Unit | E4: Item Table Suite | F4: 2024-25
A5: Company Acronym | B5: Item Code | C5: Item Description | D5: Item Unit | E5: Item Table Suite | F5: Price Review 2024
A6: Company Acronym | B6: Item Code | C6: Item Description | D6: Item Unit | E6: Item Table Suite | F6: Run 11 - PR24 FD Data
A7: Company Acronym | B7: Item Code | C7: Item Description | D7: Item Unit | E7: Item Table Suite | F7: Latest
A8: SWB | B8: CW12_140WR_PR24_POSTFS | C8: Total transitional expenditure - Total transitional expenditure; water totex - Water resources | D8: £m | E8: Price Review 2024 | F8: 0
A9: SWB | B9: CW12_140TOT_PR24_POSTFS | C9: Total transitional expenditure - Total transitional expenditure; water totex - Total | D9: £m | E9: Price Review 2024 | F9: 0
A10: SWB | B10: CW17_140WR_PR24_POSTFS | C10: Total accelerated programme - Total accelerated programme expenditure; water totex - Water resources | D10: £m | E10: Price Review 2024 | F10: 0
A11: SWB | B11: CW17_140TOT_PR24_POSTFS | C11: Total accelerated programme - Total accelerated programme expenditure; water totex - Total | D11: £m | E11: Price Review 2024 | F11: 4.304
A12: SWB | B12: CWW12_195TOT_PR24_POSTFS | C12: Total enhancement - Total transitional expenditure; wastewater/bioresources totex - Total | D12: £m | E12: Price Review 2024 | F12: 74.17377611
A13: SWB | B13: CWW17_195TOT_PR24_POSTFS | C13: Total enhancement - Total enhancement expenditure; wastewater/bioresources totex - Total | D13: £m | E13: Price Review 2024 | F13: 20.19619105
A14: SWB | B14: CW12_003TOT_PR24_POSTFS | C14: EA/NRW environmental programme (WINEP/NEP) - Biodiversity and conservation; (WINEP/NEP) water totex - Total | D14: £m | E14: Price Review 2024 | F14: 0 | G14: Biodiversity and conservation
A15: SWB | B15: CW12_006TOT_PR24_POSTFS | C15: EA/NRW environmental programme (WINEP/NEP) - Eels/fish entrainment screens; (WINEP/NEP) water totex - Total | D15: £m | E15: Price Review 2024 | F15: 0 | G15: Eels/fish screens
A16: SWB | B16: CW12_009TOT_PR24_POSTFS | C16: EA/NRW environmental programme (WINEP/NEP) - Eels/fish passes; (WINEP/NEP) water totex - Total | D16: £m | E16: Price Review 2024 | F16: 0 | G16: Eels/fish passes
A17: SWB | B17: CW12_012TOT_PR24_POSTFS | C17: EA/NRW environmental programme (WINEP/NEP) - Invasive Non Native Species; (WINEP/NEP) water totex - Total | D17: £m | E17: Price Review 2024 | F17: 0 | G17: Invasive non native species
A18: SWB | B18: CW12_015TOT_PR24_POSTFS | C18: EA/NRW environmental programme (WINEP/NEP) - Drinking Water Protected Areas; (WINEP/NEP) water totex - Total | D18: £m | E18: Price Review 2024 | F18: 0 | G18: Drinking water protected areas
A19: SWB | B19: CW12_018TOT_PR24_POSTFS | C19: EA/NRW environmental programme (WINEP/NEP) - Water Framework Directive; (WINEP/NEP) water totex - Total | D19: £m | E19: Price Review 2024 | F19: 0 | G19: Water Framework Directive
A20: SWB | B20: CW12_021TOT_PR24_POSTFS | C20: EA/NRW environmental programme (WINEP/NEP) - Wetland creation; (WINEP/NEP) water totex - Total | D20: £m | E20: Price Review 2024 | F20: 0 | G20: Wetland creation
A21: SWB | B21: CW12_024TOT_PR24_POSTFS | C21: EA/NRW environmental programme (WINEP/NEP) - Trade effluent discharge flow monitoring; (WINEP/NEP) water totex - Total | D21: £m | E21: Price Review 2024 | F21: 0 | G21: Discharge monitoring
A22: SWB | B22: CW12_027TOT_PR24_POSTFS | C22: EA/NRW environmental programme (WINEP/NEP) - 25 year environment plan; (WINEP/NEP) water totex - Total | D22: £m | E22: Price Review 2024 | F22: 0 | G22: 25-year environment plan
A23: SWB | B23: CW12_039TOT_PR24_POSTFS | C23: EA/NRW environmental programme (WINEP/NEP) - Investigations total; (WINEP/NEP) water totex - Total | D23: £m | E23: Price Review 2024 | F23: 0 | G23: Water - investigations
A24: SWB | B24: CW12_043TOT_PR24_POSTFS | C24: Supply-demand balance - Supply-side improvements delivering benefits in 2025-2030; SDB totex - Total | D24: £m | E24: Price Review 2024 | F24: 0 | G24: Supply
A25: SWB | B25: CW12_046TOT_PR24_POSTFS | C25: Supply-demand balance - Demand-side improvements delivering benefits in 2025-2030 (excl leakage and metering); SDB totex - Total | D25: £m | E25: Price Review 2024 | F25: 0 | G25: Demand
A26: SWB | B26: CW12_049TOT_PR24_POSTFS | C26: Supply-demand balance - Leakage improvements delivering benefits in 2025-2030; SDB totex - Total | D26: £m | E26: Price Review 2024 | F26: 0 | G26: Leakage
A27: SWB | B27: CW12_052TOT_PR24_POSTFS | C27: Supply-demand balance - Interconnectors delivering benefits in 2025-2030; SDB totex - Total | D27: £m | E27: Price Review 2024 | F27: 0 | G27: Supply-interconnectors
A28: SWB | B28: CW12_055TOT_PR24_POSTFS | C28: Supply-demand balance - Supply demand balance improvements delivering benefits starting from 2031; SDB totex - Total | D28: £m | E28: Price Review 2024 | F28: 0 | G28: Supply
A29: SWB | B29: CW12_087TOT_PR24_POSTFS | C29: Metering - Total metering expenditure; metering totex - Total | D29: £m | E29: Price Review 2024 | F29: 0 | G29: Metering
A30: SWB | B30: CW12_090TOT_PR24_POSTFS | C30: Water quality improvements - Improvements to taste, odour and colour (grey solutions); enhancement totex - Total | D30: £m | E30: Price Review 2024 | F30: 0 | G30: Taste, odour and colour
A31: SWB | B31: CW12_093TOT_PR24_POSTFS | C31: Water quality improvements - Improvements to taste, odour and colour (green solutions); enhancement totex - Total | D31: £m | E31: Price Review 2024 | F31: 0 | G31: Taste, odour and colour
A32: SWB | B32: CW12_096TOT_PR24_POSTFS | C32: Water quality improvements - Addressing raw water quality deterioration (grey solutions); ; enhancement totex - Total | D32: £m | E32: Price Review 2024 | F32: 0 | G32: Raw water deterioration
A33: SWB | B33: CW12_099TOT_PR24_POSTFS | C33: Water quality improvements - Addressing raw water quality deterioration (green solutions); enhancement totex - Total | D33: £m | E33: Price Review 2024 | F33: 0 | G33: Raw water deterioration
A34: SWB | B34: CW12_102TOT_PR24_POSTFS | C34: Water quality improvements - Conditioning water to reduce plumbosolvency for water quality; enhancement totex - Total | D34: £m | E34: Price Review 2024 | F34: 0 | G34: Lead
A35: SWB | B35: CW12_105TOT_PR24_POSTFS | C35: Water quality improvements - Lead communication pipes replaced or relined for water quality; enhancement totex - Total | D35: £m | E35: Price Review 2024 | F35: 0 | G35: Lead
A36: SWB | B36: CW12_108TOT_PR24_POSTFS | C36: Water quality improvements - External lead supply pipes replaced or relined; enhancement totex - Total | D36: £m | E36: Price Review 2024 | F36: 0 | G36: Lead
A37: SWB | B37: CW12_111TOT_PR24_POSTFS | C37: Water quality improvements - Internal lead supply pipes replaced or relined; enhancement totex - Total | D37: £m | E37: Price Review 2024 | F37: 0 | G37: Lead
A38: SWB | B38: CW12_114TOT_PR24_POSTFS | C38: Water quality improvements - Other lead reduction related activity; enhancement totex - Total | D38: £m | E38: Price Review 2024 | F38: 0 | G38: Lead
A39: SWB | B39: CW12_117TOT_PR24_POSTFS | C39: Water resilience and security - Resilience; enhancement water totex - Total | D39: £m | E39: Price Review 2024 | F39: 0 | G39: Water - resilience
A40: SWB | B40: CW12_120TOT_PR24_POSTFS | C40: Water resilience and security - Security - SEMD; enhancement water totex - Total | D40: £m | E40: Price Review 2024 | F40: 0 | G40: SEMD
A41: SWB | B41: CW12_123TOT_PR24_POSTFS | C41: Water resilience and security - Security - Cyber; enhancement water totex - Total | D41: £m | E41: Price Review 2024 | F41: 0 | G41: Cyber
A42: SWB | B42: CW12_126TOT_PR24_POSTFS | C42: Net zero - Greenhouse gas reduction (net zero); enhancement water totex - Total | D42: £m | E42: Price Review 2024 | F42: 0 | G42: Net zero
A43: SWB | B43: CW12_127TOT_PR24_POSTFS | C43: Other enhancement (Freeform lines - by exception) - Additional line 1; enhancement water capex - Total | D43: £m | E43: Price Review 2024 | F43: 0 | G43: Water - freeform
A44: SWB | B44: CW12_128TOT_PR24_POSTFS | C44: Other enhancement (Freeform lines - by exception) - Additional line 1; enhancement water opex - Total | D44: £m | E44: Price Review 2024 | F44: 0 | G44: Water - freeform
A45: SWB | B45: CW12_129TOT_PR24_POSTFS | C45: Other enhancement (Freeform lines - by exception) - Additional line 2; enhancement water capex - Total | D45: £m | E45: Price Review 2024 | F45: 0 | G45: Water - freeform
A46: SWB | B46: CW12_130TOT_PR24_POSTFS | C46: Other enhancement (Freeform lines - by exception) - Additional line 2; enhancement water opex - Total | D46: £m | E46: Price Review 2024 | F46: 0 | G46: Water - freeform
A47: SWB | B47: CW12_131TOT_PR24_POSTFS | C47: Other enhancement (Freeform lines - by exception) - Additional line 3; enhancement water capex - Total | D47: £m | E47: Price Review 2024 | F47: 0 | G47: Water - freeform
A48: SWB | B48: CW12_132TOT_PR24_POSTFS | C48: Other enhancement (Freeform lines - by exception) - Additional line 3; enhancement water opex - Total | D48: £m | E48: Price Review 2024 | F48: 0 | G48: Water - freeform
A49: SWB | B49: CW12_133TOT_PR24_POSTFS | C49: Other enhancement (Freeform lines - by exception) - Additional line 4; enhancement water capex - Total | D49: £m | E49: Price Review 2024 | F49: 0 | G49: Water - freeform
A50: SWB | B50: CW12_134TOT_PR24_POSTFS | C50: Other enhancement (Freeform lines - by exception) - Additional line 4; enhancement water opex - Total | D50: £m | E50: Price Review 2024 | F50: 0 | G50: Water - freeform
A51: SWB | B51: CW12_135TOT_PR24_POSTFS | C51: Other enhancement (Freeform lines - by exception) - Additional line 5; enhancement water capex - Total | D51: £m | E51: Price Review 2024 | F51: 0 | G51: Water - freeform
A52: SWB | B52: CW12_136TOT_PR24_POSTFS | C52: Other enhancement (Freeform lines - by exception) - Additional line 5; enhancement water opex - Total | D52: £m | E52: Price Review 2024 | F52: 0 | G52: Water - freeform
A53: SWB | B53: CWW12_003TOT_PR24_POSTFS | C53: EA/NRW environmental programme wastewater (WINEP/NEP) - Event duration monitoring at intermittent discharges (WINEP/NEP) wastewater totex - Total | D53: £m | E53: Price Review 2024 | F53: 0 | G53: Event duration monitoring
A54: SWB | B54: CWW12_006TOT_PR24_POSTFS | C54: EA/NRW environmental programme wastewater (WINEP/NEP) - Flow monitoring at sewage treatment works; (WINEP/NEP) wastewater totex - Total | D54: £m | E54: Price Review 2024 | F54: 0 | G54: Flow monitoring STW
A55: SWB | B55: CWW12_009TOT_PR24_POSTFS | C55: EA/NRW environmental programme wastewater (WINEP/NEP) - Continuous river water quality monitoring (WINEP/NEP) wastewater totex - Total | D55: £m | E55: Price Review 2024 | F55: 0 | G55: CWQM
A56: SWB | B56: CWW12_012TOT_PR24_POSTFS | C56: EA/NRW environmental programme wastewater (WINEP/NEP) - MCERTs monitoring at emergency sewage pumping station overflows (WINEP/NEP) wastewater totex - Total | D56: £m | E56: Price Review 2024 | F56: 0 | G56: MCERTS PS EO
A57: SWB | B57: CWW12_015TOT_PR24_POSTFS | C57: EA/NRW environmental programme wastewater (WINEP/NEP) - Increase flow to full treatment; (WINEP/NEP) wastewater totex - Total | D57: £m | E57: Price Review 2024 | F57: 12.33680643 | G57: Flow to full treatment
A58: SWB | B58: CWW12_018TOT_PR24_POSTFS | C58: EA/NRW environmental programme wastewater (WINEP/NEP) - Increase storm tank capacity at STWs - grey solution; (WINEP/NEP) wastewater totex - Total | D58: £m | E58: Price Review 2024 | F58: 9.115586864 | G58: Storm overflow
A59: SWB | B59: CWW12_021TOT_PR24_POSTFS | C59: EA/NRW environmental programme wastewater (WINEP/NEP) - Increase storm system attenuation / treatment on a STW - green solution; (WINEP/NEP) wastewater totex - Total | D59: £m | E59: Price Review 2024 | F59: 0 | G59: Storm overflow
A60: SWB | B60: CWW12_024TOT_PR24_POSTFS | C60: EA/NRW environmental programme wastewater (WINEP/NEP) - Storage schemes to reduce spill frequency at CSOs etc - grey solution; (WINEP/NEP) wastewater totex - Total | D60: £m | E60: Price Review 2024 | F60: 19.14205474 | G60: Storm overflow
A61: SWB | B61: CWW12_027TOT_PR24_POSTFS | C61: EA/NRW environmental programme wastewater (WINEP/NEP) - Storage to reduce spill frequency at CSOs etc - green solution; (WINEP/NEP) wastewater totex - Total | D61: £m | E61: Price Review 2024 | F61: 0 | G61: Storm overflow
A62: SWB | B62: CWW12_030TOT_PR24_POSTFS | C62: EA/NRW environmental programme wastewater (WINEP/NEP) - Storm overflow - discharge relocation (WINEP/NEP) wastewater totex - Total | D62: £m | E62: Price Review 2024 | F62: 0 | G62: Storm overflow
A63: SWB | B63: CWW12_033TOT_PR24_POSTFS | C63: EA/NRW environmental programme wastewater (WINEP/NEP) - Storm overflow - increase in combined sewer / trunk sewer capacity; (WINEP/NEP) wastewater totex - Total | D63: £m | E63: Price Review 2024 | F63: 0 | G63: Storm overflow
A64: SWB | B64: CWW12_036TOT_PR24_POSTFS | C64: EA/NRW environmental programme wastewater (WINEP/NEP) - Storm overflow - sustainable drainage / attenuation in the network; (WINEP/NEP) wastewater totex - Total | D64: £m | E64: Price Review 2024 | F64: 0 | G64: Storm overflow
A65: SWB | B65: CWW12_039TOT_PR24_POSTFS | C65: EA/NRW environmental programme wastewater (WINEP/NEP) - Storm overflow - source surface water separation; (WINEP/NEP) wastewater totex - Total | D65: £m | E65: Price Review 2024 | F65: 14.34813849 | G65: Storm overflow
A66: SWB | B66: CWW12_042TOT_PR24_POSTFS | C66: EA/NRW environmental programme wastewater (WINEP/NEP) - Storm overflow - infiltration management: wastewater totex - Total | D66: £m | E66: Price Review 2024 | F66: 12.15328877 | G66: Storm overflow
A67: SWB | B67: CWW12_045TOT_PR24_POSTFS | C67: EA/NRW environmental programme wastewater (WINEP/NEP) - Storm overflow - sewer flow management and control; (WINEP/NEP) wastewater totex - Total | D67: £m | E67: Price Review 2024 | F67: 0 | G67: Storm overflow
A68: SWB | B68: CWW12_048TOT_PR24_POSTFS | C68: EA/NRW environmental programme wastewater (WINEP/NEP) - Storm overflow - new / upgraded screens (WINEP/NEP) wastewater totex - Total | D68: £m | E68: Price Review 2024 | F68: 7.077900815 | G68: Storm overflow
A69: SWB | B69: CWW12_051TOT_PR24_POSTFS | C69: EA/NRW environmental programme wastewater (WINEP/NEP) - Treatment for chemical removal (WINEP/NEP) wastewater totex - Total | D69: £m | E69: Price Review 2024 | F69: 0 | G69: Chemicals removal
A70: SWB | B70: CWW12_054TOT_PR24_POSTFS | C70: EA/NRW environmental programme wastewater (WINEP/NEP) - Chemicals and emerging contaminants monitoring, investigations, options appraisals; (WINEP/NEP) wastewater totex - Total | D70: £m | E70: Price Review 2024 | F70: 0 | G70: Chemical investigations
A71: SWB | B71: CWW12_057TOT_PR24_POSTFS | C71: EA/NRW environmental programme wastewater (WINEP/NEP) - Treatment for total nitrogen removal (chemical) (WINEP/NEP) wastewater totex - Total | D71: £m | E71: Price Review 2024 | F71: 0 | G71: n removal
A72: SWB | B72: CWW12_060TOT_PR24_POSTFS | C72: EA/NRW environmental programme wastewater (WINEP/NEP) - Treatment for total nitrogen removal (biological) (WINEP/NEP) wastewater totex - Total | D72: £m | E72: Price Review 2024 | F72: 0 | G72: n removal
A73: SWB | B73: CWW12_063TOT_PR24_POSTFS | C73: EA/NRW environmental programme wastewater (WINEP/NEP) - Nitrogen technically achievable limit monitoring, investigation or options appraisal; (WINEP/NEP) wastewater totex - Total | D73: £m | E73: Price Review 2024 | F73: 0 | G73: NTAL
A74: SWB | B74: CWW12_066TOT_PR24_POSTFS | C74: EA/NRW environmental programme wastewater (WINEP/NEP) - Treatment for phosphorus removal (chemical) (WINEP/NEP) wastewater totex - Total | D74: £m | E74: Price Review 2024 | F74: 0 | G74: p removal
A75: SWB | B75: CWW12_069TOT_PR24_POSTFS | C75: EA/NRW environmental programme wastewater (WINEP/NEP) - Treatment for phosphorus removal (biological) (WINEP/NEP) wastewater totex - Total | D75: £m | E75: Price Review 2024 | F75: 0 | G75: p removal
A76: SWB | B76: CWW12_072TOT_PR24_POSTFS | C76: EA/NRW environmental programme wastewater (WINEP/NEP) - Treatment for nutrients (N or P) and / or sanitary determinands, nature based solution (WINEP/NEP) wastewater totex - Total | D76: £m | E76: Price Review 2024 | F76: 0 | G76: Nutrients or sanitary determinands NBS
A77: SWB | B77: CWW12_075TOT_PR24_POSTFS | C77: EA/NRW environmental programme wastewater (WINEP/NEP) - Treatment for tightening of sanitary parameters (WINEP/NEP) wastewater totex - Total | D77: £m | E77: Price Review 2024 | F77: 0 | G77: Sanitary parameters
A78: SWB | B78: CWW12_078TOT_PR24_POSTFS | C78: EA/NRW environmental programme wastewater (WINEP/NEP) - Catchment management - chemicals source control; (WINEP/NEP) wastewater totex - Total | D78: £m | E78: Price Review 2024 | F78: 0 | G78: Chemicals source control
A79: SWB | B79: CWW12_081TOT_PR24_POSTFS | C79: EA/NRW environmental programme wastewater (WINEP/NEP) - Catchment management - nutrient balancing; (WINEP/NEP) wastewater totex - Total | D79: £m | E79: Price Review 2024 | F79: 0 | G79: Nutrient balancing
A80: SWB | B80: CWW12_084TOT_PR24_POSTFS | C80: EA/NRW environmental programme wastewater (WINEP/NEP) - Catchment management - catchment permitting; (WINEP/NEP) wastewater totex - Total | D80: £m | E80: Price Review 2024 | F80: 0 | G80: Catchment permitting
A81: SWB | B81: CWW12_087TOT_PR24_POSTFS | C81: EA/NRW environmental programme wastewater (WINEP/NEP) - Catchment management - habitat restoration; (WINEP/NEP) wastewater totex - Total | D81: £m | E81: Price Review 2024 | F81: 0 | G81: Habitat restoration
A82: SWB | B82: CWW12_090TOT_PR24_POSTFS | C82: EA/NRW environmental programme wastewater (WINEP/NEP) - Microbiological treatment - bathing waters, coastal and inland (WINEP/NEP) wastewater totex - Total | D82: £m | E82: Price Review 2024 | F82: 0 | G82: Microbiological treatment
A83: SWB | B83: CWW12_093TOT_PR24_POSTFS | C83: EA/NRW environmental programme wastewater (WINEP/NEP) - Septic tank replacements - treatment solution; (WINEP/NEP) wastewater totex - Total | D83: £m | E83: Price Review 2024 | F83: 0 | G83: Septic tank
A84: SWB | B84: CWW12_096TOT_PR24_POSTFS | C84: EA/NRW environmental programme wastewater (WINEP/NEP) - Septic tank replacements - flow diversion; (WINEP/NEP) wastewater totex - Total | D84: £m | E84: Price Review 2024 | F84: 0 | G84: Septic tank
A85: SWB | B85: CWW12_099TOT_PR24_POSTFS | C85: EA/NRW environmental programme wastewater (WINEP/NEP) - Fish outfall screens; (WINEP/NEP) wastewater totex - Total | D85: £m | E85: Price Review 2024 | F85: 0 | G85: Fish screen
A86: SWB | B86: CWW12_102TOT_PR24_POSTFS | C86: EA/NRW environmental programme wastewater (WINEP/NEP) - 25 year environment plan; (WINEP/NEP) wastewater totex - Total | D86: £m | E86: Price Review 2024 | F86: 0 | G86: 25 year environment plan
A87: SWB | B87: CWW12_114TOT_PR24_POSTFS | C87: EA/NRW environmental programme wastewater (WINEP/NEP) - Investigations, total; (WINEP/NEP) wastewater totex - Total | D87: £m | E87: Price Review 2024 | F87: 0 | G87: Waste - investigations
A88: SWB | B88: CWW12_117TOT_PR24_POSTFS | C88: EA/NRW environmental programme wastewater (WINEP/NEP) - Contribution to third party schemes under WINEP/NEP only (not covered elsewhere) wastewater totex - Total | D88: £m | E88: Price Review 2024 | F88: 0 | G88: Third party schemes
A89: SWB | B89: CWW12_120TOT_PR24_POSTFS | C89: EA/NRW environmental programme wastewater (WINEP/NEP) - River connectivity (e.g. for fish passage); (WINEP/NEP) wastewater totex - Total | D89: £m | E89: Price Review 2024 | F89: 0 | G89: River connectivity
A90: SWB | B90: CWW12_123TOT_PR24_POSTFS | C90: EA/NRW environmental programme wastewater (WINEP/NEP) - Restoration management (marine conservation zones etc) (WINEP/NEP) wastewater totex - Total | D90: £m | E90: Price Review 2024 | F90: 0 | G90: Restoration management
A91: SWB | B91: CWW12_126TOT_PR24_POSTFS | C91: EA/NRW environmental programme wastewater (WINEP/NEP) - Access and amenity for WINEP/NEP only (not covered elsewhere) wastewater totex - Total | D91: £m | E91: Price Review 2024 | F91: 0 | G91: Access and amenity
A92: SWB | B92: CWW12_129TOT_PR24_POSTFS | C92: EA/NRW environmental programme wastewater (WINEP/NEP) - Advanced WINEP (not covered elsewhere) wastewater totex - Total | D92: £m | E92: Price Review 2024 | F92: 0 | G92: Advanced WINEP
A93: SWB | B93: CWW12_133TOT_PR24_POSTFS | C93: EA/NRW environmental programme bioresources (WINEP/NEP) - Sludge storage -Tanks (pre-thickening, pre-dewatering or untreated); (WINEP/NEP) totex - Total | D93: £m | E93: Price Review 2024 | F93: 0 | G93: Sludge storage tank
A94: SWB | B94: CWW12_136TOT_PR24_POSTFS | C94: EA/NRW environmental programme bioresources (WINEP/NEP) - Sludge storage - Tanks (thickened/dewatered or treated); (WINEP/NEP) totex - Total | D94: £m | E94: Price Review 2024 | F94: 0 | G94: Sludge storage tank
A95: SWB | B95: CWW12_139TOT_PR24_POSTFS | C95: EA/NRW environmental programme bioresources (WINEP/NEP) - Sludge storage - Cake pads / bays /other; (WINEP/NEP) bioresources totex - Total | D95: £m | E95: Price Review 2024 | F95: 0 | G95: Sludge storage cake
A96: SWB | B96: CWW12_142TOT_PR24_POSTFS | C96: EA/NRW environmental programme bioresources (WINEP/NEP) - Sludge treatment - Anaerobic digestion and/or advanced anaerobic digestion; (WINEP/NEP) bioresources totex - Total | D96: £m | E96: Price Review 2024 | F96: 0 | G96: Sludge treatment anaerobic digestion
A97: SWB | B97: CWW12_145TOT_PR24_POSTFS | C97: EA/NRW environmental programme bioresources (WINEP/NEP) - Sludge treatment - Thickening and/or dewatering; (WINEP/NEP) totex - Total | D97: £m | E97: Price Review 2024 | F97: 0 | G97: Sludge treatment thickening
A98: SWB | B98: CWW12_148TOT_PR24_POSTFS | C98: EA/NRW environmental programme bioresources (WINEP/NEP) - Sludge treatment -Other; (WINEP/NEP) bioresources totex - Total | D98: £m | E98: Price Review 2024 | F98: 0 | G98: Sludge treatment other
A99: SWB | B99: CWW12_151TOT_PR24_POSTFS | C99: EA/NRW environmental programme bioresources (WINEP/NEP) - Sludge investigations and monitoring (NEP only) bioresources totex - Total | D99: £m | E99: Price Review 2024 | F99: 0 | G99: Sludge investigations
A100: SWB | B100: CWW12_155TOT_PR24_POSTFS | C100: Other enhancement - Growth at sewage treatment works (excluding sludge treatment); enhancement totex - Total | D100: £m | E100: Price Review 2024 | F100: 0 | G100: Growth at STW
A101: SWB | B101: CWW12_158TOT_PR24_POSTFS | C101: Other enhancement - Reduce flooding risk for properties; enhancement totex - Total | D101: £m | E101: Price Review 2024 | F101: 0 | G101: Base
A102: SWB | B102: CWW12_161TOT_PR24_POSTFS | C102: Other enhancement - First time sewerage; enhancement totex - Total | D102: £m | E102: Price Review 2024 | F102: 0 | G102: First time sewerage
A103: SWB | B103: CWW12_164TOT_PR24_POSTFS | C103: Other enhancement - Sludge enhancement (growth); enhancement totex - Total | D103: £m | E103: Price Review 2024 | F103: 0 | G103: Base
A104: SWB | B104: CWW12_167TOT_PR24_POSTFS | C104: Other enhancement - Odour and other nuisance; enhancement totex - Total | D104: £m | E104: Price Review 2024 | F104: 0 | G104: Odour and nuisance
A105: SWB | B105: CWW12_170TOT_PR24_POSTFS | C105: Other enhancement - Resilience; enhancement wastewater totex - Total | D105: £m | E105: Price Review 2024 | F105: 0 | G105: Waste - resilience
A106: SWB | B106: CWW12_173TOT_PR24_POSTFS | C106: Other enhancement - Security - SEMD; enhancement wastewater totex - Total | D106: £m | E106: Price Review 2024 | F106: 0 | G106: SEMD
A107: SWB | B107: CWW12_176TOT_PR24_POSTFS | C107: Other enhancement - Security - cyber; enhancement wastewater totex - Total | D107: £m | E107: Price Review 2024 | F107: 0 | G107: Security cyber
A108: SWB | B108: CWW12_179TOT_PR24_POSTFS | C108: Other enhancement - Greenhouse gas reduction (net zero); enhancement wastewater totex - Total | D108: £m | E108: Price Review 2024 | F108: 0 | G108: Net zero wastewater
A109: SWB | B109: CWW12_181TOT_PR24_POSTFS | C109: Other enhancement (Freeform lines - by exception) - Additional line 1; enhancement wastewater/bioresources capex - Total | D109: £m | E109: Price Review 2024 | F109: 0 | G109: Waste - freeform
A110: SWB | B110: CWW12_182TOT_PR24_POSTFS | C110: Other enhancement (Freeform lines - by exception) - Additional line 1; enhancement wastewater/bioresources opex - Total | D110: £m | E110: Price Review 2024 | F110: 0 | G110: Waste - freeform
A111: SWB | B111: CWW12_183TOT_PR24_POSTFS | C111: Other enhancement (Freeform lines - by exception) - Additional line 2; enhancement wastewater/bioresources capex - Total | D111: £m | E111: Price Review 2024 | F111: 0 | G111: Waste - freeform
A112: SWB | B112: CWW12_184TOT_PR24_POSTFS | C112: Other enhancement (Freeform lines - by exception) - Additional line 2; enhancement wastewater/bioresources opex - Total | D112: £m | E112: Price Review 2024 | F112: 0 | G112: Waste - freeform
A113: SWB | B113: CWW12_185TOT_PR24_POSTFS | C113: Other enhancement (Freeform lines - by exception) - Additional line 3; enhancement wastewater/bioresources capex - Total | D113: £m | E113: Price Review 2024 | F113: 0 | G113: Waste - freeform
A114: SWB | B114: CWW12_186TOT_PR24_POSTFS | C114: Other enhancement (Freeform lines - by exception) - Additional line 3; enhancement wastewater/bioresources opex - Total | D114: £m | E114: Price Review 2024 | F114: 0 | G114: Waste - freeform
A115: SWB | B115: CWW12_187TOT_PR24_POSTFS | C115: Other enhancement (Freeform lines - by exception) - Additional line 4; enhancement wastewater/bioresources capex - Total | D115: £m | E115: Price Review 2024 | F115: 0 | G115: Waste - freeform
A116: SWB | B116: CWW12_188TOT_PR24_POSTFS | C116: Other enhancement (Freeform lines - by exception) - Additional line 4; enhancement wastewater/bioresources opex - Total | D116: £m | E116: Price Review 2024 | F116: 0 | G116: Waste - freeform
A117: SWB | B117: CWW12_189TOT_PR24_POSTFS | C117: Other enhancement (Freeform lines - by exception) - Additional line 5; enhancement wastewater/bioresources capex - Total | D117: £m | E117: Price Review 2024 | F117: 0 | G117: Waste - freeform
A118: SWB | B118: CWW12_190TOT_PR24_POSTFS | C118: Other enhancement (Freeform lines - by exception) - Additional line 5; enhancement wastewater/bioresources opex - Total | D118: £m | E118: Price Review 2024 | F118: 0 | G118: Waste - freeform

Sheet F_Inputs
C1: PR24CA01 Inputs | E1: Run on 15 Nov 2024 10:42
A2: Acronym | B2: Reference | C2: Item description | D2: Unit | E2: Model | F2: 2023-24 | G2: 2024-25
F4: Price Review 2024 | G4: Price Review 2024
F5: Run 11 - PR24 FD Data | G5: Run 11 - PR24 FD Data
F6: Latest | G6: Latest
A7: SWB | B7: C_PR24CA29_ENH_W_AP | C7: Total enhancement allowance - Water - Supply - Accelerated programme | D7: £m | E7: Price Review 2024 | F7: 0 | G7: 0
A8: SWB | B8: C_PR24CA30_ENH_W_AP | C8: Total enhancement allowance - Water - Freeform - Accelerated programme | D8: £m | E8: Price Review 2024 | F8: 0 | G8: 0
A9: SWB | B9: C_PR24CA31_ENH_W_AP | C9: Total enhancement allowance - Water - Resilience - Accelerated programme | D9: £m | E9: Price Review 2024 | F9: 0 | G9: 0
A10: SWB | B10: C_PR24CA32_ENH_W_AP | C10: Total enhancement allowance - Water - Metering - Accelerated programme | D10: £m | E10: Price Review 2024 | F10: 0.09313694398 | G10: 3.431917688
A11: SWB | B11: C_PR24CA33_ENH_W_AP | C11: Total enhancement allowance - Water - Raw water deterioration - Accelerated programme | D11: £m | E11: Price Review 2024 | F11: 0 | G11: 0
A12: SWB | B12: C_PR24CA34_ENH_W_AP | C12: Total enhancement allowance - Water - Leakage - Accelerated programme | D12: £m | E12: Price Review 2024 | F12: 0 | G12: 0
A13: SWB | B13: C_PR24CA35_ENH_W_AP | C13: Total enhancement allowance - Water - WFD - Accelerated programme | D13: £m | E13: Price Review 2024 | F13: 0 | G13: 0
A14: SWB | B14: C_PR24CA36_ENH_W_AP | C14: Total enhancement allowance - Water - Lead - Accelerated programme | D14: £m | E14: Price Review 2024 | F14: 0 | G14: 0
A15: SWB | B15: C_PR24CA37_ENH_W_AP | C15: Total enhancement allowance - Water - TOC - Accelerated programme | D15: £m | E15: Price Review 2024 | F15: 0 | G15: 0
A16: SWB | B16: C_PR24CA38_ENH_W_AP | C16: Total enhancement allowance - Water - Demand - Accelerated programme | D16: £m | E16: Price Review 2024 | F16: 0 | G16: 0
A17: SWB | B17: C_PR24CA39_ENH_W_AP | C17: Total enhancement allowance - Water - Cyber - Accelerated programme | D17: £m | E17: Price Review 2024 | F17: 0 | G17: 0
A18: SWB | B18: C_PR24CA40_ENH_W_AP | C18: Total enhancement allowance - Water - Investigations - Accelerated programme | D18: £m | E18: Price Review 2024 | F18: 0 | G18: 0
A19: SWB | B19: C_PR24CA41_ENH_W_AP | C19: Total enhancement allowance - Water - Reservoir safety - Accelerated programme | D19: £m | E19: Price Review 2024 | F19: 0 | G19: 0
A20: SWB | B20: C_PR24CA42_ENH_W_AP | C20: Total enhancement allowance - Water - SEMD - Accelerated programme | D20: £m | E20: Price Review 2024 | F20: 0 | G20: 0
A21: SWB | B21: C_PR24CA43_ENH_W_AP | C21: Total enhancement allowance - Water - Biodiversity conservation - Accelerated programme | D21: £m | E21: Price Review 2024 | F21: 0 | G21: 0
A22: SWB | B22: C_PR24CA44_ENH_W_AP | C22: Total enhancement allowance - Water - Net zero - Accelerated programme | D22: £m | E22: Price Review 2024
A23: SWB | B23: C_CA45_ENH_W_AP | C23: Total enhancement allowance - Water - DWPA - Accelerated programme | D23: £m | E23: Price Review 2024 | F23: 0 | G23: 0
A24: SWB | B24: C_PR24CA46_ENH_W_AP | C24: Total enhancement allowance - Water - Strategic resource options - Accelerated programme | D24: £m | E24: Price Review 2024
A25: SWB | B25: C_PR24CA47_ENH_W_AP | C25: Total enhancement allowance - Water - INNS - Accelerated programme | D25: £m | E25: Price Review 2024 | F25: 0 | G25: 0
A26: SWB | B26: C_PR24CA48_ENH_W_AP | C26: Total enhancement allowance - Water - Eel fish screens - Accelerated programme | D26: £m | E26: Price Review 2024 | F26: 0 | G26: 0
A27: SWB | B27: C_PR24CA49_ENH_W_AP | C27: Total enhancement allowance - Water - Eel fish passes - Accelerated programme | D27: £m | E27: Price Review 2024 | F27: 0 | G27: 0
A28: SWB | B28: C_CA50_ENH_W_AP | C28: Total enhancement allowance - Water - 25YEP - Accelerated programme | D28: £m | E28: Price Review 2024 | F28: 0 | G28: 0
A29: SWB | B29: C_PR24CA51_ENH_W_AP | C29: Total enhancement allowance - Water - Discharge monitoring - Accelerated programme | D29: £m | E29: Price Review 2024 | F29: 0 | G29: 0
A30: SWB | B30: C_PR24CA52_ENH_W_AP | C30: Total enhancement allowance - Water - Wetland - Accelerated programme | D30: £m | E30: Price Review 2024
A31: SWB | B31: C_PR24CA92_ENH_W_AP | C31: Total enhancement allowance - Water - Supply interconnectors - Accelerated programme | D31: £m | E31: Price Review 2024 | F31: 0 | G31: 0
A32: SWB | B32: C_PR24CA94_ENH_W_AP | C32: Total enhancement allowance - Water - Resilience interconnectors - Accelerated programme | D32: £m | E32: Price Review 2024 | F32: 0 | G32: 0
A33: SWB | B33: C_PR24CA16_ENH_WW_AP | C33: Total enhancement allowance - Wastewater - Event duration monitoring - Accelerated programme | D33: £m | E33: Price Review 2024 | F33: 0 | G33: 0
A34: SWB | B34: C_PR24CA17_ENH_WW_AP | C34: Total enhancement allowance - Wastewater - Flow monitoring STW - Accelerated programme | D34: £m | E34: Price Review 2024 | F34: 0 | G34: 0
A35: SWB | B35: C_PR24CA20_ENH_WW_AP | C35: Total enhancement allowance - Wastewater - CWQM - Accelerated programme | D35: £m | E35: Price Review 2024 | F35: 0 | G35: 0
A36: SWB | B36: C_PR24CA28_ENH_WW_AP | C36: Total enhancement allowance - Wastewater - MCERTS PS EO - Accelerated programme | D36: £m | E36: Price Review 2024 | F36: 0 | G36: 0
A37: SWB | B37: C_PR24CA53_ENH_WW_AP | C37: Total enhancement allowance - Wastewater - Flow to full treatment - Accelerated programme | D37: £m | E37: Price Review 2024 | F37: 0 | G37: 0
A38: SWB | B38: C_PR24CA54_ENH_WW_AP | C38: Total enhancement allowance - Wastewater - STW Storage - Accelerated programme | D38: £m | E38: Price Review 2024
A39: SWB | B39: C_PR24CA55_ENH_WW_AP | C39: Total enhancement allowance - Wastewater - CSO Spill Reduction - Accelerated programme | D39: £m | E39: Price Review 2024 | F39: 0.1250981242 | G39: 8.532138169
A40: SWB | B40: C_PR24CA56_ENH_WW_AP | C40: Total enhancement allowance - Wastewater - Chemicals removal - Accelerated programme | D40: £m | E40: Price Review 2024 | F40: 0 | G40: 0
A41: SWB | B41: C_PR24CA57_ENH_WW_AP | C41: Total enhancement allowance - Wastewater - Chemical investigations - Accelerated programme | D41: £m | E41: Price Review 2024 | F41: 0 | G41: 0
A42: SWB | B42: C_PR24CA58_ENH_WW_AP | C42: Total enhancement allowance - Wastewater - N-removal - Accelerated programme | D42: £m | E42: Price Review 2024 | F42: 0 | G42: 0
A43: SWB | B43: C_PR24CA59_ENH_WW_AP | C43: Total enhancement allowance - Wastewater - NTAL - Accelerated programme | D43: £m | E43: Price Review 2024 | F43: 0 | G43: 0
A44: SWB | B44: C_PR24CA60_ENH_WW_AP | C44: Total enhancement allowance - Wastewater - P-removal - Accelerated programme | D44: £m | E44: Price Review 2024 | F44: 0 | G44: 10.84939911
A45: SWB | B45: C_PR24CA61_ENH_WW_AP | C45: Total enhancement allowance - Wastewater - Nutrients or sanitary determinands NBS - Accelerated programme | D45: £m | E45: Price Review 2024 | F45: 0 | G45: 0
A46: SWB | B46: C_PR24CA62_ENH_WW_AP | C46: Total enhancement allowance - Wastewater - Sanitary parameters - Accelerated programme | D46: £m | E46: Price Review 2024 | F46: 0 | G46: 0
A47: SWB | B47: C_PR24CA63_ENH_WW_AP | C47: Total enhancement allowance - Wastewater - CSO green storage - Accelerated programme | D47: £m | E47: Price Review 2024
A48: SWB | B48: C_PR24CA64_ENH_WW_AP | C48: Total enhancement allowance - Wastewater - Nutrient balancing - Accelerated programme | D48: £m | E48: Price Review 2024 | F48: 0 | G48: 0
A49: SWB | B49: C_PR24CA65_ENH_WW_AP | C49: Total enhancement allowance - Wastewater - Catchment permitting - Accelerated programme | D49: £m | E49: Price Review 2024 | F49: 0 | G49: 0
A50: SWB | B50: C_PR24CA66_ENH_WW_AP | C50: Total enhancement allowance - Wastewater - Habitat restoration - Accelerated programme | D50: £m | E50: Price Review 2024 | F50: 0 | G50: 0
A51: SWB | B51: C_PR24CA67_ENH_WW_AP | C51: Total enhancement allowance - Wastewater - Microbiological treatment - Accelerated programme | D51: £m | E51: Price Review 2024 | F51: 0 | G51: 0
A52: SWB | B52: C_PR24CA68_ENH_WW_AP | C52: Total enhancement allowance - Wastewater - Septic tank treatment solutions & flow diversions - Accelerated programme | D52: £m | E52: Price Review 2024 | F52: 0 | G52: 0
A53: SWB | B53: C_PR24CA69_ENH_WW_AP | C53: Total enhancement allowance - Wastewater - Fish screen - Accelerated programme | D53: £m | E53: Price Review 2024 | F53: 0 | G53: 0
A54: SWB | B54: C_PR24CA70_ENH_WW_AP | C54: Total enhancement allowance - Wastewater - 25 year environment plan - Accelerated programme | D54: £m | E54: Price Review 2024 | F54: 0 | G54: 0
A55: SWB | B55: C_PR24CA71_ENH_WW_AP | C55: Total enhancement allowance - Wastewater - Investigations - Accelerated programme | D55: £m | E55: Price Review 2024 | F55: 0 | G55: 0
A56: SWB | B56: C_PR24CA72_ENH_WW_AP | C56: Total enhancement allowance - Wastewater - Third party schemes - Accelerated programme | D56: £m | E56: Price Review 2024 | F56: 0 | G56: 0
A57: SWB | B57: C_PR24CA73_ENH_WW_AP | C57: Total enhancement allowance - Wastewater - River connectivity - Accelerated programme | D57: £m | E57: Price Review 2024 | F57: 0 | G57: 0
A58: SWB | B58: C_PR24CA74_ENH_WW_AP | C58: Total enhancement allowance - Wastewater - Restoration management - Accelerated programme | D58: £m | E58: Price Review 2024 | F58: 0 | G58: 0
A59: SWB | B59: C_PR24CA76_ENH_WW_AP | C59: Total enhancement allowance - Wastewater - Advanced WINEP - Accelerated programme | D59: £m | E59: Price Review 2024 | F59: 0 | G59: 0
A60: SWB | B60: C_PR24CA77_ENH_WW_AP | C60: Total enhancement allowance - Wastewater - Sludge storage tanks - Accelerated programme | D60: £m | E60: Price Review 2024 | F60: 0 | G60: 0
A61: SWB | B61: C_PR24CA78_ENH_WW_AP | C61: Total enhancement allowance - Wastewater - Sludge storage cake - Accelerated programme | D61: £m | E61: Price Review 2024 | F61: 0 | G61: 0
A62: SWB | B62: C_PR24CA79_ENH_WW_AP | C62: Total enhancement allowance - Wastewater - Freeform - Accelerated programme | D62: £m | E62: Price Review 2024
A63: SWB | B63: C_PR24CA80_ENH_WW_AP | C63: Total enhancement allowance - Wastewater - Sludge treatment thickening - Accelerated programme | D63: £m | E63: Price Review 2024 | F63: 0 | G63: 0
A64: SWB | B64: C_PR24CA81_ENH_WW_AP | C64: Total enhancement allowance - Wastewater - Sludge treatment other - Accelerated programme | D64: £m | E64: Price Review 2024 | F64: 0 | G64: 0
A65: SWB | B65: C_PR24CA82_ENH_WW_AP | C65: Total enhancement allowance - Wastewater - Sludge investigations - Accelerated programme | D65: £m | E65: Price Review 2024 | F65: 0 | G65: 0
A66: SWB | B66: C_PR24CA83_ENH_WW_AP | C66: Total enhancement allowance - Wastewater - Growth at STW - Accelerated programme | D66: £m | E66: Price Review 2024 | F66: 0 | G66: 0
A67: SWB | B67: C_PR24CA84_ENH_WW_AP | C67: Total enhancement allowance - Wastewater - First time sewerage - Accelerated programme | D67: £m | E67: Price Review 2024 | F67: 0 | G67: 0
A68: SWB | B68: C_PR24CA85_ENH_WW_AP | C68: Total enhancement allowance - Wastewater - Odour and nuisance - Accelerated programme | D68: £m | E68: Price Review 2024 | F68: 0 | G68: 0
A69: SWB | B69: C_PR24CA87_ENH_WW_AP | C69: Total enhancement allowance - Wastewater - Security - cyber - Accelerated programme | D69: £m | E69: Price Review 2024
A70: SWB | B70: C_PR24CA88_ENH_WW_AP | C70: Total enhancement allowance - Wastewater - Net zero wastewater - Accelerated programme | D70: £m | E70: Price Review 2024
A71: SWB | B71: C_PR24CA89_ENH_WW_AP | C71: Total enhancement allowance - Wastewater - IED enhancement - Accelerated programme | D71: £m | E71: Price Review 2024 | F71: 0 | G71: 0
A72: SWB | B72: C_PR24CA91_ENH_WW_AP | C72: Total enhancement allowance - Wastewater - Resilience - Accelerated programme | D72: £m | E72: Price Review 2024
A73: SWB | B73: C_PR24CA39_ENH_WW_AP | C73: Total enhancement allowance - Wastewater - Cyber - Accelerated programme | D73: £m | E73: Price Review 2024 | F73: 0 | G73: 0
A74: SWB | B74: C_PR24CA42_ENH_WW_AP | C74: Total enhancement allowance - Wastewater - SEMD - Accelerated programme | D74: £m | E74: Price Review 2024 | F74: 0 | G74: 0
A75: SWB | B75: C_PR24CA29_ENH_W_TE | C75: Total enhancement allowance - Water - Supply - Transition allowance | D75: £m | E75: Price Review 2024 | F75: 0 | G75: 0
A76: SWB | B76: C_PR24CA30_ENH_W_TE | C76: Total enhancement allowance - Water - Freeform - Transition allowance | D76: £m | E76: Price Review 2024 | F76: 0 | G76: 0
A77: SWB | B77: C_PR24CA31_ENH_W_TE | C77: Total enhancement allowance - Water - Resilience - Transition allowance | D77: £m | E77: Price Review 2024 | F77: 0 | G77: 0
A78: SWB | B78: C_PR24CA32_ENH_W_TE | C78: Total enhancement allowance - Water - Metering - Transition allowance | D78: £m | E78: Price Review 2024 | F78: 0 | G78: 0
A79: SWB | B79: C_PR24CA33_ENH_W_TE | C79: Total enhancement allowance - Water - Raw water deterioration - Transition allowance | D79: £m | E79: Price Review 2024 | F79: 0 | G79: 0
A80: SWB | B80: C_PR24CA34_ENH_W_TE | C80: Total enhancement allowance - Water - Leakage - Transition allowance | D80: £m | E80: Price Review 2024 | F80: 0 | G80: 0
A81: SWB | B81: C_PR24CA35_ENH_W_TE | C81: Total enhancement allowance - Water - WFD - Transition allowance | D81: £m | E81: Price Review 2024 | F81: 0 | G81: 0
A82: SWB | B82: C_PR24CA36_ENH_W_TE | C82: Total enhancement allowance - Water - Lead - Transition allowance | D82: £m | E82: Price Review 2024 | F82: 0 | G82: 0
A83: SWB | B83: C_PR24CA37_ENH_W_TE | C83: Total enhancement allowance - Water - TOC - Transition allowance | D83: £m | E83: Price Review 2024 | F83: 0 | G83: 0
A84: SWB | B84: C_PR24CA38_ENH_W_TE | C84: Total enhancement allowance - Water - Demand - Transition allowance | D84: £m | E84: Price Review 2024 | F84: 0 | G84: 0
A85: SWB | B85: C_PR24CA39_ENH_W_TE | C85: Total enhancement allowance - Water - Cyber - Transition allowance | D85: £m | E85: Price Review 2024 | F85: 0 | G85: 0
A86: SWB | B86: C_PR24CA40_ENH_W_TE | C86: Total enhancement allowance - Water - Investigations - Transition allowance | D86: £m | E86: Price Review 2024 | F86: 0 | G86: 0
A87: SWB | B87: C_PR24CA41_ENH_W_TE | C87: Total enhancement allowance - Water - Reservoir safety - Transition allowance | D87: £m | E87: Price Review 2024 | F87: 0 | G87: 0
A88: SWB | B88: C_PR24CA42_ENH_W_TE | C88: Total enhancement allowance - Water - SEMD - Transition allowance | D88: £m | E88: Price Review 2024 | F88: 0 | G88: 0
A89: SWB | B89: C_PR24CA43_ENH_W_TE | C89: Total enhancement allowance - Water - Biodiversity conservation - Transition allowance | D89: £m | E89: Price Review 2024 | F89: 0 | G89: 0
A90: SWB | B90: C_PR24CA44_ENH_W_TE | C90: Total enhancement allowance - Water - Net zero - Transition allowance | D90: £m | E90: Price Review 2024
A91: SWB | B91: C_CA45_ENH_W_TE | C91: Total enhancement allowance - Water - DWPA - Transition allowance | D91: £m | E91: Price Review 2024 | F91: 0 | G91: 0
A92: SWB | B92: C_PR24CA46_ENH_W_TE | C92: Total enhancement allowance - Water - Strategic resource options - Transition allowance | D92: £m | E92: Price Review 2024
A93: SWB | B93: C_PR24CA47_ENH_W_TE | C93: Total enhancement allowance - Water - INNS - Transition allowance | D93: £m | E93: Price Review 2024 | F93: 0 | G93: 0
A94: SWB | B94: C_PR24CA48_ENH_W_TE | C94: Total enhancement allowance - Water - Eel fish screens - Transition allowance | D94: £m | E94: Price Review 2024 | F94: 0 | G94: 0
A95: SWB | B95: C_PR24CA49_ENH_W_TE | C95: Total enhancement allowance - Water - Eel fish passes - Transition allowance | D95: £m | E95: Price Review 2024 | F95: 0 | G95: 0
A96: SWB | B96: C_CA50_ENH_W_TE | C96: Total enhancement allowance - Water - 25YEP - Transition allowance | D96: £m | E96: Price Review 2024 | F96: 0 | G96: 0
A97: SWB | B97: C_PR24CA51_ENH_W_TE | C97: Total enhancement allowance - Water - Discharge monitoring - Transition allowance | D97: £m | E97: Price Review 2024 | F97: 0 | G97: 0
A98: SWB | B98: C_PR24CA52_ENH_W_TE | C98: Total enhancement allowance - Water - Wetland - Transition allowance | D98: £m | E98: Price Review 2024
A99: SWB | B99: C_PR24CA92_ENH_W_TE | C99: Total enhancement allowance - Water - Supply interconnectors - Transition allowance | D99: £m | E99: Price Review 2024 | F99: 0 | G99: 0
A100: SWB | B100: C_PR24CA94_ENH_W_TE | C100: Total enhancement allowance - Water - Resilience interconnectors - Transition allowance | D100: £m | E100: Price Review 2024 | F100: 0 | G100: 0
A101: SWB | B101: C_PR24CA16_ENH_WW_TE | C101: Total enhancement allowance - Wastewater - Event duration monitoring - Transition allowance | D101: £m | E101: Price Review 2024 | F101: 0 | G101: 0
A102: SWB | B102: C_PR24CA17_ENH_WW_TE | C102: Total enhancement allowance - Wastewater - Flow monitoring STW - Transition allowance | D102: £m | E102: Price Review 2024 | F102: 0 | G102: 0
A103: SWB | B103: C_PR24CA20_ENH_WW_TE | C103: Total enhancement allowance - Wastewater - CWQM - Transition allowance | D103: £m | E103: Price Review 2024 | F103: 0 | G103: 0
A104: SWB | B104: C_PR24CA28_ENH_WW_TE | C104: Total enhancement allowance - Wastewater - MCERTS PS EO - Transition allowance | D104: £m | E104: Price Review 2024 | F104: 0 | G104: 0
A105: SWB | B105: C_PR24CA53_ENH_WW_TE | C105: Total enhancement allowance - Wastewater - Flow to full treatment - Transition allowance | D105: £m | E105: Price Review 2024 | F105: 0 | G105: 0
A106: SWB | B106: C_PR24CA54_ENH_WW_TE | C106: Total enhancement allowance - Wastewater - STW Storage - Transition allowance | D106: £m | E106: Price Review 2024
A107: SWB | B107: C_PR24CA55_ENH_WW_TE | C107: Total enhancement allowance - Wastewater - CSO Spill Reduction - Transition allowance | D107: £m | E107: Price Review 2024 | F107: 0 | G107: 74.14724551
A108: SWB | B108: C_PR24CA56_ENH_WW_TE | C108: Total enhancement allowance - Wastewater - Chemicals removal - Transition allowance | D108: £m | E108: Price Review 2024 | F108: 0 | G108: 0
A109: SWB | B109: C_PR24CA57_ENH_WW_TE | C109: Total enhancement allowance - Wastewater - Chemical investigations - Transition allowance | D109: £m | E109: Price Review 2024 | F109: 0 | G109: 0
A110: SWB | B110: C_PR24CA58_ENH_WW_TE | C110: Total enhancement allowance - Wastewater - N-removal - Transition allowance | D110: £m | E110: Price Review 2024 | F110: 0 | G110: 0
A111: SWB | B111: C_PR24CA59_ENH_WW_TE | C111: Total enhancement allowance - Wastewater - NTAL - Transition allowance | D111: £m | E111: Price Review 2024 | F111: 0 | G111: 0
A112: SWB | B112: C_PR24CA60_ENH_WW_TE | C112: Total enhancement allowance - Wastewater - P-removal - Transition allowance | D112: £m | E112: Price Review 2024 | F112: 0 | G112: 0
A113: SWB | B113: C_PR24CA61_ENH_WW_TE | C113: Total enhancement allowance - Wastewater - Nutrients or sanitary determinands NBS - Transition allowance | D113: £m | E113: Price Review 2024 | F113: 0 | G113: 0
A114: SWB | B114: C_PR24CA62_ENH_WW_TE | C114: Total enhancement allowance - Wastewater - Sanitary parameters - Transition allowance | D114: £m | E114: Price Review 2024 | F114: 0 | G114: 0
A115: SWB | B115: C_PR24CA63_ENH_WW_TE | C115: Total enhancement allowance - Wastewater - CSO green storage - Transition allowance | D115: £m | E115: Price Review 2024
A116: SWB | B116: C_PR24CA64_ENH_WW_TE | C116: Total enhancement allowance - Wastewater - Nutrient balancing - Transition allowance | D116: £m | E116: Price Review 2024 | F116: 0 | G116: 0
A117: SWB | B117: C_PR24CA65_ENH_WW_TE | C117: Total enhancement allowance - Wastewater - Catchment permitting - Transition allowance | D117: £m | E117: Price Review 2024 | F117: 0 | G117: 0
A118: SWB | B118: C_PR24CA66_ENH_WW_TE | C118: Total enhancement allowance - Wastewater - Habitat restoration - Transition allowance | D118: £m | E118: Price Review 2024 | F118: 0 | G118: 0
A119: SWB | B119: C_PR24CA67_ENH_WW_TE | C119: Total enhancement allowance - Wastewater - Microbiological treatment - Transition allowance | D119: £m | E119: Price Review 2024 | F119: 0 | G119: 0
A120: SWB | B120: C_PR24CA68_ENH_WW_TE | C120: Total enhancement allowance - Wastewater - Septic tank treatment solutions & flow diversions - Transition allowance | D120: £m | E120: Price Review 2024 | F120: 0 | G120: 0
A121: SWB | B121: C_PR24CA69_ENH_WW_TE | C121: Total enhancement allowance - Wastewater - Fish screen - Transition allowance | D121: £m | E121: Price Review 2024 | F121: 0 | G121: 0
A122: SWB | B122: C_PR24CA70_ENH_WW_TE | C122: Total enhancement allowance - Wastewater - 25 year environment plan - Transition allowance | D122: £m | E122: Price Review 2024 | F122: 0 | G122: 0
A123: SWB | B123: C_PR24CA71_ENH_WW_TE | C123: Total enhancement allowance - Wastewater - Investigations - Transition allowance | D123: £m | E123: Price Review 2024 | F123: 0 | G123: 0
A124: SWB | B124: C_PR24CA72_ENH_WW_TE | C124: Total enhancement allowance - Wastewater - Third party schemes - Transition allowance | D124: £m | E124: Price Review 2024 | F124: 0 | G124: 0
A125: SWB | B125: C_PR24CA73_ENH_WW_TE | C125: Total enhancement allowance - Wastewater - River connectivity - Transition allowance | D125: £m | E125: Price Review 2024 | F125: 0 | G125: 0
A126: SWB | B126: C_PR24CA74_ENH_WW_TE | C126: Total enhancement allowance - Wastewater - Restoration management - Transition allowance | D126: £m | E126: Price Review 2024 | F126: 0 | G126: 0
A127: SWB | B127: C_PR24CA76_ENH_WW_TE | C127: Total enhancement allowance - Wastewater - Advanced WINEP - Transition allowance | D127: £m | E127: Price Review 2024 | F127: 0 | G127: 0
A128: SWB | B128: C_PR24CA77_ENH_WW_TE | C128: Total enhancement allowance - Wastewater - Sludge storage tanks - Transition allowance | D128: £m | E128: Price Review 2024 | F128: 0 | G128: 0
A129: SWB | B129: C_PR24CA78_ENH_WW_TE | C129: Total enhancement allowance - Wastewater - Sludge storage cake - Transition allowance | D129: £m | E129: Price Review 2024 | F129: 0 | G129: 0
A130: SWB | B130: C_PR24CA79_ENH_WW_TE | C130: Total enhancement allowance - Wastewater - Freeform - Transition allowance | D130: £m | E130: Price Review 2024
A131: SWB | B131: C_PR24CA80_ENH_WW_TE | C131: Total enhancement allowance - Wastewater - Sludge treatment thickening - Transition allowance | D131: £m | E131: Price Review 2024 | F131: 0 | G131: 0
A132: SWB | B132: C_PR24CA81_ENH_WW_TE | C132: Total enhancement allowance - Wastewater - Sludge treatment other - Transition allowance | D132: £m | E132: Price Review 2024 | F132: 0 | G132: 0
A133: SWB | B133: C_PR24CA82_ENH_WW_TE | C133: Total enhancement allowance - Wastewater - Sludge investigations - Transition allowance | D133: £m | E133: Price Review 2024 | F133: 0 | G133: 0
A134: SWB | B134: C_PR24CA83_ENH_WW_TE | C134: Total enhancement allowance - Wastewater - Growth at STW - Transition allowance | D134: £m | E134: Price Review 2024 | F134: 0 | G134: 0
A135: SWB | B135: C_PR24CA84_ENH_WW_TE | C135: Total enhancement allowance - Wastewater - First time sewerage - Transition allowance | D135: £m | E135: Price Review 2024 | F135: 0 | G135: 0
A136: SWB | B136: C_PR24CA85_ENH_WW_TE | C136: Total enhancement allowance - Wastewater - Odour and nuisance - Transition allowance | D136: £m | E136: Price Review 2024 | F136: 0 | G136: 0
A137: SWB | B137: C_PR24CA87_ENH_WW_TE | C137: Total enhancement allowance - Wastewater - Security - cyber - Transition allowance | D137: £m | E137: Price Review 2024
A138: SWB | B138: C_PR24CA88_ENH_WW_TE | C138: Total enhancement allowance - Wastewater - Net zero wastewater - Transition allowance | D138: £m | E138: Price Review 2024
A139: SWB | B139: C_PR24CA89_ENH_WW_TE | C139: Total enhancement allowance - Wastewater - IED enhancement - Transition allowance | D139: £m | E139: Price Review 2024 | F139: 0 | G139: 0
A140: SWB | B140: C_PR24CA91_ENH_WW_TE | C140: Total enhancement allowance - Wastewater - Resilience - Transition allowance | D140: £m | E140: Price Review 2024
A141: SWB | B141: C_PR24CA42_ENH_WW_TE | C141: Total enhancement allowance - Wastewater - SEMD - Transition allowance | D141: £m | E141: Price Review 2024 | F141: 0 | G141: 0
A142: SWB | B142: C_PR24CA39_ENH_WW_TE | C142: Total enhancement allowance - Wastewater - Cyber - Transition allowance | D142: £m | E142: Price Review 2024 | F142: 0 | G142: 0

Sheet FS and RPEs
A1: Frontier Shift and RPEs | B1: Updated for run 11 08/11/2024
A3: Water enhancement
A4: Year | B4: 2022-23 | C4: 2023-24 | D4: 2024-25 | E4: 2025-26 | F4: 2026-27 | G4: 2027-28 | H4: 2028-29 | I4: 2029-30 | J4: Average
A5: Frontier shift | B5: 0 | C5: 0 | D5: 0.01 | E5: 0.01 | F5: 0.01 | G5: 0.01 | H5: 0.01 | I5: 0.01 | J5: 0.0075
A6: Real input price inflation | B6: 0 | C6: 0 | D6: 0.004794372558 | E6: 0.004766190658 | F6: 0.004336666222 | G6: 0.00355470733 | H6: 0.002405612852 | I6: 0.003280397182 | J6: 0.00289224335
A7: Difference | B7: 0 | C7: 0 | D7: -0.005253571168 | E7: -0.005281471249 | F7: -0.00570670044 | G7: -0.006480839743 | H7: -0.007618443277 | I7: -0.00675240679 | J7: -0.004636679083
A8: Net change | B8: 0 | C8: 0 | D8: -0.005253571168 | E8: -0.01050729583 | F8: -0.01615403428 | G8: -0.02253018232 | H8: -0.02997698068 | I8: -0.0365269707 | J8: -0.01511862937
A9: Index | B9: 1 | C9: 1 | D9: 0.9947464288 | E9: 0.9894927042 | F9: 0.9838459657 | G9: 0.9774698177 | H9: 0.9700230193 | I9: 0.9634730293 | J9: 0.9848813706
A11: Wastewater enhancement
A12: Year | B12: 2022-23 | C12: 2023-24 | D12: 2024-25 | E12: 2025-26 | F12: 2026-27 | G12: 2027-28 | H12: 2028-29 | I12: 2029-30 | J12: Average
A13: Frontier shift | B13: 0 | C13: 0 | D13: 0.01 | E13: 0.01 | F13: 0.01 | G13: 0.01 | H13: 0.01 | I13: 0.01 | J13: 0.0075
A14: Real input price inflation | B14: 0 | C14: 0 | D14: 0.005264075213 | E14: 0.005233132344 | F14: 0.004761527581 | G14: 0.003902960506 | H14: 0.002641289727 | I14: 0.003601776308 | J14: 0.00317559521
A15: Difference | B15: 0 | C15: 0 | D15: -0.004788565539 | E15: -0.004819198979 | F15: -0.005286087695 | G15: -0.006136069099 | H15: -0.00738512317 | I15: -0.006434241455 | J15: -0.004356160742
A16: Net change | B16: 0 | C16: 0 | D16: -0.004788565539 | E16: -0.009584687468 | F16: -0.01482010966 | G16: -0.02086524155 | H16: -0.02809627234 | I16: -0.03434973559 | J16: -0.01406307652
A17: Index | B17: 1 | C17: 1 | D17: 0.9952114345 | E17: 0.9904153125 | F17: 0.9851798903 | G17: 0.9791347585 | H17: 0.9719037277 | I17: 0.9656502644 | J17: 0.9859369235

Sheet Inputs - post FS and RPEs
A3: Company Acronym | B3: Item Code | C3: Item Description | D3: Item Unit | E3: Item Table Suite | F3: 2023-24 | G3: 2024-25
A7: SWB | B7: C_PR24CA29_ENH_W_AP | C7: Total enhancement allowance - Water - Supply - Accelerated programme | D7: £m | E7: Price Review 2024 | F7: =IF(F_Inputs!F7 = "", 0, IF($H7="water", F_Inputs!F7*'FS and RPEs'!C$9, F_Inputs!F7*'FS and RPEs'!C$17)) -> 0 | G7: =IF(F_Inputs!G7 = "", 0, IF($H7="water", F_Inputs!G7*'FS and RPEs'!D$9, F_Inputs!G7*'FS and RPEs'!D$17)) -> 0 | H7: Water | I7: AP
A8: SWB | B8: C_PR24CA30_ENH_W_AP | C8: Total enhancement allowance - Water - Freeform - Accelerated programme | D8: £m | E8: Price Review 2024 | F8: =IF(F_Inputs!F8 = "", 0, IF($H8="water", F_Inputs!F8*'FS and RPEs'!C$9, F_Inputs!F8*'FS and RPEs'!C$17)) -> 0 | G8: =IF(F_Inputs!G8 = "", 0, IF($H8="water", F_Inputs!G8*'FS and RPEs'!D$9, F_Inputs!G8*'FS and RPEs'!D$17)) -> 0 | H8: Water | I8: AP
A9: SWB | B9: C_PR24CA31_ENH_W_AP | C9: Total enhancement allowance - Water - Resilience - Accelerated programme | D9: £m | E9: Price Review 2024 | F9: =IF(F_Inputs!F9 = "", 0, IF($H9="water", F_Inputs!F9*'FS and RPEs'!C$9, F_Inputs!F9*'FS and RPEs'!C$17)) -> 0 | G9: =IF(F_Inputs!G9 = "", 0, IF($H9="water", F_Inputs!G9*'FS and RPEs'!D$9, F_Inputs!G9*'FS and RPEs'!D$17)) -> 0 | H9: Water | I9: AP
A10: SWB | B10: C_PR24CA32_ENH_W_AP | C10: Total enhancement allowance - Water - Metering - Accelerated programme | D10: £m | E10: Price Review 2024 | F10: =IF(F_Inputs!F10 = "", 0, IF($H10="water", F_Inputs!F10*'FS and RPEs'!C$9, F_Inputs!F10*'FS and RPEs'!C$17)) -> 0.09313694398 | G10: =IF(F_Inputs!G10 = "", 0, IF($H10="water", F_Inputs!G10*'FS and RPEs'!D$9, F_Inputs!G10*'FS and RPEs'!D$17)) -> 3.413887864 | H10: Water | I10: AP
A11: SWB | B11: C_PR24CA33_ENH_W_AP | C11: Total enhancement allowance - Water - Raw water deterioration - Accelerated programme | D11: £m | E11: Price Review 2024 | F11: =IF(F_Inputs!F11 = "", 0, IF($H11="water", F_Inputs!F11*'FS and RPEs'!C$9, F_Inputs!F11*'FS and RPEs'!C$17)) -> 0 | G11: =IF(F_Inputs!G11 = "", 0, IF($H11="water", F_Inputs!G11*'FS and RPEs'!D$9, F_Inputs!G11*'FS and RPEs'!D$17)) -> 0 | H11: Water | I11: AP
A12: SWB | B12: C_PR24CA34_ENH_W_AP | C12: Total enhancement allowance - Water - Leakage - Accelerated programme | D12: £m | E12: Price Review 2024 | F12: =IF(F_Inputs!F12 = "", 0, IF($H12="water", F_Inputs!F12*'FS and RPEs'!C$9, F_Inputs!F12*'FS and RPEs'!C$17)) -> 0 | G12: =IF(F_Inputs!G12 = "", 0, IF($H12="water", F_Inputs!G12*'FS and RPEs'!D$9, F_Inputs!G12*'FS and RPEs'!D$17)) -> 0 | H12: Water | I12: AP
A13: SWB | B13: C_PR24CA35_ENH_W_AP | C13: Total enhancement allowance - Water - WFD - Accelerated programme | D13: £m | E13: Price Review 2024 | F13: =IF(F_Inputs!F13 = "", 0, IF($H13="water", F_Inputs!F13*'FS and RPEs'!C$9, F_Inputs!F13*'FS and RPEs'!C$17)) -> 0 | G13: =IF(F_Inputs!G13 = "", 0, IF($H13="water", F_Inputs!G13*'FS and RPEs'!D$9, F_Inputs!G13*'FS and RPEs'!D$17)) -> 0 | H13: Water | I13: AP
A14: SWB | B14: C_PR24CA36_ENH_W_AP | C14: Total enhancement allowance - Water - Lead - Accelerated programme | D14: £m | E14: Price Review 2024 | F14: =IF(F_Inputs!F14 = "", 0, IF($H14="water", F_Inputs!F14*'FS and RPEs'!C$9, F_Inputs!F14*'FS and RPEs'!C$17)) -> 0 | G14: =IF(F_Inputs!G14 = "", 0, IF($H14="water", F_Inputs!G14*'FS and RPEs'!D$9, F_Inputs!G14*'FS and RPEs'!D$17)) -> 0 | H14: Water | I14: AP
A15: SWB | B15: C_PR24CA37_ENH_W_AP | C15: Total enhancement allowance - Water - TOC - Accelerated programme | D15: £m | E15: Price Review 2024 | F15: =IF(F_Inputs!F15 = "", 0, IF($H15="water", F_Inputs!F15*'FS and RPEs'!C$9, F_Inputs!F15*'FS and RPEs'!C$17)) -> 0 | G15: =IF(F_Inputs!G15 = "", 0, IF($H15="water", F_Inputs!G15*'FS and RPEs'!D$9, F_Inputs!G15*'FS and RPEs'!D$17)) -> 0 | H15: Water | I15: AP
A16: SWB | B16: C_PR24CA38_ENH_W_AP | C16: Total enhancement allowance - Water - Demand - Accelerated programme | D16: £m | E16: Price Review 2024 | F16: =IF(F_Inputs!F16 = "", 0, IF($H16="water", F_Inputs!F16*'FS and RPEs'!C$9, F_Inputs!F16*'FS and RPEs'!C$17)) -> 0 | G16: =IF(F_Inputs!G16 = "", 0, IF($H16="water", F_Inputs!G16*'FS and RPEs'!D$9, F_Inputs!G16*'FS and RPEs'!D$17)) -> 0 | H16: Water | I16: AP
A17: SWB | B17: C_PR24CA39_ENH_W_AP | C17: Total enhancement allowance - Water - Cyber - Accelerated programme | D17: £m | E17: Price Review 2024 | F17: =IF(F_Inputs!F17 = "", 0, IF($H17="water", F_Inputs!F17*'FS and RPEs'!C$9, F_Inputs!F17*'FS and RPEs'!C$17)) -> 0 | G17: =IF(F_Inputs!G17 = "", 0, IF($H17="water", F_Inputs!G17*'FS and RPEs'!D$9, F_Inputs!G17*'FS and RPEs'!D$17)) -> 0 | H17: Water | I17: AP
A18: SWB | B18: C_PR24CA40_ENH_W_AP | C18: Total enhancement allowance - Water - Investigations - Accelerated programme | D18: £m | E18: Price Review 2024 | F18: =IF(F_Inputs!F18 = "", 0, IF($H18="water", F_Inputs!F18*'FS and RPEs'!C$9, F_Inputs!F18*'FS and RPEs'!C$17)) -> 0 | G18: =IF(F_Inputs!G18 = "", 0, IF($H18="water", F_Inputs!G18*'FS and RPEs'!D$9, F_Inputs!G18*'FS and RPEs'!D$17)) -> 0 | H18: Water | I18: AP
A19: SWB | B19: C_PR24CA41_ENH_W_AP | C19: Total enhancement allowance - Water - Reservoir safety - Accelerated programme | D19: £m | E19: Price Review 2024 | F19: =IF(F_Inputs!F19 = "", 0, IF($H19="water", F_Inputs!F19*'FS and RPEs'!C$9, F_Inputs!F19*'FS and RPEs'!C$17)) -> 0 | G19: =IF(F_Inputs!G19 = "", 0, IF($H19="water", F_Inputs!G19*'FS and RPEs'!D$9, F_Inputs!G19*'FS and RPEs'!D$17)) -> 0 | H19: Water | I19: AP
A20: SWB | B20: C_PR24CA42_ENH_W_AP | C20: Total enhancement allowance - Water - SEMD - Accelerated programme | D20: £m | E20: Price Review 2024 | F20: =IF(F_Inputs!F20 = "", 0, IF($H20="water", F_Inputs!F20*'FS and RPEs'!C$9, F_Inputs!F20*'FS and RPEs'!C$17)) -> 0 | G20: =IF(F_Inputs!G20 = "", 0, IF($H20="water", F_Inputs!G20*'FS and RPEs'!D$9, F_Inputs!G20*'FS and RPEs'!D$17)) -> 0 | H20: Water | I20: AP
A21: SWB | B21: C_PR24CA43_ENH_W_AP | C21: Total enhancement allowance - Water - Biodiversity conservation - Accelerated programme | D21: £m | E21: Price Review 2024 | F21: =IF(F_Inputs!F21 = "", 0, IF($H21="water", F_Inputs!F21*'FS and RPEs'!C$9, F_Inputs!F21*'FS and RPEs'!C$17)) -> 0 | G21: =IF(F_Inputs!G21 = "", 0, IF($H21="water", F_Inputs!G21*'FS and RPEs'!D$9, F_Inputs!G21*'FS and RPEs'!D$17)) -> 0 | H21: Water | I21: AP
A22: SWB | B22: C_PR24CA44_ENH_W_AP | C22: Total enhancement allowance - Water - Net zero - Accelerated programme | D22: £m | E22: Price Review 2024 | F22: =IF(F_Inputs!F22 = "", 0, IF($H22="water", F_Inputs!F22*'FS and RPEs'!C$9, F_Inputs!F22*'FS and RPEs'!C$17)) -> 0 | G22: =IF(F_Inputs!G22 = "", 0, IF($H22="water", F_Inputs!G22*'FS and RPEs'!D$9, F_Inputs!G22*'FS and RPEs'!D$17)) -> 0 | H22: Water | I22: AP
A23: SWB | B23: C_CA45_ENH_W_AP | C23: Total enhancement allowance - Water - DWPA - Accelerated programme | D23: £m | E23: Price Review 2024 | F23: =IF(F_Inputs!F23 = "", 0, IF($H23="water", F_Inputs!F23*'FS and RPEs'!C$9, F_Inputs!F23*'FS and RPEs'!C$17)) -> 0 | G23: =IF(F_Inputs!G23 = "", 0, IF($H23="water", F_Inputs!G23*'FS and RPEs'!D$9, F_Inputs!G23*'FS and RPEs'!D$17)) -> 0 | H23: Water | I23: AP
A24: SWB | B24: C_PR24CA46_ENH_W_AP | C24: Total enhancement allowance - Water - Strategic resource options - Accelerated programme | D24: £m | E24: Price Review 2024 | F24: =IF(F_Inputs!F24 = "", 0, IF($H24="water", F_Inputs!F24*'FS and RPEs'!C$9, F_Inputs!F24*'FS and RPEs'!C$17)) -> 0 | G24: =IF(F_Inputs!G24 = "", 0, IF($H24="water", F_Inputs!G24*'FS and RPEs'!D$9, F_Inputs!G24*'FS and RPEs'!D$17)) -> 0 | H24: Water | I24: AP
A25: SWB | B25: C_PR24CA47_ENH_W_AP | C25: Total enhancement allowance - Water - INNS - Accelerated programme | D25: £m | E25: Price Review 2024 | F25: =IF(F_Inputs!F25 = "", 0, IF($H25="water", F_Inputs!F25*'FS and RPEs'!C$9, F_Inputs!F25*'FS and RPEs'!C$17)) -> 0 | G25: =IF(F_Inputs!G25 = "", 0, IF($H25="water", F_Inputs!G25*'FS and RPEs'!D$9, F_Inputs!G25*'FS and RPEs'!D$17)) -> 0 | H25: Water | I25: AP
A26: SWB | B26: C_PR24CA48_ENH_W_AP | C26: Total enhancement allowance - Water - Eel fish screens - Accelerated programme | D26: £m | E26: Price Review 2024 | F26: =IF(F_Inputs!F26 = "", 0, IF($H26="water", F_Inputs!F26*'FS and RPEs'!C$9, F_Inputs!F26*'FS and RPEs'!C$17)) -> 0 | G26: =IF(F_Inputs!G26 = "", 0, IF($H26="water", F_Inputs!G26*'FS and RPEs'!D$9, F_Inputs!G26*'FS and RPEs'!D$17)) -> 0 | H26: Water | I26: AP
A27: SWB | B27: C_PR24CA49_ENH_W_AP | C27: Total enhancement allowance - Water - Eel fish passes - Accelerated programme | D27: £m | E27: Price Review 2024 | F27: =IF(F_Inputs!F27 = "", 0, IF($H27="water", F_Inputs!F27*'FS and RPEs'!C$9, F_Inputs!F27*'FS and RPEs'!C$17)) -> 0 | G27: =IF(F_Inputs!G27 = "", 0, IF($H27="water", F_Inputs!G27*'FS and RPEs'!D$9, F_Inputs!G27*'FS and RPEs'!D$17)) -> 0 | H27: Water | I27: AP
A28: SWB | B28: C_CA50_ENH_W_AP | C28: Total enhancement allowance - Water - 25YEP - Accelerated programme | D28: £m | E28: Price Review 2024 | F28: =IF(F_Inputs!F28 = "", 0, IF($H28="water", F_Inputs!F28*'FS and RPEs'!C$9, F_Inputs!F28*'FS and RPEs'!C$17)) -> 0 | G28: =IF(F_Inputs!G28 = "", 0, IF($H28="water", F_Inputs!G28*'FS and RPEs'!D$9, F_Inputs!G28*'FS and RPEs'!D$17)) -> 0 | H28: Water | I28: AP
A29: SWB | B29: C_PR24CA51_ENH_W_AP | C29: Total enhancement allowance - Water - Discharge monitoring - Accelerated programme | D29: £m | E29: Price Review 2024 | F29: =IF(F_Inputs!F29 = "", 0, IF($H29="water", F_Inputs!F29*'FS and RPEs'!C$9, F_Inputs!F29*'FS and RPEs'!C$17)) -> 0 | G29: =IF(F_Inputs!G29 = "", 0, IF($H29="water", F_Inputs!G29*'FS and RPEs'!D$9, F_Inputs!G29*'FS and RPEs'!D$17)) -> 0 | H29: Water | I29: AP
A30: SWB | B30: C_PR24CA52_ENH_W_AP | C30: Total enhancement allowance - Water - Wetland - Accelerated programme | D30: £m | E30: Price Review 2024 | F30: =IF(F_Inputs!F30 = "", 0, IF($H30="water", F_Inputs!F30*'FS and RPEs'!C$9, F_Inputs!F30*'FS and RPEs'!C$17)) -> 0 | G30: =IF(F_Inputs!G30 = "", 0, IF($H30="water", F_Inputs!G30*'FS and RPEs'!D$9, F_Inputs!G30*'FS and RPEs'!D$17)) -> 0 | H30: Water | I30: AP
A31: SWB | B31: C_PR24CA92_ENH_W_AP | C31: Total enhancement allowance - Water - Supply interconnectors - Accelerated programme | D31: £m | E31: Price Review 2024 | F31: =IF(F_Inputs!F31 = "", 0, IF($H31="water", F_Inputs!F31*'FS and RPEs'!C$9, F_Inputs!F31*'FS and RPEs'!C$17)) -> 0 | G31: =IF(F_Inputs!G31 = "", 0, IF($H31="water", F_Inputs!G31*'FS and RPEs'!D$9, F_Inputs!G31*'FS and RPEs'!D$17)) -> 0 | H31: Water | I31: AP
A32: SWB | B32: C_PR24CA94_ENH_W_AP | C32: Total enhancement allowance - Water - Resilience interconnectors - Accelerated programme | D32: £m | E32: Price Review 2024 | F32: =IF(F_Inputs!F32 = "", 0, IF($H32="water", F_Inputs!F32*'FS and RPEs'!C$9, F_Inputs!F32*'FS and RPEs'!C$17)) -> 0 | G32: =IF(F_Inputs!G32 = "", 0, IF($H32="water", F_Inputs!G32*'FS and RPEs'!D$9, F_Inputs!G32*'FS and RPEs'!D$17)) -> 0 | H32: Water | I32: AP
A33: SWB | B33: C_PR24CA16_ENH_WW_AP | C33: Total enhancement allowance - Wastewater - Event duration monitoring - Accelerated programme | D33: £m | E33: Price Review 2024 | F33: =IF(F_Inputs!F33 = "", 0, IF($H33="water", F_Inputs!F33*'FS and RPEs'!C$9, F_Inputs!F33*'FS and RPEs'!C$17)) -> 0 | G33: =IF(F_Inputs!G33 = "", 0, IF($H33="water", F_Inputs!G33*'FS and RPEs'!D$9, F_Inputs!G33*'FS and RPEs'!D$17)) -> 0 | H33: Wastewater | I33: AP
A34: SWB | B34: C_PR24CA17_ENH_WW_AP | C34: Total enhancement allowance - Wastewater - Flow monitoring STW - Accelerated programme | D34: £m | E34: Price Review 2024 | F34: =IF(F_Inputs!F34 = "", 0, IF($H34="water", F_Inputs!F34*'FS and RPEs'!C$9, F_Inputs!F34*'FS and RPEs'!C$17)) -> 0 | G34: =IF(F_Inputs!G34 = "", 0, IF($H34="water", F_Inputs!G34*'FS and RPEs'!D$9, F_Inputs!G34*'FS and RPEs'!D$17)) -> 0 | H34: Wastewater | I34: AP
A35: SWB | B35: C_PR24CA20_ENH_WW_AP | C35: Total enhancement allowance - Wastewater - CWQM - Accelerated programme | D35: £m | E35: Price Review 2024 | F35: =IF(F_Inputs!F35 = "", 0, IF($H35="water", F_Inputs!F35*'FS and RPEs'!C$9, F_Inputs!F35*'FS and RPEs'!C$17)) -> 0 | G35: =IF(F_Inputs!G35 = "", 0, IF($H35="water", F_Inputs!G35*'FS and RPEs'!D$9, F_Inputs!G35*'FS and RPEs'!D$17)) -> 0 | H35: Wastewater | I35: AP
A36: SWB | B36: C_PR24CA28_ENH_WW_AP | C36: Total enhancement allowance - Wastewater - MCERTS PS EO - Accelerated programme | D36: £m | E36: Price Review 2024 | F36: =IF(F_Inputs!F36 = "", 0, IF($H36="water", F_Inputs!F36*'FS and RPEs'!C$9, F_Inputs!F36*'FS and RPEs'!C$17)) -> 0 | G36: =IF(F_Inputs!G36 = "", 0, IF($H36="water", F_Inputs!G36*'FS and RPEs'!D$9, F_Inputs!G36*'FS and RPEs'!D$17)) -> 0 | H36: Wastewater | I36: AP
A37: SWB | B37: C_PR24CA53_ENH_WW_AP | C37: Total enhancement allowance - Wastewater - Flow to full treatment - Accelerated programme | D37: £m | E37: Price Review 2024 | F37: =IF(F_Inputs!F37 = "", 0, IF($H37="water", F_Inputs!F37*'FS and RPEs'!C$9, F_Inputs!F37*'FS and RPEs'!C$17)) -> 0 | G37: =IF(F_Inputs!G37 = "", 0, IF($H37="water", F_Inputs!G37*'FS and RPEs'!D$9, F_Inputs!G37*'FS and RPEs'!D$17)) -> 0 | H37: Wastewater | I37: AP
A38: SWB | B38: C_PR24CA54_ENH_WW_AP | C38: Total enhancement allowance - Wastewater - STW Storage - Accelerated programme | D38: £m | E38: Price Review 2024 | F38: =IF(F_Inputs!F38 = "", 0, IF($H38="water", F_Inputs!F38*'FS and RPEs'!C$9, F_Inputs!F38*'FS and RPEs'!C$17)) -> 0 | G38: =IF(F_Inputs!G38 = "", 0, IF($H38="water", F_Inputs!G38*'FS and RPEs'!D$9, F_Inputs!G38*'FS and RPEs'!D$17)) -> 0 | H38: Wastewater | I38: AP
A39: SWB | B39: C_PR24CA55_ENH_WW_AP | C39: Total enhancement allowance - Wastewater - CSO Spill Reduction - Accelerated programme | D39: £m | E39: Price Review 2024 | F39: =IF(F_Inputs!F39 = "", 0, IF($H39="water", F_Inputs!F39*'FS and RPEs'!C$9, F_Inputs!F39*'FS and RPEs'!C$17)) -> 0.1250981242 | G39: =IF(F_Inputs!G39 = "", 0, IF($H39="water", F_Inputs!G39*'FS and RPEs'!D$9, F_Inputs!G39*'FS and RPEs'!D$17)) -> 8.491281466 | H39: Wastewater | I39: AP
A40: SWB | B40: C_PR24CA56_ENH_WW_AP | C40: Total enhancement allowance - Wastewater - Chemicals removal - Accelerated programme | D40: £m | E40: Price Review 2024 | F40: =IF(F_Inputs!F40 = "", 0, IF($H40="water", F_Inputs!F40*'FS and RPEs'!C$9, F_Inputs!F40*'FS and RPEs'!C$17)) -> 0 | G40: =IF(F_Inputs!G40 = "", 0, IF($H40="water", F_Inputs!G40*'FS and RPEs'!D$9, F_Inputs!G40*'FS and RPEs'!D$17)) -> 0 | H40: Wastewater | I40: AP
A41: SWB | B41: C_PR24CA57_ENH_WW_AP | C41: Total enhancement allowance - Wastewater - Chemical investigations - Accelerated programme | D41: £m | E41: Price Review 2024 | F41: =IF(F_Inputs!F41 = "", 0, IF($H41="water", F_Inputs!F41*'FS and RPEs'!C$9, F_Inputs!F41*'FS and RPEs'!C$17)) -> 0 | G41: =IF(F_Inputs!G41 = "", 0, IF($H41="water", F_Inputs!G41*'FS and RPEs'!D$9, F_Inputs!G41*'FS and RPEs'!D$17)) -> 0 | H41: Wastewater | I41: AP
A42: SWB | B42: C_PR24CA58_ENH_WW_AP | C42: Total enhancement allowance - Wastewater - N-removal - Accelerated programme | D42: £m | E42: Price Review 2024 | F42: =IF(F_Inputs!F42 = "", 0, IF($H42="water", F_Inputs!F42*'FS and RPEs'!C$9, F_Inputs!F42*'FS and RPEs'!C$17)) -> 0 | G42: =IF(F_Inputs!G42 = "", 0, IF($H42="water", F_Inputs!G42*'FS and RPEs'!D$9, F_Inputs!G42*'FS and RPEs'!D$17)) -> 0 | H42: Wastewater | I42: AP
A43: SWB | B43: C_PR24CA59_ENH_WW_AP | C43: Total enhancement allowance - Wastewater - NTAL - Accelerated programme | D43: £m | E43: Price Review 2024 | F43: =IF(F_Inputs!F43 = "", 0, IF($H43="water", F_Inputs!F43*'FS and RPEs'!C$9, F_Inputs!F43*'FS and RPEs'!C$17)) -> 0 | G43: =IF(F_Inputs!G43 = "", 0, IF($H43="water", F_Inputs!G43*'FS and RPEs'!D$9, F_Inputs!G43*'FS and RPEs'!D$17)) -> 0 | H43: Wastewater | I43: AP
A44: SWB | B44: C_PR24CA60_ENH_WW_AP | C44: Total enhancement allowance - Wastewater - P-removal - Accelerated programme | D44: £m | E44: Price Review 2024 | F44: =IF(F_Inputs!F44 = "", 0, IF($H44="water", F_Inputs!F44*'FS and RPEs'!C$9, F_Inputs!F44*'FS and RPEs'!C$17)) -> 0 | G44: =IF(F_Inputs!G44 = "", 0, IF($H44="water", F_Inputs!G44*'FS and RPEs'!D$9, F_Inputs!G44*'FS and RPEs'!D$17)) -> 10.79744605 | H44: Wastewater | I44: AP
A45: SWB | B45: C_PR24CA61_ENH_WW_AP | C45: Total enhancement allowance - Wastewater - Nutrients or sanitary determinands NBS - Accelerated programme | D45: £m | E45: Price Review 2024 | F45: =IF(F_Inputs!F45 = "", 0, IF($H45="water", F_Inputs!F45*'FS and RPEs'!C$9, F_Inputs!F45*'FS and RPEs'!C$17)) -> 0 | G45: =IF(F_Inputs!G45 = "", 0, IF($H45="water", F_Inputs!G45*'FS and RPEs'!D$9, F_Inputs!G45*'FS and RPEs'!D$17)) -> 0 | H45: Wastewater | I45: AP
A46: SWB | B46: C_PR24CA62_ENH_WW_AP | C46: Total enhancement allowance - Wastewater - Sanitary parameters - Accelerated programme | D46: £m | E46: Price Review 2024 | F46: =IF(F_Inputs!F46 = "", 0, IF($H46="water", F_Inputs!F46*'FS and RPEs'!C$9, F_Inputs!F46*'FS and RPEs'!C$17)) -> 0 | G46: =IF(F_Inputs!G46 = "", 0, IF($H46="water", F_Inputs!G46*'FS and RPEs'!D$9, F_Inputs!G46*'FS and RPEs'!D$17)) -> 0 | H46: Wastewater | I46: AP
A47: SWB | B47: C_PR24CA63_ENH_WW_AP | C47: Total enhancement allowance - Wastewater - CSO green storage - Accelerated programme | D47: £m | E47: Price Review 2024 | F47: =IF(F_Inputs!F47 = "", 0, IF($H47="water", F_Inputs!F47*'FS and RPEs'!C$9, F_Inputs!F47*'FS and RPEs'!C$17)) -> 0 | G47: =IF(F_Inputs!G47 = "", 0, IF($H47="water", F_Inputs!G47*'FS and RPEs'!D$9, F_Inputs!G47*'FS and RPEs'!D$17)) -> 0 | H47: Wastewater | I47: AP
A48: SWB | B48: C_PR24CA64_ENH_WW_AP | C48: Total enhancement allowance - Wastewater - Nutrient balancing - Accelerated programme | D48: £m | E48: Price Review 2024 | F48: =IF(F_Inputs!F48 = "", 0, IF($H48="water", F_Inputs!F48*'FS and RPEs'!C$9, F_Inputs!F48*'FS and RPEs'!C$17)) -> 0 | G48: =IF(F_Inputs!G48 = "", 0, IF($H48="water", F_Inputs!G48*'FS and RPEs'!D$9, F_Inputs!G48*'FS and RPEs'!D$17)) -> 0 | H48: Wastewater | I48: AP
A49: SWB | B49: C_PR24CA65_ENH_WW_AP | C49: Total enhancement allowance - Wastewater - Catchment permitting - Accelerated programme | D49: £m | E49: Price Review 2024 | F49: =IF(F_Inputs!F49 = "", 0, IF($H49="water", F_Inputs!F49*'FS and RPEs'!C$9, F_Inputs!F49*'FS and RPEs'!C$17)) -> 0 | G49: =IF(F_Inputs!G49 = "", 0, IF($H49="water", F_Inputs!G49*'FS and RPEs'!D$9, F_Inputs!G49*'FS and RPEs'!D$17)) -> 0 | H49: Wastewater | I49: AP
A50: SWB | B50: C_PR24CA66_ENH_WW_AP | C50: Total enhancement allowance - Wastewater - Habitat restoration - Accelerated programme | D50: £m | E50: Price Review 2024 | F50: =IF(F_Inputs!F50 = "", 0, IF($H50="water", F_Inputs!F50*'FS and RPEs'!C$9, F_Inputs!F50*'FS and RPEs'!C$17)) -> 0 | G50: =IF(F_Inputs!G50 = "", 0, IF($H50="water", F_Inputs!G50*'FS and RPEs'!D$9, F_Inputs!G50*'FS and RPEs'!D$17)) -> 0 | H50: Wastewater | I50: AP
A51: SWB | B51: C_PR24CA67_ENH_WW_AP | C51: Total enhancement allowance - Wastewater - Microbiological treatment - Accelerated programme | D51: £m | E51: Price Review 2024 | F51: =IF(F_Inputs!F51 = "", 0, IF($H51="water", F_Inputs!F51*'FS and RPEs'!C$9, F_Inputs!F51*'FS and RPEs'!C$17)) -> 0 | G51: =IF(F_Inputs!G51 = "", 0, IF($H51="water", F_Inputs!G51*'FS and RPEs'!D$9, F_Inputs!G51*'FS and RPEs'!D$17)) -> 0 | H51: Wastewater | I51: AP
A52: SWB | B52: C_PR24CA68_ENH_WW_AP | C52: Total enhancement allowance - Wastewater - Septic tank treatment solutions & flow diversions - Accelerated programme | D52: £m | E52: Price Review 2024 | F52: =IF(F_Inputs!F52 = "", 0, IF($H52="water", F_Inputs!F52*'FS and RPEs'!C$9, F_Inputs!F52*'FS and RPEs'!C$17)) -> 0 | G52: =IF(F_Inputs!G52 = "", 0, IF($H52="water", F_Inputs!G52*'FS and RPEs'!D$9, F_Inputs!G52*'FS and RPEs'!D$17)) -> 0 | H52: Wastewater | I52: AP
A53: SWB | B53: C_PR24CA69_ENH_WW_AP | C53: Total enhancement allowance - Wastewater - Fish screen - Accelerated programme | D53: £m | E53: Price Review 2024 | F53: =IF(F_Inputs!F53 = "", 0, IF($H53="water", F_Inputs!F53*'FS and RPEs'!C$9, F_Inputs!F53*'FS and RPEs'!C$17)) -> 0 | G53: =IF(F_Inputs!G53 = "", 0, IF($H53="water", F_Inputs!G53*'FS and RPEs'!D$9, F_Inputs!G53*'FS and RPEs'!D$17)) -> 0 | H53: Wastewater | I53: AP
A54: SWB | B54: C_PR24CA70_ENH_WW_AP | C54: Total enhancement allowance - Wastewater - 25 year environment plan - Accelerated programme | D54: £m | E54: Price Review 2024 | F54: =IF(F_Inputs!F54 = "", 0, IF($H54="water", F_Inputs!F54*'FS and RPEs'!C$9, F_Inputs!F54*'FS and RPEs'!C$17)) -> 0 | G54: =IF(F_Inputs!G54 = "", 0, IF($H54="water", F_Inputs!G54*'FS and RPEs'!D$9, F_Inputs!G54*'FS and RPEs'!D$17)) -> 0 | H54: Wastewater | I54: AP
A55: SWB | B55: C_PR24CA71_ENH_WW_AP | C55: Total enhancement allowance - Wastewater - Investigations - Accelerated programme | D55: £m | E55: Price Review 2024 | F55: =IF(F_Inputs!F55 = "", 0, IF($H55="water", F_Inputs!F55*'FS and RPEs'!C$9, F_Inputs!F55*'FS and RPEs'!C$17)) -> 0 | G55: =IF(F_Inputs!G55 = "", 0, IF($H55="water", F_Inputs!G55*'FS and RPEs'!D$9, F_Inputs!G55*'FS and RPEs'!D$17)) -> 0 | H55: Wastewater | I55: AP
A56: SWB | B56: C_PR24CA72_ENH_WW_AP | C56: Total enhancement allowance - Wastewater - Third party schemes - Accelerated programme | D56: £m | E56: Price Review 2024 | F56: =IF(F_Inputs!F56 = "", 0, IF($H56="water", F_Inputs!F56*'FS and RPEs'!C$9, F_Inputs!F56*'FS and RPEs'!C$17)) -> 0 | G56: =IF(F_Inputs!G56 = "", 0, IF($H56="water", F_Inputs!G56*'FS and RPEs'!D$9, F_Inputs!G56*'FS and RPEs'!D$17)) -> 0 | H56: Wastewater | I56: AP
A57: SWB | B57: C_PR24CA73_ENH_WW_AP | C57: Total enhancement allowance - Wastewater - River connectivity - Accelerated programme | D57: £m | E57: Price Review 2024 | F57: =IF(F_Inputs!F57 = "", 0, IF($H57="water", F_Inputs!F57*'FS and RPEs'!C$9, F_Inputs!F57*'FS and RPEs'!C$17)) -> 0 | G57: =IF(F_Inputs!G57 = "", 0, IF($H57="water", F_Inputs!G57*'FS and RPEs'!D$9, F_Inputs!G57*'FS and RPEs'!D$17)) -> 0 | H57: Wastewater | I57: AP
A58: SWB | B58: C_PR24CA74_ENH_WW_AP | C58: Total enhancement allowance - Wastewater - Restoration management - Accelerated programme | D58: £m | E58: Price Review 2024 | F58: =IF(F_Inputs!F58 = "", 0, IF($H58="water", F_Inputs!F58*'FS and RPEs'!C$9, F_Inputs!F58*'FS and RPEs'!C$17)) -> 0 | G58: =IF(F_Inputs!G58 = "", 0, IF($H58="water", F_Inputs!G58*'FS and RPEs'!D$9, F_Inputs!G58*'FS and RPEs'!D$17)) -> 0 | H58: Wastewater | I58: AP
A59: SWB | B59: C_PR24CA76_ENH_WW_AP | C59: Total enhancement allowance - Wastewater - Advanced WINEP - Accelerated programme | D59: £m | E59: Price Review 2024 | F59: =IF(F_Inputs!F59 = "", 0, IF($H59="water", F_Inputs!F59*'FS and RPEs'!C$9, F_Inputs!F59*'FS and RPEs'!C$17)) -> 0 | G59: =IF(F_Inputs!G59 = "", 0, IF($H59="water", F_Inputs!G59*'FS and RPEs'!D$9, F_Inputs!G59*'FS and RPEs'!D$17)) -> 0 | H59: Wastewater | I59: AP
A60: SWB | B60: C_PR24CA77_ENH_WW_AP | C60: Total enhancement allowance - Wastewater - Sludge storage tanks - Accelerated programme | D60: £m | E60: Price Review 2024 | F60: =IF(F_Inputs!F60 = "", 0, IF($H60="water", F_Inputs!F60*'FS and RPEs'!C$9, F_Inputs!F60*'FS and RPEs'!C$17)) -> 0 | G60: =IF(F_Inputs!G60 = "", 0, IF($H60="water", F_Inputs!G60*'FS and RPEs'!D$9, F_Inputs!G60*'FS and RPEs'!D$17)) -> 0 | H60: Wastewater | I60: AP
A61: SWB | B61: C_PR24CA78_ENH_WW_AP | C61: Total enhancement allowance - Wastewater - Sludge storage cake - Accelerated programme | D61: £m | E61: Price Review 2024 | F61: =IF(F_Inputs!F61 = "", 0, IF($H61="water", F_Inputs!F61*'FS and RPEs'!C$9, F_Inputs!F61*'FS and RPEs'!C$17)) -> 0 | G61: =IF(F_Inputs!G61 = "", 0, IF($H61="water", F_Inputs!G61*'FS and RPEs'!D$9, F_Inputs!G61*'FS and RPEs'!D$17)) -> 0 | H61: Wastewater | I61: AP
A62: SWB | B62: C_PR24CA79_ENH_WW_AP | C62: Total enhancement allowance - Wastewater - Freeform - Accelerated programme | D62: £m | E62: Price Review 2024 | F62: =IF(F_Inputs!F62 = "", 0, IF($H62="water", F_Inputs!F62*'FS and RPEs'!C$9, F_Inputs!F62*'FS and RPEs'!C$17)) -> 0 | G62: =IF(F_Inputs!G62 = "", 0, IF($H62="water", F_Inputs!G62*'FS and RPEs'!D$9, F_Inputs!G62*'FS and RPEs'!D$17)) -> 0 | H62: Wastewater | I62: AP
A63: SWB | B63: C_PR24CA80_ENH_WW_AP | C63: Total enhancement allowance - Wastewater - Sludge treatment thickening - Accelerated programme | D63: £m | E63: Price Review 2024 | F63: =IF(F_Inputs!F63 = "", 0, IF($H63="water", F_Inputs!F63*'FS and RPEs'!C$9, F_Inputs!F63*'FS and RPEs'!C$17)) -> 0 | G63: =IF(F_Inputs!G63 = "", 0, IF($H63="water", F_Inputs!G63*'FS and RPEs'!D$9, F_Inputs!G63*'FS and RPEs'!D$17)) -> 0 | H63: Wastewater | I63: AP
A64: SWB | B64: C_PR24CA81_ENH_WW_AP | C64: Total enhancement allowance - Wastewater - Sludge treatment other - Accelerated programme | D64: £m | E64: Price Review 2024 | F64: =IF(F_Inputs!F64 = "", 0, IF($H64="water", F_Inputs!F64*'FS and RPEs'!C$9, F_Inputs!F64*'FS and RPEs'!C$17)) -> 0 | G64: =IF(F_Inputs!G64 = "", 0, IF($H64="water", F_Inputs!G64*'FS and RPEs'!D$9, F_Inputs!G64*'FS and RPEs'!D$17)) -> 0 | H64: Wastewater | I64: AP
A65: SWB | B65: C_PR24CA82_ENH_WW_AP | C65: Total enhancement allowance - Wastewater - Sludge investigations - Accelerated programme | D65: £m | E65: Price Review 2024 | F65: =IF(F_Inputs!F65 = "", 0, IF($H65="water", F_Inputs!F65*'FS and RPEs'!C$9, F_Inputs!F65*'FS and RPEs'!C$17)) -> 0 | G65: =IF(F_Inputs!G65 = "", 0, IF($H65="water", F_Inputs!G65*'FS and RPEs'!D$9, F_Inputs!G65*'FS and RPEs'!D$17)) -> 0 | H65: Wastewater | I65: AP
A66: SWB | B66: C_PR24CA83_ENH_WW_AP | C66: Total enhancement allowance - Wastewater - Growth at STW - Accelerated programme | D66: £m | E66: Price Review 2024 | F66: =IF(F_Inputs!F66 = "", 0, IF($H66="water", F_Inputs!F66*'FS and RPEs'!C$9, F_Inputs!F66*'FS and RPEs'!C$17)) -> 0 | G66: =IF(F_Inputs!G66 = "", 0, IF($H66="water", F_Inputs!G66*'FS and RPEs'!D$9, F_Inputs!G66*'FS and RPEs'!D$17)) -> 0 | H66: Wastewater | I66: AP
A67: SWB | B67: C_PR24CA84_ENH_WW_AP | C67: Total enhancement allowance - Wastewater - First time sewerage - Accelerated programme | D67: £m | E67: Price Review 2024 | F67: =IF(F_Inputs!F67 = "", 0, IF($H67="water", F_Inputs!F67*'FS and RPEs'!C$9, F_Inputs!F67*'FS and RPEs'!C$17)) -> 0 | G67: =IF(F_Inputs!G67 = "", 0, IF($H67="water", F_Inputs!G67*'FS and RPEs'!D$9, F_Inputs!G67*'FS and RPEs'!D$17)) -> 0 | H67: Wastewater | I67: AP
A68: SWB | B68: C_PR24CA85_ENH_WW_AP | C68: Total enhancement allowance - Wastewater - Odour and nuisance - Accelerated programme | D68: £m | E68: Price Review 2024 | F68: =IF(F_Inputs!F68 = "", 0, IF($H68="water", F_Inputs!F68*'FS and RPEs'!C$9, F_Inputs!F68*'FS and RPEs'!C$17)) -> 0 | G68: =IF(F_Inputs!G68 = "", 0, IF($H68="water", F_Inputs!G68*'FS and RPEs'!D$9, F_Inputs!G68*'FS and RPEs'!D$17)) -> 0 | H68: Wastewater | I68: AP
A69: SWB | B69: C_PR24CA87_ENH_WW_AP | C69: Total enhancement allowance - Wastewater - Security - cyber - Accelerated programme | D69: £m | E69: Price Review 2024 | F69: =IF(F_Inputs!F69 = "", 0, IF($H69="water", F_Inputs!F69*'FS and RPEs'!C$9, F_Inputs!F69*'FS and RPEs'!C$17)) -> 0 | G69: =IF(F_Inputs!G69 = "", 0, IF($H69="water", F_Inputs!G69*'FS and RPEs'!D$9, F_Inputs!G69*'FS and RPEs'!D$17)) -> 0 | H69: Wastewater | I69: AP
A70: SWB | B70: C_PR24CA88_ENH_WW_AP | C70: Total enhancement allowance - Wastewater - Net zero wastewater - Accelerated programme | D70: £m | E70: Price Review 2024 | F70: =IF(F_Inputs!F70 = "", 0, IF($H70="water", F_Inputs!F70*'FS and RPEs'!C$9, F_Inputs!F70*'FS and RPEs'!C$17)) -> 0 | G70: =IF(F_Inputs!G70 = "", 0, IF($H70="water", F_Inputs!G70*'FS and RPEs'!D$9, F_Inputs!G70*'FS and RPEs'!D$17)) -> 0 | H70: Wastewater | I70: AP
A71: SWB | B71: C_PR24CA89_ENH_WW_AP | C71: Total enhancement allowance - Wastewater - IED enhancement - Accelerated programme | D71: £m | E71: Price Review 2024 | F71: =IF(F_Inputs!F71 = "", 0, IF($H71="water", F_Inputs!F71*'FS and RPEs'!C$9, F_Inputs!F71*'FS and RPEs'!C$17)) -> 0 | G71: =IF(F_Inputs!G71 = "", 0, IF($H71="water", F_Inputs!G71*'FS and RPEs'!D$9, F_Inputs!G71*'FS and RPEs'!D$17)) -> 0 | H71: Wastewater | I71: AP
A72: SWB | B72: C_PR24CA91_ENH_WW_AP | C72: Total enhancement allowance - Wastewater - Resilience - Accelerated programme | D72: £m | E72: Price Review 2024 | F72: =IF(F_Inputs!F72 = "", 0, IF($H72="water", F_Inputs!F72*'FS and RPEs'!C$9, F_Inputs!F72*'FS and RPEs'!C$17)) -> 0 | G72: =IF(F_Inputs!G72 = "", 0, IF($H72="water", F_Inputs!G72*'FS and RPEs'!D$9, F_Inputs!G72*'FS and RPEs'!D$17)) -> 0 | H72: Wastewater | I72: AP
A73: SWB | B73: C_PR24CA39_ENH_WW_AP | C73: Total enhancement allowance - Wastewater - Cyber - Accelerated programme | D73: £m | E73: Price Review 2024 | F73: =IF(F_Inputs!F73 = "", 0, IF($H73="water", F_Inputs!F73*'FS and RPEs'!C$9, F_Inputs!F73*'FS and RPEs'!C$17)) -> 0 | G73: =IF(F_Inputs!G73 = "", 0, IF($H73="water", F_Inputs!G73*'FS and RPEs'!D$9, F_Inputs!G73*'FS and RPEs'!D$17)) -> 0 | H73: Wastewater | I73: AP
A74: SWB | B74: C_PR24CA42_ENH_WW_AP | C74: Total enhancement allowance - Wastewater - SEMD - Accelerated programme | D74: £m | E74: Price Review 2024 | F74: =IF(F_Inputs!F74 = "", 0, IF($H74="water", F_Inputs!F74*'FS and RPEs'!C$9, F_Inputs!F74*'FS and RPEs'!C$17)) -> 0 | G74: =IF(F_Inputs!G74 = "", 0, IF($H74="water", F_Inputs!G74*'FS and RPEs'!D$9, F_Inputs!G74*'FS and RPEs'!D$17)) -> 0 | H74: Wastewater | I74: AP
A75: SWB | B75: C_PR24CA29_ENH_W_TE | C75: Total enhancement allowance - Water - Supply - Transition allowance | D75: £m | E75: Price Review 2024 | F75: =IF(F_Inputs!F75 = "", 0, IF($H75="water", F_Inputs!F75*'FS and RPEs'!C$9, F_Inputs!F75*'FS and RPEs'!C$17)) -> 0 | G75: =IF(F_Inputs!G75 = "", 0, IF($H75="water", F_Inputs!G75*'FS and RPEs'!D$9, F_Inputs!G75*'FS and RPEs'!D$17)) -> 0 | H75: Water | I75: TE | J75: Supply
A76: SWB | B76: C_PR24CA30_ENH_W_TE | C76: Total enhancement allowance - Water - Freeform - Transition allowance | D76: £m | E76: Price Review 2024 | F76: =IF(F_Inputs!F76 = "", 0, IF($H76="water", F_Inputs!F76*'FS and RPEs'!C$9, F_Inputs!F76*'FS and RPEs'!C$17)) -> 0 | G76: =IF(F_Inputs!G76 = "", 0, IF($H76="water", F_Inputs!G76*'FS and RPEs'!D$9, F_Inputs!G76*'FS and RPEs'!D$17)) -> 0 | H76: Water | I76: TE | J76: Water - freeform
A77: SWB | B77: C_PR24CA31_ENH_W_TE | C77: Total enhancement allowance - Water - Resilience - Transition allowance | D77: £m | E77: Price Review 2024 | F77: =IF(F_Inputs!F77 = "", 0, IF($H77="water", F_Inputs!F77*'FS and RPEs'!C$9, F_Inputs!F77*'FS and RPEs'!C$17)) -> 0 | G77: =IF(F_Inputs!G77 = "", 0, IF($H77="water", F_Inputs!G77*'FS and RPEs'!D$9, F_Inputs!G77*'FS and RPEs'!D$17)) -> 0 | H77: Water | I77: TE | J77: Water - resilience
A78: SWB | B78: C_PR24CA32_ENH_W_TE | C78: Total enhancement allowance - Water - Metering - Transition allowance | D78: £m | E78: Price Review 2024 | F78: =IF(F_Inputs!F78 = "", 0, IF($H78="water", F_Inputs!F78*'FS and RPEs'!C$9, F_Inputs!F78*'FS and RPEs'!C$17)) -> 0 | G78: =IF(F_Inputs!G78 = "", 0, IF($H78="water", F_Inputs!G78*'FS and RPEs'!D$9, F_Inputs!G78*'FS and RPEs'!D$17)) -> 0 | H78: Water | I78: TE | J78: Metering
A79: SWB | B79: C_PR24CA33_ENH_W_TE | C79: Total enhancement allowance - Water - Raw water deterioration - Transition allowance | D79: £m | E79: Price Review 2024 | F79: =IF(F_Inputs!F79 = "", 0, IF($H79="water", F_Inputs!F79*'FS and RPEs'!C$9, F_Inputs!F79*'FS and RPEs'!C$17)) -> 0 | G79: =IF(F_Inputs!G79 = "", 0, IF($H79="water", F_Inputs!G79*'FS and RPEs'!D$9, F_Inputs!G79*'FS and RPEs'!D$17)) -> 0 | H79: Water | I79: TE | J79: Raw water deterioration
A80: SWB | B80: C_PR24CA34_ENH_W_TE | C80: Total enhancement allowance - Water - Leakage - Transition allowance | D80: £m | E80: Price Review 2024 | F80: =IF(F_Inputs!F80 = "", 0, IF($H80="water", F_Inputs!F80*'FS and RPEs'!C$9, F_Inputs!F80*'FS and RPEs'!C$17)) -> 0 | G80: =IF(F_Inputs!G80 = "", 0, IF($H80="water", F_Inputs!G80*'FS and RPEs'!D$9, F_Inputs!G80*'FS and RPEs'!D$17)) -> 0 | H80: Water | I80: TE | J80: Leakage
A81: SWB | B81: C_PR24CA35_ENH_W_TE | C81: Total enhancement allowance - Water - WFD - Transition allowance | D81: £m | E81: Price Review 2024 | F81: =IF(F_Inputs!F81 = "", 0, IF($H81="water", F_Inputs!F81*'FS and RPEs'!C$9, F_Inputs!F81*'FS and RPEs'!C$17)) -> 0 | G81: =IF(F_Inputs!G81 = "", 0, IF($H81="water", F_Inputs!G81*'FS and RPEs'!D$9, F_Inputs!G81*'FS and RPEs'!D$17)) -> 0 | H81: Water | I81: TE | J81: Water Framework Directive
A82: SWB | B82: C_PR24CA36_ENH_W_TE | C82: Total enhancement allowance - Water - Lead - Transition allowance | D82: £m | E82: Price Review 2024 | F82: =IF(F_Inputs!F82 = "", 0, IF($H82="water", F_Inputs!F82*'FS and RPEs'!C$9, F_Inputs!F82*'FS and RPEs'!C$17)) -> 0 | G82: =IF(F_Inputs!G82 = "", 0, IF($H82="water", F_Inputs!G82*'FS and RPEs'!D$9, F_Inputs!G82*'FS and RPEs'!D$17)) -> 0 | H82: Water | I82: TE | J82: Lead
A83: SWB | B83: C_PR24CA37_ENH_W_TE | C83: Total enhancement allowance - Water - TOC - Transition allowance | D83: £m | E83: Price Review 2024 | F83: =IF(F_Inputs!F83 = "", 0, IF($H83="water", F_Inputs!F83*'FS and RPEs'!C$9, F_Inputs!F83*'FS and RPEs'!C$17)) -> 0 | G83: =IF(F_Inputs!G83 = "", 0, IF($H83="water", F_Inputs!G83*'FS and RPEs'!D$9, F_Inputs!G83*'FS and RPEs'!D$17)) -> 0 | H83: Water | I83: TE | J83: Taste, odour and colour
A84: SWB | B84: C_PR24CA38_ENH_W_TE | C84: Total enhancement allowance - Water - Demand - Transition allowance | D84: £m | E84: Price Review 2024 | F84: =IF(F_Inputs!F84 = "", 0, IF($H84="water", F_Inputs!F84*'FS and RPEs'!C$9, F_Inputs!F84*'FS and RPEs'!C$17)) -> 0 | G84: =IF(F_Inputs!G84 = "", 0, IF($H84="water", F_Inputs!G84*'FS and RPEs'!D$9, F_Inputs!G84*'FS and RPEs'!D$17)) -> 0 | H84: Water | I84: TE | J84: Demand
A85: SWB | B85: C_PR24CA39_ENH_W_TE | C85: Total enhancement allowance - Water - Cyber - Transition allowance | D85: £m | E85: Price Review 2024 | F85: =IF(F_Inputs!F85 = "", 0, IF($H85="water", F_Inputs!F85*'FS and RPEs'!C$9, F_Inputs!F85*'FS and RPEs'!C$17)) -> 0 | G85: =IF(F_Inputs!G85 = "", 0, IF($H85="water", F_Inputs!G85*'FS and RPEs'!D$9, F_Inputs!G85*'FS and RPEs'!D$17)) -> 0 | H85: Water | I85: TE | J85: Cyber
A86: SWB | B86: C_PR24CA40_ENH_W_TE | C86: Total enhancement allowance - Water - Investigations - Transition allowance | D86: £m | E86: Price Review 2024 | F86: =IF(F_Inputs!F86 = "", 0, IF($H86="water", F_Inputs!F86*'FS and RPEs'!C$9, F_Inputs!F86*'FS and RPEs'!C$17)) -> 0 | G86: =IF(F_Inputs!G86 = "", 0, IF($H86="water", F_Inputs!G86*'FS and RPEs'!D$9, F_Inputs!G86*'FS and RPEs'!D$17)) -> 0 | H86: Water | I86: TE | J86: Water - investigations
A87: SWB | B87: C_PR24CA41_ENH_W_TE | C87: Total enhancement allowance - Water - Reservoir safety - Transition allowance | D87: £m | E87: Price Review 2024 | F87: =IF(F_Inputs!F87 = "", 0, IF($H87="water", F_Inputs!F87*'FS and RPEs'!C$9, F_Inputs!F87*'FS and RPEs'!C$17)) -> 0 | G87: =IF(F_Inputs!G87 = "", 0, IF($H87="water", F_Inputs!G87*'FS and RPEs'!D$9, F_Inputs!G87*'FS and RPEs'!D$17)) -> 0 | H87: Water | I87: TE | J87: Reservoir safety
A88: SWB | B88: C_PR24CA42_ENH_W_TE | C88: Total enhancement allowance - Water - SEMD - Transition allowance | D88: £m | E88: Price Review 2024 | F88: =IF(F_Inputs!F88 = "", 0, IF($H88="water", F_Inputs!F88*'FS and RPEs'!C$9, F_Inputs!F88*'FS and RPEs'!C$17)) -> 0 | G88: =IF(F_Inputs!G88 = "", 0, IF($H88="water", F_Inputs!G88*'FS and RPEs'!D$9, F_Inputs!G88*'FS and RPEs'!D$17)) -> 0 | H88: Water | I88: TE | J88: SEMD
A89: SWB | B89: C_PR24CA43_ENH_W_TE | C89: Total enhancement allowance - Water - Biodiversity conservation - Transition allowance | D89: £m | E89: Price Review 2024 | F89: =IF(F_Inputs!F89 = "", 0, IF($H89="water", F_Inputs!F89*'FS and RPEs'!C$9, F_Inputs!F89*'FS and RPEs'!C$17)) -> 0 | G89: =IF(F_Inputs!G89 = "", 0, IF($H89="water", F_Inputs!G89*'FS and RPEs'!D$9, F_Inputs!G89*'FS and RPEs'!D$17)) -> 0 | H89: Water | I89: TE | J89: Biodiversity and conservation
A90: SWB | B90: C_PR24CA44_ENH_W_TE | C90: Total enhancement allowance - Water - Net zero - Transition allowance | D90: £m | E90: Price Review 2024 | F90: =IF(F_Inputs!F90 = "", 0, IF($H90="water", F_Inputs!F90*'FS and RPEs'!C$9, F_Inputs!F90*'FS and RPEs'!C$17)) -> 0 | G90: =IF(F_Inputs!G90 = "", 0, IF($H90="water", F_Inputs!G90*'FS and RPEs'!D$9, F_Inputs!G90*'FS and RPEs'!D$17)) -> 0 | H90: Water | I90: TE | J90: Net zero
A91: SWB | B91: C_CA45_ENH_W_TE | C91: Total enhancement allowance - Water - DWPA - Transition allowance | D91: £m | E91: Price Review 2024 | F91: =IF(F_Inputs!F91 = "", 0, IF($H91="water", F_Inputs!F91*'FS and RPEs'!C$9, F_Inputs!F91*'FS and RPEs'!C$17)) -> 0 | G91: =IF(F_Inputs!G91 = "", 0, IF($H91="water", F_Inputs!G91*'FS and RPEs'!D$9, F_Inputs!G91*'FS and RPEs'!D$17)) -> 0 | H91: Water | I91: TE | J91: Drinking water protected areas
A92: SWB | B92: C_PR24CA46_ENH_W_TE | C92: Total enhancement allowance - Water - Strategic resource options - Transition allowance | D92: £m | E92: Price Review 2024 | F92: =IF(F_Inputs!F92 = "", 0, IF($H92="water", F_Inputs!F92*'FS and RPEs'!C$9, F_Inputs!F92*'FS and RPEs'!C$17)) -> 0 | G92: =IF(F_Inputs!G92 = "", 0, IF($H92="water", F_Inputs!G92*'FS and RPEs'!D$9, F_Inputs!G92*'FS and RPEs'!D$17)) -> 0 | H92: Water | I92: TE | J92: Strategic resource options
A93: SWB | B93: C_PR24CA47_ENH_W_TE | C93: Total enhancement allowance - Water - INNS - Transition allowance | D93: £m | E93: Price Review 2024 | F93: =IF(F_Inputs!F93 = "", 0, IF($H93="water", F_Inputs!F93*'FS and RPEs'!C$9, F_Inputs!F93*'FS and RPEs'!C$17)) -> 0 | G93: =IF(F_Inputs!G93 = "", 0, IF($H93="water", F_Inputs!G93*'FS and RPEs'!D$9, F_Inputs!G93*'FS and RPEs'!D$17)) -> 0 | H93: Water | I93: TE | J93: Invasive non native species
A94: SWB | B94: C_PR24CA48_ENH_W_TE | C94: Total enhancement allowance - Water - Eel fish screens - Transition allowance | D94: £m | E94: Price Review 2024 | F94: =IF(F_Inputs!F94 = "", 0, IF($H94="water", F_Inputs!F94*'FS and RPEs'!C$9, F_Inputs!F94*'FS and RPEs'!C$17)) -> 0 | G94: =IF(F_Inputs!G94 = "", 0, IF($H94="water", F_Inputs!G94*'FS and RPEs'!D$9, F_Inputs!G94*'FS and RPEs'!D$17)) -> 0 | H94: Water | I94: TE | J94: Eels/fish screens
A95: SWB | B95: C_PR24CA49_ENH_W_TE | C95: Total enhancement allowance - Water - Eel fish passes - Transition allowance | D95: £m | E95: Price Review 2024 | F95: =IF(F_Inputs!F95 = "", 0, IF($H95="water", F_Inputs!F95*'FS and RPEs'!C$9, F_Inputs!F95*'FS and RPEs'!C$17)) -> 0 | G95: =IF(F_Inputs!G95 = "", 0, IF($H95="water", F_Inputs!G95*'FS and RPEs'!D$9, F_Inputs!G95*'FS and RPEs'!D$17)) -> 0 | H95: Water | I95: TE | J95: Eels/fish passes
A96: SWB | B96: C_CA50_ENH_W_TE | C96: Total enhancement allowance - Water - 25YEP - Transition allowance | D96: £m | E96: Price Review 2024 | F96: =IF(F_Inputs!F96 = "", 0, IF($H96="water", F_Inputs!F96*'FS and RPEs'!C$9, F_Inputs!F96*'FS and RPEs'!C$17)) -> 0 | G96: =IF(F_Inputs!G96 = "", 0, IF($H96="water", F_Inputs!G96*'FS and RPEs'!D$9, F_Inputs!G96*'FS and RPEs'!D$17)) -> 0 | H96: Water | I96: TE | J96: 25-year environment plan
A97: SWB | B97: C_PR24CA51_ENH_W_TE | C97: Total enhancement allowance - Water - Discharge monitoring - Transition allowance | D97: £m | E97: Price Review 2024 | F97: =IF(F_Inputs!F97 = "", 0, IF($H97="water", F_Inputs!F97*'FS and RPEs'!C$9, F_Inputs!F97*'FS and RPEs'!C$17)) -> 0 | G97: =IF(F_Inputs!G97 = "", 0, IF($H97="water", F_Inputs!G97*'FS and RPEs'!D$9, F_Inputs!G97*'FS and RPEs'!D$17)) -> 0 | H97: Water | I97: TE | J97: Discharge monitoring
A98: SWB | B98: C_PR24CA52_ENH_W_TE | C98: Total enhancement allowance - Water - Wetland - Transition allowance | D98: £m | E98: Price Review 2024 | F98: =IF(F_Inputs!F98 = "", 0, IF($H98="water", F_Inputs!F98*'FS and RPEs'!C$9, F_Inputs!F98*'FS and RPEs'!C$17)) -> 0 | G98: =IF(F_Inputs!G98 = "", 0, IF($H98="water", F_Inputs!G98*'FS and RPEs'!D$9, F_Inputs!G98*'FS and RPEs'!D$17)) -> 0 | H98: Water | I98: TE | J98: Wetland creation
A99: SWB | B99: C_PR24CA92_ENH_W_TE | C99: Total enhancement allowance - Water - Supply interconnectors - Transition allowance | D99: £m | E99: Price Review 2024 | F99: =IF(F_Inputs!F99 = "", 0, IF($H99="water", F_Inputs!F99*'FS and RPEs'!C$9, F_Inputs!F99*'FS and RPEs'!C$17)) -> 0 | G99: =IF(F_Inputs!G99 = "", 0, IF($H99="water", F_Inputs!G99*'FS and RPEs'!D$9, F_Inputs!G99*'FS and RPEs'!D$17)) -> 0 | H99: Water | I99: TE | J99: Supply-interconnectors
A100: SWB | B100: C_PR24CA94_ENH_W_TE | C100: Total enhancement allowance - Water - Resilience interconnectors - Transition allowance | D100: £m | E100: Price Review 2024 | F100: =IF(F_Inputs!F100 = "", 0, IF($H100="water", F_Inputs!F100*'FS and RPEs'!C$9, F_Inputs!F100*'FS and RPEs'!C$17)) -> 0 | G100: =IF(F_Inputs!G100 = "", 0, IF($H100="water", F_Inputs!G100*'FS and RPEs'!D$9, F_Inputs!G100*'FS and RPEs'!D$17)) -> 0 | H100: Water | I100: TE | J100: Resilience - interconnectors
A101: SWB | B101: C_PR24CA16_ENH_WW_TE | C101: Total enhancement allowance - Wastewater - Event duration monitoring - Transition allowance | D101: £m | E101: Price Review 2024 | F101: =IF(F_Inputs!F101 = "", 0, IF($H101="water", F_Inputs!F101*'FS and RPEs'!C$9, F_Inputs!F101*'FS and RPEs'!C$17)) -> 0 | G101: =IF(F_Inputs!G101 = "", 0, IF($H101="water", F_Inputs!G101*'FS and RPEs'!D$9, F_Inputs!G101*'FS and RPEs'!D$17)) -> 0 | H101: Wastewater | I101: TE | J101: Event duration monitoring
A102: SWB | B102: C_PR24CA17_ENH_WW_TE | C102: Total enhancement allowance - Wastewater - Flow monitoring STW - Transition allowance | D102: £m | E102: Price Review 2024 | F102: =IF(F_Inputs!F102 = "", 0, IF($H102="water", F_Inputs!F102*'FS and RPEs'!C$9, F_Inputs!F102*'FS and RPEs'!C$17)) -> 0 | G102: =IF(F_Inputs!G102 = "", 0, IF($H102="water", F_Inputs!G102*'FS and RPEs'!D$9, F_Inputs!G102*'FS and RPEs'!D$17)) -> 0 | H102: Wastewater | I102: TE | J102: Flow monitoring STW
A103: SWB | B103: C_PR24CA20_ENH_WW_TE | C103: Total enhancement allowance - Wastewater - CWQM - Transition allowance | D103: £m | E103: Price Review 2024 | F103: =IF(F_Inputs!F103 = "", 0, IF($H103="water", F_Inputs!F103*'FS and RPEs'!C$9, F_Inputs!F103*'FS and RPEs'!C$17)) -> 0 | G103: =IF(F_Inputs!G103 = "", 0, IF($H103="water", F_Inputs!G103*'FS and RPEs'!D$9, F_Inputs!G103*'FS and RPEs'!D$17)) -> 0 | H103: Wastewater | I103: TE | J103: CWQM
A104: SWB | B104: C_PR24CA28_ENH_WW_TE | C104: Total enhancement allowance - Wastewater - MCERTS PS EO - Transition allowance | D104: £m | E104: Price Review 2024 | F104: =IF(F_Inputs!F104 = "", 0, IF($H104="water", F_Inputs!F104*'FS and RPEs'!C$9, F_Inputs!F104*'FS and RPEs'!C$17)) -> 0 | G104: =IF(F_Inputs!G104 = "", 0, IF($H104="water", F_Inputs!G104*'FS and RPEs'!D$9, F_Inputs!G104*'FS and RPEs'!D$17)) -> 0 | H104: Wastewater | I104: TE | J104: MCERTS PS EO
A105: SWB | B105: C_PR24CA53_ENH_WW_TE | C105: Total enhancement allowance - Wastewater - Flow to full treatment - Transition allowance | D105: £m | E105: Price Review 2024 | F105: =IF(F_Inputs!F105 = "", 0, IF($H105="water", F_Inputs!F105*'FS and RPEs'!C$9, F_Inputs!F105*'FS and RPEs'!C$17)) -> 0 | G105: =IF(F_Inputs!G105 = "", 0, IF($H105="water", F_Inputs!G105*'FS and RPEs'!D$9, F_Inputs!G105*'FS and RPEs'!D$17)) -> 0 | H105: Wastewater | I105: TE | J105: Flow to full treatment
A106: SWB | B106: C_PR24CA54_ENH_WW_TE | C106: Total enhancement allowance - Wastewater - STW Storage - Transition allowance | D106: £m | E106: Price Review 2024 | F106: =IF(F_Inputs!F106 = "", 0, IF($H106="water", F_Inputs!F106*'FS and RPEs'!C$9, F_Inputs!F106*'FS and RPEs'!C$17)) -> 0 | G106: =IF(F_Inputs!G106 = "", 0, IF($H106="water", F_Inputs!G106*'FS and RPEs'!D$9, F_Inputs!G106*'FS and RPEs'!D$17)) -> 0 | H106: Wastewater | I106: TE | J106: Storm overflow
A107: SWB | B107: C_PR24CA55_ENH_WW_TE | C107: Total enhancement allowance - Wastewater - CSO Spill Reduction - Transition allowance | D107: £m | E107: Price Review 2024 | F107: =IF(F_Inputs!F107 = "", 0, IF($H107="water", F_Inputs!F107*'FS and RPEs'!C$9, F_Inputs!F107*'FS and RPEs'!C$17)) -> 0 | G107: =IF(F_Inputs!G107 = "", 0, IF($H107="water", F_Inputs!G107*'FS and RPEs'!D$9, F_Inputs!G107*'FS and RPEs'!D$17)) -> 73.79218656 | H107: Wastewater | I107: TE | J107: Storm overflow
A108: SWB | B108: C_PR24CA56_ENH_WW_TE | C108: Total enhancement allowance - Wastewater - Chemicals removal - Transition allowance | D108: £m | E108: Price Review 2024 | F108: =IF(F_Inputs!F108 = "", 0, IF($H108="water", F_Inputs!F108*'FS and RPEs'!C$9, F_Inputs!F108*'FS and RPEs'!C$17)) -> 0 | G108: =IF(F_Inputs!G108 = "", 0, IF($H108="water", F_Inputs!G108*'FS and RPEs'!D$9, F_Inputs!G108*'FS and RPEs'!D$17)) -> 0 | H108: Wastewater | I108: TE | J108: Chemicals removal
A109: SWB | B109: C_PR24CA57_ENH_WW_TE | C109: Total enhancement allowance - Wastewater - Chemical investigations - Transition allowance | D109: £m | E109: Price Review 2024 | F109: =IF(F_Inputs!F109 = "", 0, IF($H109="water", F_Inputs!F109*'FS and RPEs'!C$9, F_Inputs!F109*'FS and RPEs'!C$17)) -> 0 | G109: =IF(F_Inputs!G109 = "", 0, IF($H109="water", F_Inputs!G109*'FS and RPEs'!D$9, F_Inputs!G109*'FS and RPEs'!D$17)) -> 0 | H109: Wastewater | I109: TE | J109: Chemical investigations
A110: SWB | B110: C_PR24CA58_ENH_WW_TE | C110: Total enhancement allowance - Wastewater - N-removal - Transition allowance | D110: £m | E110: Price Review 2024 | F110: =IF(F_Inputs!F110 = "", 0, IF($H110="water", F_Inputs!F110*'FS and RPEs'!C$9, F_Inputs!F110*'FS and RPEs'!C$17)) -> 0 | G110: =IF(F_Inputs!G110 = "", 0, IF($H110="water", F_Inputs!G110*'FS and RPEs'!D$9, F_Inputs!G110*'FS and RPEs'!D$17)) -> 0 | H110: Wastewater | I110: TE | J110: n removal
A111: SWB | B111: C_PR24CA59_ENH_WW_TE | C111: Total enhancement allowance - Wastewater - NTAL - Transition allowance | D111: £m | E111: Price Review 2024 | F111: =IF(F_Inputs!F111 = "", 0, IF($H111="water", F_Inputs!F111*'FS and RPEs'!C$9, F_Inputs!F111*'FS and RPEs'!C$17)) -> 0 | G111: =IF(F_Inputs!G111 = "", 0, IF($H111="water", F_Inputs!G111*'FS and RPEs'!D$9, F_Inputs!G111*'FS and RPEs'!D$17)) -> 0 | H111: Wastewater | I111: TE | J111: NTAL
A112: SWB | B112: C_PR24CA60_ENH_WW_TE | C112: Total enhancement allowance - Wastewater - P-removal - Transition allowance | D112: £m | E112: Price Review 2024 | F112: =IF(F_Inputs!F112 = "", 0, IF($H112="water", F_Inputs!F112*'FS and RPEs'!C$9, F_Inputs!F112*'FS and RPEs'!C$17)) -> 0 | G112: =IF(F_Inputs!G112 = "", 0, IF($H112="water", F_Inputs!G112*'FS and RPEs'!D$9, F_Inputs!G112*'FS and RPEs'!D$17)) -> 0 | H112: Wastewater | I112: TE | J112: p removal
A113: SWB | B113: C_PR24CA61_ENH_WW_TE | C113: Total enhancement allowance - Wastewater - Nutrients or sanitary determinands NBS - Transition allowance | D113: £m | E113: Price Review 2024 | F113: =IF(F_Inputs!F113 = "", 0, IF($H113="water", F_Inputs!F113*'FS and RPEs'!C$9, F_Inputs!F113*'FS and RPEs'!C$17)) -> 0 | G113: =IF(F_Inputs!G113 = "", 0, IF($H113="water", F_Inputs!G113*'FS and RPEs'!D$9, F_Inputs!G113*'FS and RPEs'!D$17)) -> 0 | H113: Wastewater | I113: TE | J113: Nutrients or sanitary determinands NBS
A114: SWB | B114: C_PR24CA62_ENH_WW_TE | C114: Total enhancement allowance - Wastewater - Sanitary parameters - Transition allowance | D114: £m | E114: Price Review 2024 | F114: =IF(F_Inputs!F114 = "", 0, IF($H114="water", F_Inputs!F114*'FS and RPEs'!C$9, F_Inputs!F114*'FS and RPEs'!C$17)) -> 0 | G114: =IF(F_Inputs!G114 = "", 0, IF($H114="water", F_Inputs!G114*'FS and RPEs'!D$9, F_Inputs!G114*'FS and RPEs'!D$17)) -> 0 | H114: Wastewater | I114: TE | J114: Sanitary parameters
A115: SWB | B115: C_PR24CA63_ENH_WW_TE | C115: Total enhancement allowance - Wastewater - CSO green storage - Transition allowance | D115: £m | E115: Price Review 2024 | F115: =IF(F_Inputs!F115 = "", 0, IF($H115="water", F_Inputs!F115*'FS and RPEs'!C$9, F_Inputs!F115*'FS and RPEs'!C$17)) -> 0 | G115: =IF(F_Inputs!G115 = "", 0, IF($H115="water", F_Inputs!G115*'FS and RPEs'!D$9, F_Inputs!G115*'FS and RPEs'!D$17)) -> 0 | H115: Wastewater | I115: TE | J115: Chemicals source control
A116: SWB | B116: C_PR24CA64_ENH_WW_TE | C116: Total enhancement allowance - Wastewater - Nutrient balancing - Transition allowance | D116: £m | E116: Price Review 2024 | F116: =IF(F_Inputs!F116 = "", 0, IF($H116="water", F_Inputs!F116*'FS and RPEs'!C$9, F_Inputs!F116*'FS and RPEs'!C$17)) -> 0 | G116: =IF(F_Inputs!G116 = "", 0, IF($H116="water", F_Inputs!G116*'FS and RPEs'!D$9, F_Inputs!G116*'FS and RPEs'!D$17)) -> 0 | H116: Wastewater | I116: TE | J116: Nutrient balancing
A117: SWB | B117: C_PR24CA65_ENH_WW_TE | C117: Total enhancement allowance - Wastewater - Catchment permitting - Transition allowance | D117: £m | E117: Price Review 2024 | F117: =IF(F_Inputs!F117 = "", 0, IF($H117="water", F_Inputs!F117*'FS and RPEs'!C$9, F_Inputs!F117*'FS and RPEs'!C$17)) -> 0 | G117: =IF(F_Inputs!G117 = "", 0, IF($H117="water", F_Inputs!G117*'FS and RPEs'!D$9, F_Inputs!G117*'FS and RPEs'!D$17)) -> 0 | H117: Wastewater | I117: TE | J117: Catchment permitting
A118: SWB | B118: C_PR24CA66_ENH_WW_TE | C118: Total enhancement allowance - Wastewater - Habitat restoration - Transition allowance | D118: £m | E118: Price Review 2024 | F118: =IF(F_Inputs!F118 = "", 0, IF($H118="water", F_Inputs!F118*'FS and RPEs'!C$9, F_Inputs!F118*'FS and RPEs'!C$17)) -> 0 | G118: =IF(F_Inputs!G118 = "", 0, IF($H118="water", F_Inputs!G118*'FS and RPEs'!D$9, F_Inputs!G118*'FS and RPEs'!D$17)) -> 0 | H118: Wastewater | I118: TE | J118: Habitat restoration
A119: SWB | B119: C_PR24CA67_ENH_WW_TE | C119: Total enhancement allowance - Wastewater - Microbiological treatment - Transition allowance | D119: £m | E119: Price Review 2024 | F119: =IF(F_Inputs!F119 = "", 0, IF($H119="water", F_Inputs!F119*'FS and RPEs'!C$9, F_Inputs!F119*'FS and RPEs'!C$17)) -> 0 | G119: =IF(F_Inputs!G119 = "", 0, IF($H119="water", F_Inputs!G119*'FS and RPEs'!D$9, F_Inputs!G119*'FS and RPEs'!D$17)) -> 0 | H119: Wastewater | I119: TE | J119: Microbiological treatment
A120: SWB | B120: C_PR24CA68_ENH_WW_TE | C120: Total enhancement allowance - Wastewater - Septic tank treatment solutions & flow diversions - Transition allowance | D120: £m | E120: Price Review 2024 | F120: =IF(F_Inputs!F120 = "", 0, IF($H120="water", F_Inputs!F120*'FS and RPEs'!C$9, F_Inputs!F120*'FS and RPEs'!C$17)) -> 0 | G120: =IF(F_Inputs!G120 = "", 0, IF($H120="water", F_Inputs!G120*'FS and RPEs'!D$9, F_Inputs!G120*'FS and RPEs'!D$17)) -> 0 | H120: Wastewater | I120: TE | J120: Septic tank
A121: SWB | B121: C_PR24CA69_ENH_WW_TE | C121: Total enhancement allowance - Wastewater - Fish screen - Transition allowance | D121: £m | E121: Price Review 2024 | F121: =IF(F_Inputs!F121 = "", 0, IF($H121="water", F_Inputs!F121*'FS and RPEs'!C$9, F_Inputs!F121*'FS and RPEs'!C$17)) -> 0 | G121: =IF(F_Inputs!G121 = "", 0, IF($H121="water", F_Inputs!G121*'FS and RPEs'!D$9, F_Inputs!G121*'FS and RPEs'!D$17)) -> 0 | H121: Wastewater | I121: TE | J121: Fish screen
A122: SWB | B122: C_PR24CA70_ENH_WW_TE | C122: Total enhancement allowance - Wastewater - 25 year environment plan - Transition allowance | D122: £m | E122: Price Review 2024 | F122: =IF(F_Inputs!F122 = "", 0, IF($H122="water", F_Inputs!F122*'FS and RPEs'!C$9, F_Inputs!F122*'FS and RPEs'!C$17)) -> 0 | G122: =IF(F_Inputs!G122 = "", 0, IF($H122="water", F_Inputs!G122*'FS and RPEs'!D$9, F_Inputs!G122*'FS and RPEs'!D$17)) -> 0 | H122: Wastewater | I122: TE | J122: 25 year environment plan
A123: SWB | B123: C_PR24CA71_ENH_WW_TE | C123: Total enhancement allowance - Wastewater - Investigations - Transition allowance | D123: £m | E123: Price Review 2024 | F123: =IF(F_Inputs!F123 = "", 0, IF($H123="water", F_Inputs!F123*'FS and RPEs'!C$9, F_Inputs!F123*'FS and RPEs'!C$17)) -> 0 | G123: =IF(F_Inputs!G123 = "", 0, IF($H123="water", F_Inputs!G123*'FS and RPEs'!D$9, F_Inputs!G123*'FS and RPEs'!D$17)) -> 0 | H123: Wastewater | I123: TE | J123: Waste - investigations
A124: SWB | B124: C_PR24CA72_ENH_WW_TE | C124: Total enhancement allowance - Wastewater - Third party schemes - Transition allowance | D124: £m | E124: Price Review 2024 | F124: =IF(F_Inputs!F124 = "", 0, IF($H124="water", F_Inputs!F124*'FS and RPEs'!C$9, F_Inputs!F124*'FS and RPEs'!C$17)) -> 0 | G124: =IF(F_Inputs!G124 = "", 0, IF($H124="water", F_Inputs!G124*'FS and RPEs'!D$9, F_Inputs!G124*'FS and RPEs'!D$17)) -> 0 | H124: Wastewater | I124: TE | J124: Third party schemes
A125: SWB | B125: C_PR24CA73_ENH_WW_TE | C125: Total enhancement allowance - Wastewater - River connectivity - Transition allowance | D125: £m | E125: Price Review 2024 | F125: =IF(F_Inputs!F125 = "", 0, IF($H125="water", F_Inputs!F125*'FS and RPEs'!C$9, F_Inputs!F125*'FS and RPEs'!C$17)) -> 0 | G125: =IF(F_Inputs!G125 = "", 0, IF($H125="water", F_Inputs!G125*'FS and RPEs'!D$9, F_Inputs!G125*'FS and RPEs'!D$17)) -> 0 | H125: Wastewater | I125: TE | J125: River connectivity
A126: SWB | B126: C_PR24CA74_ENH_WW_TE | C126: Total enhancement allowance - Wastewater - Restoration management - Transition allowance | D126: £m | E126: Price Review 2024 | F126: =IF(F_Inputs!F126 = "", 0, IF($H126="water", F_Inputs!F126*'FS and RPEs'!C$9, F_Inputs!F126*'FS and RPEs'!C$17)) -> 0 | G126: =IF(F_Inputs!G126 = "", 0, IF($H126="water", F_Inputs!G126*'FS and RPEs'!D$9, F_Inputs!G126*'FS and RPEs'!D$17)) -> 0 | H126: Wastewater | I126: TE | J126: Restoration management
A127: SWB | B127: C_PR24CA76_ENH_WW_TE | C127: Total enhancement allowance - Wastewater - Advanced WINEP - Transition allowance | D127: £m | E127: Price Review 2024 | F127: =IF(F_Inputs!F127 = "", 0, IF($H127="water", F_Inputs!F127*'FS and RPEs'!C$9, F_Inputs!F127*'FS and RPEs'!C$17)) -> 0 | G127: =IF(F_Inputs!G127 = "", 0, IF($H127="water", F_Inputs!G127*'FS and RPEs'!D$9, F_Inputs!G127*'FS and RPEs'!D$17)) -> 0 | H127: Wastewater | I127: TE | J127: Advanced WINEP
A128: SWB | B128: C_PR24CA77_ENH_WW_TE | C128: Total enhancement allowance - Wastewater - Sludge storage tanks - Transition allowance | D128: £m | E128: Price Review 2024 | F128: =IF(F_Inputs!F128 = "", 0, IF($H128="water", F_Inputs!F128*'FS and RPEs'!C$9, F_Inputs!F128*'FS and RPEs'!C$17)) -> 0 | G128: =IF(F_Inputs!G128 = "", 0, IF($H128="water", F_Inputs!G128*'FS and RPEs'!D$9, F_Inputs!G128*'FS and RPEs'!D$17)) -> 0 | H128: Wastewater | I128: TE | J128: Sludge storage tank
A129: SWB | B129: C_PR24CA78_ENH_WW_TE | C129: Total enhancement allowance - Wastewater - Sludge storage cake - Transition allowance | D129: £m | E129: Price Review 2024 | F129: =IF(F_Inputs!F129 = "", 0, IF($H129="water", F_Inputs!F129*'FS and RPEs'!C$9, F_Inputs!F129*'FS and RPEs'!C$17)) -> 0 | G129: =IF(F_Inputs!G129 = "", 0, IF($H129="water", F_Inputs!G129*'FS and RPEs'!D$9, F_Inputs!G129*'FS and RPEs'!D$17)) -> 0 | H129: Wastewater | I129: TE | J129: Sludge storage cake
A130: SWB | B130: C_PR24CA79_ENH_WW_TE | C130: Total enhancement allowance - Wastewater - Freeform - Transition allowance | D130: £m | E130: Price Review 2024 | F130: =IF(F_Inputs!F130 = "", 0, IF($H130="water", F_Inputs!F130*'FS and RPEs'!C$9, F_Inputs!F130*'FS and RPEs'!C$17)) -> 0 | G130: =IF(F_Inputs!G130 = "", 0, IF($H130="water", F_Inputs!G130*'FS and RPEs'!D$9, F_Inputs!G130*'FS and RPEs'!D$17)) -> 0 | H130: Wastewater | I130: TE | J130: Waste - freeform
A131: SWB | B131: C_PR24CA80_ENH_WW_TE | C131: Total enhancement allowance - Wastewater - Sludge treatment thickening - Transition allowance | D131: £m | E131: Price Review 2024 | F131: =IF(F_Inputs!F131 = "", 0, IF($H131="water", F_Inputs!F131*'FS and RPEs'!C$9, F_Inputs!F131*'FS and RPEs'!C$17)) -> 0 | G131: =IF(F_Inputs!G131 = "", 0, IF($H131="water", F_Inputs!G131*'FS and RPEs'!D$9, F_Inputs!G131*'FS and RPEs'!D$17)) -> 0 | H131: Wastewater | I131: TE | J131: Sludge treatment thickening
A132: SWB | B132: C_PR24CA81_ENH_WW_TE | C132: Total enhancement allowance - Wastewater - Sludge treatment other - Transition allowance | D132: £m | E132: Price Review 2024 | F132: =IF(F_Inputs!F132 = "", 0, IF($H132="water", F_Inputs!F132*'FS and RPEs'!C$9, F_Inputs!F132*'FS and RPEs'!C$17)) -> 0 | G132: =IF(F_Inputs!G132 = "", 0, IF($H132="water", F_Inputs!G132*'FS and RPEs'!D$9, F_Inputs!G132*'FS and RPEs'!D$17)) -> 0 | H132: Wastewater | I132: TE | J132: Sludge treatment other
A133: SWB | B133: C_PR24CA82_ENH_WW_TE | C133: Total enhancement allowance - Wastewater - Sludge investigations - Transition allowance | D133: £m | E133: Price Review 2024 | F133: =IF(F_Inputs!F133 = "", 0, IF($H133="water", F_Inputs!F133*'FS and RPEs'!C$9, F_Inputs!F133*'FS and RPEs'!C$17)) -> 0 | G133: =IF(F_Inputs!G133 = "", 0, IF($H133="water", F_Inputs!G133*'FS and RPEs'!D$9, F_Inputs!G133*'FS and RPEs'!D$17)) -> 0 | H133: Wastewater | I133: TE | J133: Sludge investigations
A134: SWB | B134: C_PR24CA83_ENH_WW_TE | C134: Total enhancement allowance - Wastewater - Growth at STW - Transition allowance | D134: £m | E134: Price Review 2024 | F134: =IF(F_Inputs!F134 = "", 0, IF($H134="water", F_Inputs!F134*'FS and RPEs'!C$9, F_Inputs!F134*'FS and RPEs'!C$17)) -> 0 | G134: =IF(F_Inputs!G134 = "", 0, IF($H134="water", F_Inputs!G134*'FS and RPEs'!D$9, F_Inputs!G134*'FS and RPEs'!D$17)) -> 0 | H134: Wastewater | I134: TE | J134: Growth at STW
A135: SWB | B135: C_PR24CA84_ENH_WW_TE | C135: Total enhancement allowance - Wastewater - First time sewerage - Transition allowance | D135: £m | E135: Price Review 2024 | F135: =IF(F_Inputs!F135 = "", 0, IF($H135="water", F_Inputs!F135*'FS and RPEs'!C$9, F_Inputs!F135*'FS and RPEs'!C$17)) -> 0 | G135: =IF(F_Inputs!G135 = "", 0, IF($H135="water", F_Inputs!G135*'FS and RPEs'!D$9, F_Inputs!G135*'FS and RPEs'!D$17)) -> 0 | H135: Wastewater | I135: TE | J135: First time sewerage
A136: SWB | B136: C_PR24CA85_ENH_WW_TE | C136: Total enhancement allowance - Wastewater - Odour and nuisance - Transition allowance | D136: £m | E136: Price Review 2024 | F136: =IF(F_Inputs!F136 = "", 0, IF($H136="water", F_Inputs!F136*'FS and RPEs'!C$9, F_Inputs!F136*'FS and RPEs'!C$17)) -> 0 | G136: =IF(F_Inputs!G136 = "", 0, IF($H136="water", F_Inputs!G136*'FS and RPEs'!D$9, F_Inputs!G136*'FS and RPEs'!D$17)) -> 0 | H136: Wastewater | I136: TE | J136: Odour and nuisance
A137: SWB | B137: C_PR24CA87_ENH_WW_TE | C137: Total enhancement allowance - Wastewater - Security - cyber - Transition allowance | D137: £m | E137: Price Review 2024 | F137: =IF(F_Inputs!F137 = "", 0, IF($H137="water", F_Inputs!F137*'FS and RPEs'!C$9, F_Inputs!F137*'FS and RPEs'!C$17)) -> 0 | G137: =IF(F_Inputs!G137 = "", 0, IF($H137="water", F_Inputs!G137*'FS and RPEs'!D$9, F_Inputs!G137*'FS and RPEs'!D$17)) -> 0 | H137: Wastewater | I137: TE | J137: Cyber
A138: SWB | B138: C_PR24CA88_ENH_WW_TE | C138: Total enhancement allowance - Wastewater - Net zero wastewater - Transition allowance | D138: £m | E138: Price Review 2024 | F138: =IF(F_Inputs!F138 = "", 0, IF($H138="water", F_Inputs!F138*'FS and RPEs'!C$9, F_Inputs!F138*'FS and RPEs'!C$17)) -> 0 | G138: =IF(F_Inputs!G138 = "", 0, IF($H138="water", F_Inputs!G138*'FS and RPEs'!D$9, F_Inputs!G138*'FS and RPEs'!D$17)) -> 0 | H138: Wastewater | I138: TE | J138: Net zero wastewater
A139: SWB | B139: C_PR24CA89_ENH_WW_TE | C139: Total enhancement allowance - Wastewater - IED enhancement - Transition allowance | D139: £m | E139: Price Review 2024 | F139: =IF(F_Inputs!F139 = "", 0, IF($H139="water", F_Inputs!F139*'FS and RPEs'!C$9, F_Inputs!F139*'FS and RPEs'!C$17)) -> 0 | G139: =IF(F_Inputs!G139 = "", 0, IF($H139="water", F_Inputs!G139*'FS and RPEs'!D$9, F_Inputs!G139*'FS and RPEs'!D$17)) -> 0 | H139: Wastewater | I139: TE | J139: IED
A140: SWB | B140: C_PR24CA91_ENH_WW_TE | C140: Total enhancement allowance - Wastewater - Resilience - Transition allowance | D140: £m | E140: Price Review 2024 | F140: =IF(F_Inputs!F140 = "", 0, IF($H140="water", F_Inputs!F140*'FS and RPEs'!C$9, F_Inputs!F140*'FS and RPEs'!C$17)) -> 0 | G140: =IF(F_Inputs!G140 = "", 0, IF($H140="water", F_Inputs!G140*'FS and RPEs'!D$9, F_Inputs!G140*'FS and RPEs'!D$17)) -> 0 | H140: Wastewater | I140: TE | J140: Waste - resilience
A141: SWB | B141: C_PR24CA42_ENH_WW_TE | C141: Total enhancement allowance - Wastewater - SEMD - Transition allowance | D141: £m | E141: Price Review 2024 | F141: =IF(F_Inputs!F141 = "", 0, IF($H141="water", F_Inputs!F141*'FS and RPEs'!C$9, F_Inputs!F141*'FS and RPEs'!C$17)) -> 0 | G141: =IF(F_Inputs!G141 = "", 0, IF($H141="water", F_Inputs!G141*'FS and RPEs'!D$9, F_Inputs!G141*'FS and RPEs'!D$17)) -> 0 | H141: Wastewater | I141: TE | J141: SEMD
A142: SWB | B142: C_PR24CA39_ENH_WW_TE | C142: Total enhancement allowance - Wastewater - Cyber - Transition allowance | D142: £m | E142: Price Review 2024 | F142: =IF(F_Inputs!F142 = "", 0, IF($H142="water", F_Inputs!F142*'FS and RPEs'!C$9, F_Inputs!F142*'FS and RPEs'!C$17)) -> 0 | G142: =IF(F_Inputs!G142 = "", 0, IF($H142="water", F_Inputs!G142*'FS and RPEs'!D$9, F_Inputs!G142*'FS and RPEs'!D$17)) -> 0 | H142: Wastewater | I142: TE | J142: Security cyber

Sheet Financing
A1: Wholesale WACC (Real CPIH)
A2: ANH | B2: 0.0312
A3: NES | B3: 0.0312
A4: YKY | B4: 0.0312
A5: BRL | B5: 0.0329
A6: PRT | B6: 0.0311
A7: SSC | B7: 0.0311
A8: HDD | B8: 0.0292
A9: SRN | B9: 0.0292
A10: SVE | B10: 0.0292
A11: SWB | B11: 0.0292
A12: TMS | B12: 0.0292
A13: UUW | B13: 0.0292
A14: WSH | B14: 0.0292
A15: WSX | B15: 0.0292
A16: AFW | B16: 0.0292
A17: SES | B17: 0.0292
A18: SEW | B18: 0.0292

Sheet Accelerated schemes
B1: From: https://www.ofwat.gov.uk/wp-content/uploads/2023/04/A0-accelerated-process-final-decisions.pdf
B2: Scheme | C2: Costs 2022-2025 (£m) | D2: % share
B3: Scheme 11 – Colliford smart metering | C3: 5.65 | D3: =C3/SUM($C$3:$C$4) -> 0.3990112994
B4: Scheme 12 – supply pipe leakage | C4: 8.51 | D4: =C4/SUM($C$3:$C$4) -> 0.6009887006
C6: 2023-24 | D6: 2024-25
B7: Total enhancement allowance - Water - Metering - Accelerated programme | C7: ='Inputs - post FS and RPEs'!F10 -> 0.09313694398 | D7: ='Inputs - post FS and RPEs'!G10 -> 3.413887864
B9: Apportioning spending across schemes:
C10: 2023-24 | D10: 2024-25
B11: Scheme 11 – Colliford smart metering | C11: =C$7*$D3 -> 0.03716269304 | D11: =D$7*$D3 -> 1.362179833
B12: Scheme 12 – supply pipe leakage | C12: =C$7*$D4 -> 0.05597425093 | D12: =D$7*$D4 -> 2.051708031

Sheet TE - % by control
B2: Total | C2: BP - WR | D2: BP - WR | E2: BP - WN+ | F2: BP - WN+ | G2: Allowance | H2: Allowance | I2: WR Proportion | J2: WR Proportion | K2: WN Proportion | L2: WN Proportion | N2: APR data | P2: Allowance | R2: Actuals for cost sharing
B3: Event duration monitoring | G3: =SUMIFS('Inputs - post FS and RPEs'!F$101:F$142, 'Inputs - post FS and RPEs'!$J$101:$J$142, $B3) -> 0 | H3: =SUMIFS('Inputs - post FS and RPEs'!G$101:G$142, 'Inputs - post FS and RPEs'!$J$101:$J$142, $B3) -> 0 | M3: Event duration monitoring | N3: =SUMIFS('23-24 APR data'!$F$8:$F$95, '23-24 APR data'!$G$8:$G$95, B3) -> 0 | O3: =SUMIFS('24-25 ADD data'!$F$8:$F$118, '24-25 ADD data'!$G$8:$G$118, B3) -> 0 | P3: =G3 -> 0 | Q3: =H3 -> 0 | R3: =IF(P3 = 0, 0, N3) -> 0 | S3: =IF(Q3 = 0, 0, O3) -> 0
B4: Flow monitoring STW | G4: =SUMIFS('Inputs - post FS and RPEs'!F$101:F$142, 'Inputs - post FS and RPEs'!$J$101:$J$142, $B4) -> 0 | H4: =SUMIFS('Inputs - post FS and RPEs'!G$101:G$142, 'Inputs - post FS and RPEs'!$J$101:$J$142, $B4) -> 0 | M4: Flow monitoring STW | N4: =SUMIFS('23-24 APR data'!$F$8:$F$95, '23-24 APR data'!$G$8:$G$95, B4) -> 0 | O4: =SUMIFS('24-25 ADD data'!$F$8:$F$118, '24-25 ADD data'!$G$8:$G$118, B4) -> 0 | P4: =G4 -> 0 | Q4: =H4 -> 0 | R4: =IF(P4 = 0, 0, N4) -> 0 | S4: =IF(Q4 = 0, 0, O4) -> 0
B5: CWQM | G5: =SUMIFS('Inputs - post FS and RPEs'!F$101:F$142, 'Inputs - post FS and RPEs'!$J$101:$J$142, $B5) -> 0 | H5: =SUMIFS('Inputs - post FS and RPEs'!G$101:G$142, 'Inputs - post FS and RPEs'!$J$101:$J$142, $B5) -> 0 | M5: CWQM | N5: =SUMIFS('23-24 APR data'!$F$8:$F$95, '23-24 APR data'!$G$8:$G$95, B5) -> 0 | O5: =SUMIFS('24-25 ADD data'!$F$8:$F$118, '24-25 ADD data'!$G$8:$G$118, B5) -> 0 | P5: 0 | Q5: 0 | R5: 0 | S5: 0
B6: MCERTS PS EO | G6: =SUMIFS('Inputs - post FS and RPEs'!F$101:F$142, 'Inputs - post FS and RPEs'!$J$101:$J$142, $B6) -> 0 | H6: =SUMIFS('Inputs - post FS and RPEs'!G$101:G$142, 'Inputs - post FS and RPEs'!$J$101:$J$142, $B6) -> 0 | M6: MCERTS PS EO | N6: =SUMIFS('23-24 APR data'!$F$8:$F$95, '23-24 APR data'!$G$8:$G$95, B6) -> 0 | O6: =SUMIFS('24-25 ADD data'!$F$8:$F$118, '24-25 ADD data'!$G$8:$G$118, B6) -> 0 | P6: 0 | Q6: 0 | R6: 0 | S6: 0
B7: Flow to full treatment | G7: =SUMIFS('Inputs - post FS and RPEs'!F$101:F$142, 'Inputs - post FS and RPEs'!$J$101:$J$142, $B7) -> 0 | H7: =SUMIFS('Inputs - post FS and RPEs'!G$101:G$142, 'Inputs - post FS and RPEs'!$J$101:$J$142, $B7) -> 0 | M7: Flow to full treatment | N7: =SUMIFS('23-24 APR data'!$F$8:$F$95, '23-24 APR data'!$G$8:$G$95, B7) -> 0 | O7: =SUMIFS('24-25 ADD data'!$F$8:$F$118, '24-25 ADD data'!$G$8:$G$118, B7) -> 12.33680643 | P7: 0 | Q7: 0 | R7: 0 | S7: 0
B8: Storm overflow | G8: =SUMIFS('Inputs - post FS and RPEs'!F$101:F$142, 'Inputs - post FS and RPEs'!$J$101:$J$142, $B8) -> 0 | H8: =SUMIFS('Inputs - post FS and RPEs'!G$101:G$142, 'Inputs - post FS and RPEs'!$J$101:$J$142, $B8) -> 73.79218656 | M8: Storm overflow | N8: =SUMIFS('23-24 APR data'!$F$8:$F$95, '23-24 APR data'!$G$8:$G$95, B8) -> 0 | O8: =SUMIFS('24-25 ADD data'!$F$8:$F$118, '24-25 ADD data'!$G$8:$G$118, B8) -> 61.83696968 | P8: 0 | Q8: 73.79218656 | R8: 0 | S8: 61.83696968
B9: Chemicals removal | G9: =SUMIFS('Inputs - post FS and RPEs'!F$101:F$142, 'Inputs - post FS and RPEs'!$J$101:$J$142, $B9) -> 0 | H9: =SUMIFS('Inputs - post FS and RPEs'!G$101:G$142, 'Inputs - post FS and RPEs'!$J$101:$J$142, $B9) -> 0 | M9: Chemicals removal | N9: =SUMIFS('23-24 APR data'!$F$8:$F$95, '23-24 APR data'!$G$8:$G$95, B9) -> 0 | O9: =SUMIFS('24-25 ADD data'!$F$8:$F$118, '24-25 ADD data'!$G$8:$G$118, B9) -> 0 | P9: 0 | Q9: 0 | R9: 0 | S9: 0
B10: Chemical investigations | G10: =SUMIFS('Inputs - post FS and RPEs'!F$101:F$142, 'Inputs - post FS and RPEs'!$J$101:$J$142, $B10) -> 0 | H10: =SUMIFS('Inputs - post FS and RPEs'!G$101:G$142, 'Inputs - post FS and RPEs'!$J$101:$J$142, $B10) -> 0 | M10: Chemical investigations | N10: =SUMIFS('23-24 APR data'!$F$8:$F$95, '23-24 APR data'!$G$8:$G$95, B10) -> 0 | O10: =SUMIFS('24-25 ADD data'!$F$8:$F$118, '24-25 ADD data'!$G$8:$G$118, B10) -> 0 | P10: 0 | Q10: 0 | R10: 0 | S10: 0
B11: n removal | G11: =SUMIFS('Inputs - post FS and RPEs'!F$101:F$142, 'Inputs - post FS and RPEs'!$J$101:$J$142, $B11) -> 0 | H11: =SUMIFS('Inputs - post FS and RPEs'!G$101:G$142, 'Inputs - post FS and RPEs'!$J$101:$J$142, $B11) -> 0 | M11: n removal | N11: =SUMIFS('23-24 APR data'!$F$8:$F$95, '23-24 APR data'!$G$8:$G$95, B11) -> 0 | O11: =SUMIFS('24-25 ADD data'!$F$8:$F$118, '24-25 ADD data'!$G$8:$G$118, B11) -> 0 | P11: 0 | Q11: 0 | R11: 0 | S11: 0
B12: NTAL | G12: =SUMIFS('Inputs - post FS and RPEs'!F$101:F$142, 'Inputs - post FS and RPEs'!$J$101:$J$142, $B12) -> 0 | H12: =SUMIFS('Inputs - post FS and RPEs'!G$101:G$142, 'Inputs - post FS and RPEs'!$J$101:$J$142, $B12) -> 0 | M12: NTAL | N12: =SUMIFS('23-24 APR data'!$F$8:$F$95, '23-24 APR data'!$G$8:$G$95, B12) -> 0 | O12: =SUMIFS('24-25 ADD data'!$F$8:$F$118, '24-25 ADD data'!$G$8:$G$118, B12) -> 0 | P12: 0 | Q12: 0 | R12: 0 | S12: 0
B13: p removal | G13: =SUMIFS('Inputs - post FS and RPEs'!F$101:F$142, 'Inputs - post FS and RPEs'!$J$101:$J$142, $B13) -> 0 | H13: =SUMIFS('Inputs - post FS and RPEs'!G$101:G$142, 'Inputs - post FS and RPEs'!$J$101:$J$142, $B13) -> 0 | M13: p removal | N13: =SUMIFS('23-24 APR data'!$F$8:$F$95, '23-24 APR data'!$G$8:$G$95, B13) -> 0 | O13: =SUMIFS('24-25 ADD data'!$F$8:$F$118, '24-25 ADD data'!$G$8:$G$118, B13) -> 0 | P13: 0 | Q13: 0 | R13: 0 | S13: 0
B14: Nutrients or sanitary determinands NBS | G14: =SUMIFS('Inputs - post FS and RPEs'!F$101:F$142, 'Inputs - post FS and RPEs'!$J$101:$J$142, $B14) -> 0 | H14: =SUMIFS('Inputs - post FS and RPEs'!G$101:G$142, 'Inputs - post FS and RPEs'!$J$101:$J$142, $B14) -> 0 | M14: Nutrients or sanitary determinands NBS | N14: =SUMIFS('23-24 APR data'!$F$8:$F$95, '23-24 APR data'!$G$8:$G$95, B14) -> 0 | O14: =SUMIFS('24-25 ADD data'!$F$8:$F$118, '24-25 ADD data'!$G$8:$G$118, B14) -> 0 | P14: 0 | Q14: 0 | R14: 0 | S14: 0
B15: Sanitary parameters | G15: =SUMIFS('Inputs - post FS and RPEs'!F$101:F$142, 'Inputs - post FS and RPEs'!$J$101:$J$142, $B15) -> 0 | H15: =SUMIFS('Inputs - post FS and RPEs'!G$101:G$142, 'Inputs - post FS and RPEs'!$J$101:$J$142, $B15) -> 0 | M15: Sanitary parameters | N15: =SUMIFS('23-24 APR data'!$F$8:$F$95, '23-24 APR data'!$G$8:$G$95, B15) -> 0 | O15: =SUMIFS('24-25 ADD data'!$F$8:$F$118, '24-25 ADD data'!$G$8:$G$118, B15) -> 0 | P15: 0 | Q15: 0 | R15: 0 | S15: 0
B16: Chemicals source control | G16: =SUMIFS('Inputs - post FS and RPEs'!F$101:F$142, 'Inputs - post FS and RPEs'!$J$101:$J$142, $B16) -> 0 | H16: =SUMIFS('Inputs - post FS and RPEs'!G$101:G$142, 'Inputs - post FS and RPEs'!$J$101:$J$142, $B16) -> 0 | M16: Chemicals source control | N16: =SUMIFS('23-24 APR data'!$F$8:$F$95, '23-24 APR data'!$G$8:$G$95, B16) -> 0 | O16: =SUMIFS('24-25 ADD data'!$F$8:$F$118, '24-25 ADD data'!$G$8:$G$118, B16) -> 0 | P16: 0 | Q16: 0 | R16: 0 | S16: 0
B17: Nutrient balancing | G17: =SUMIFS('Inputs - post FS and RPEs'!F$101:F$142, 'Inputs - post FS and RPEs'!$J$101:$J$142, $B17) -> 0 | H17: =SUMIFS('Inputs - post FS and RPEs'!G$101:G$142, 'Inputs - post FS and RPEs'!$J$101:$J$142, $B17) -> 0 | M17: Nutrient balancing | N17: =SUMIFS('23-24 APR data'!$F$8:$F$95, '23-24 APR data'!$G$8:$G$95, B17) -> 0 | O17: =SUMIFS('24-25 ADD data'!$F$8:$F$118, '24-25 ADD data'!$G$8:$G$118, B17) -> 0 | P17: 0 | Q17: 0 | R17: 0 | S17: 0
B18: Catchment permitting | G18: =SUMIFS('Inputs - post FS and RPEs'!F$101:F$142, 'Inputs - post FS and RPEs'!$J$101:$J$142, $B18) -> 0 | H18: =SUMIFS('Inputs - post FS and RPEs'!G$101:G$142, 'Inputs - post FS and RPEs'!$J$101:$J$142, $B18) -> 0 | M18: Catchment permitting | N18: =SUMIFS('23-24 APR data'!$F$8:$F$95, '23-24 APR data'!$G$8:$G$95, B18) -> 0 | O18: =SUMIFS('24-25 ADD data'!$F$8:$F$118, '24-25 ADD data'!$G$8:$G$118, B18) -> 0 | P18: 0 | Q18: 0 | R18: 0 | S18: 0
B19: Habitat restoration | G19: =SUMIFS('Inputs - post FS and RPEs'!F$101:F$142, 'Inputs - post FS and RPEs'!$J$101:$J$142, $B19) -> 0 | H19: =SUMIFS('Inputs - post FS and RPEs'!G$101:G$142, 'Inputs - post FS and RPEs'!$J$101:$J$142, $B19) -> 0 | M19: Habitat restoration | N19: =SUMIFS('23-24 APR data'!$F$8:$F$95, '23-24 APR data'!$G$8:$G$95, B19) -> 0 | O19: =SUMIFS('24-25 ADD data'!$F$8:$F$118, '24-25 ADD data'!$G$8:$G$118, B19) -> 0 | P19: 0 | Q19: 0 | R19: 0 | S19: 0
B20: Microbiological treatment | G20: =SUMIFS('Inputs - post FS and RPEs'!F$101:F$142, 'Inputs - post FS and RPEs'!$J$101:$J$142, $B20) -> 0 | H20: =SUMIFS('Inputs - post FS and RPEs'!G$101:G$142, 'Inputs - post FS and RPEs'!$J$101:$J$142, $B20) -> 0 | M20: Microbiological treatment | N20: =SUMIFS('23-24 APR data'!$F$8:$F$95, '23-24 APR data'!$G$8:$G$95, B20) -> 0 | O20: =SUMIFS('24-25 ADD data'!$F$8:$F$118, '24-25 ADD data'!$G$8:$G$118, B20) -> 0 | P20: 0 | Q20: 0 | R20: 0 | S20: 0
B21: Septic tank | G21: =SUMIFS('Inputs - post FS and RPEs'!F$101:F$142, 'Inputs - post FS and RPEs'!$J$101:$J$142, $B21) -> 0 | H21: =SUMIFS('Inputs - post FS and RPEs'!G$101:G$142, 'Inputs - post FS and RPEs'!$J$101:$J$142, $B21) -> 0 | M21: Septic tank | N21: =SUMIFS('23-24 APR data'!$F$8:$F$95, '23-24 APR data'!$G$8:$G$95, B21) -> 0 | O21: =SUMIFS('24-25 ADD data'!$F$8:$F$118, '24-25 ADD data'!$G$8:$G$118, B21) -> 0 | P21: 0 | Q21: 0 | R21: 0 | S21: 0
B22: Fish screen | G22: =SUMIFS('Inputs - post FS and RPEs'!F$101:F$142, 'Inputs - post FS and RPEs'!$J$101:$J$142, $B22) -> 0 | H22: =SUMIFS('Inputs - post FS and RPEs'!G$101:G$142, 'Inputs - post FS and RPEs'!$J$101:$J$142, $B22) -> 0 | M22: Fish screen | N22: =SUMIFS('23-24 APR data'!$F$8:$F$95, '23-24 APR data'!$G$8:$G$95, B22) -> 0 | O22: =SUMIFS('24-25 ADD data'!$F$8:$F$118, '24-25 ADD data'!$G$8:$G$118, B22) -> 0 | P22: 0 | Q22: 0 | R22: 0 | S22: 0
B23: 25 year environment plan | G23: =SUMIFS('Inputs - post FS and RPEs'!F$101:F$142, 'Inputs - post FS and RPEs'!$J$101:$J$142, $B23) -> 0 | H23: =SUMIFS('Inputs - post FS and RPEs'!G$101:G$142, 'Inputs - post FS and RPEs'!$J$101:$J$142, $B23) -> 0 | M23: 25 year environment plan | N23: =SUMIFS('23-24 APR data'!$F$8:$F$95, '23-24 APR data'!$G$8:$G$95, B23) -> 0 | O23: =SUMIFS('24-25 ADD data'!$F$8:$F$118, '24-25 ADD data'!$G$8:$G$118, B23) -> 0 | P23: 0 | Q23: 0 | R23: 0 | S23: 0
B24: Waste - investigations | G24: =SUMIFS('Inputs - post FS and RPEs'!F$101:F$142, 'Inputs - post FS and RPEs'!$J$101:$J$142, $B24) -> 0 | H24: =SUMIFS('Inputs - post FS and RPEs'!G$101:G$142, 'Inputs - post FS and RPEs'!$J$101:$J$142, $B24) -> 0 | M24: Waste - investigations | N24: =SUMIFS('23-24 APR data'!$F$8:$F$95, '23-24 APR data'!$G$8:$G$95, B24) -> 0 | O24: =SUMIFS('24-25 ADD data'!$F$8:$F$118, '24-25 ADD data'!$G$8:$G$118, B24) -> 0 | P24: 0 | Q24: 0 | R24: 0 | S24: 0
B25: Third party schemes | G25: =SUMIFS('Inputs - post FS and RPEs'!F$101:F$142, 'Inputs - post FS and RPEs'!$J$101:$J$142, $B25) -> 0 | H25: =SUMIFS('Inputs - post FS and RPEs'!G$101:G$142, 'Inputs - post FS and RPEs'!$J$101:$J$142, $B25) -> 0 | M25: Third party schemes | N25: =SUMIFS('23-24 APR data'!$F$8:$F$95, '23-24 APR data'!$G$8:$G$95, B25) -> 0 | O25: =SUMIFS('24-25 ADD data'!$F$8:$F$118, '24-25 ADD data'!$G$8:$G$118, B25) -> 0 | P25: 0 | Q25: 0 | R25: 0 | S25: 0
B26: River connectivity | G26: =SUMIFS('Inputs - post FS and RPEs'!F$101:F$142, 'Inputs - post FS and RPEs'!$J$101:$J$142, $B26) -> 0 | H26: =SUMIFS('Inputs - post FS and RPEs'!G$101:G$142, 'Inputs - post FS and RPEs'!$J$101:$J$142, $B26) -> 0 | M26: River connectivity | N26: =SUMIFS('23-24 APR data'!$F$8:$F$95, '23-24 APR data'!$G$8:$G$95, B26) -> 0 | O26: =SUMIFS('24-25 ADD data'!$F$8:$F$118, '24-25 ADD data'!$G$8:$G$118, B26) -> 0 | P26: 0 | Q26: 0 | R26: 0 | S26: 0
B27: Restoration management | G27: =SUMIFS('Inputs - post FS and RPEs'!F$101:F$142, 'Inputs - post FS and RPEs'!$J$101:$J$142, $B27) -> 0 | H27: =SUMIFS('Inputs - post FS and RPEs'!G$101:G$142, 'Inputs - post FS and RPEs'!$J$101:$J$142, $B27) -> 0 | M27: Restoration management | N27: =SUMIFS('23-24 APR data'!$F$8:$F$95, '23-24 APR data'!$G$8:$G$95, B27) -> 0 | O27: =SUMIFS('24-25 ADD data'!$F$8:$F$118, '24-25 ADD data'!$G$8:$G$118, B27) -> 0 | P27: 0 | Q27: 0 | R27: 0 | S27: 0
B28: Access and amenity | G28: =SUMIFS('Inputs - post FS and RPEs'!F$101:F$142, 'Inputs - post FS and RPEs'!$J$101:$J$142, $B28) -> 0 | H28: =SUMIFS('Inputs - post FS and RPEs'!G$101:G$142, 'Inputs - post FS and RPEs'!$J$101:$J$142, $B28) -> 0 | M28: Access and amenity | N28: =SUMIFS('23-24 APR data'!$F$8:$F$95, '23-24 APR data'!$G$8:$G$95, B28) -> 0 | O28: =SUMIFS('24-25 ADD data'!$F$8:$F$118, '24-25 ADD data'!$G$8:$G$118, B28) -> 0 | P28: 0 | Q28: 0 | R28: 0 | S28: 0
B29: Advanced WINEP | G29: =SUMIFS('Inputs - post FS and RPEs'!F$101:F$142, 'Inputs - post FS and RPEs'!$J$101:$J$142, $B29) -> 0 | H29: =SUMIFS('Inputs - post FS and RPEs'!G$101:G$142, 'Inputs - post FS and RPEs'!$J$101:$J$142, $B29) -> 0 | M29: Advanced WINEP | N29: =SUMIFS('23-24 APR data'!$F$8:$F$95, '23-24 APR data'!$G$8:$G$95, B29) -> 0 | O29: =SUMIFS('24-25 ADD data'!$F$8:$F$118, '24-25 ADD data'!$G$8:$G$118, B29) -> 0 | P29: 0 | Q29: 0 | R29: 0 | S29: 0
B30: Sludge storage tank | G30: =SUMIFS('Inputs - post FS and RPEs'!F$101:F$142, 'Inputs - post FS and RPEs'!$J$101:$J$142, $B30) -> 0 | H30: =SUMIFS('Inputs - post FS and RPEs'!G$101:G$142, 'Inputs - post FS and RPEs'!$J$101:$J$142, $B30) -> 0 | M30: Sludge storage tank | N30: =SUMIFS('23-24 APR data'!$F$8:$F$95, '23-24 APR data'!$G$8:$G$95, B30) -> 0 | O30: =SUMIFS('24-25 ADD data'!$F$8:$F$118, '24-25 ADD data'!$G$8:$G$118, B30) -> 0 | P30: 0 | Q30: 0 | R30: 0 | S30: 0
B31: Sludge storage cake | G31: =SUMIFS('Inputs - post FS and RPEs'!F$101:F$142, 'Inputs - post FS and RPEs'!$J$101:$J$142, $B31) -> 0 | H31: =SUMIFS('Inputs - post FS and RPEs'!G$101:G$142, 'Inputs - post FS and RPEs'!$J$101:$J$142, $B31) -> 0 | M31: Sludge storage cake | N31: =SUMIFS('23-24 APR data'!$F$8:$F$95, '23-24 APR data'!$G$8:$G$95, B31) -> 0 | O31: =SUMIFS('24-25 ADD data'!$F$8:$F$118, '24-25 ADD data'!$G$8:$G$118, B31) -> 0 | P31: 0 | Q31: 0 | R31: 0 | S31: 0
B32: Waste - freeform | G32: =SUMIFS('Inputs - post FS and RPEs'!F$101:F$142, 'Inputs - post FS and RPEs'!$J$101:$J$142, $B32) -> 0 | H32: =SUMIFS('Inputs - post FS and RPEs'!G$101:G$142, 'Inputs - post FS and RPEs'!$J$101:$J$142, $B32) -> 0 | M32: Waste - freeform | N32: =SUMIFS('23-24 APR data'!$F$8:$F$95, '23-24 APR data'!$G$8:$G$95, B32) -> 0 | O32: =SUMIFS('24-25 ADD data'!$F$8:$F$118, '24-25 ADD data'!$G$8:$G$118, B32) -> 0 | P32: 0 | Q32: 0 | R32: 0 | S32: 0
B33: Sludge treatment thickening | G33: =SUMIFS('Inputs - post FS and RPEs'!F$101:F$142, 'Inputs - post FS and RPEs'!$J$101:$J$142, $B33) -> 0 | H33: =SUMIFS('Inputs - post FS and RPEs'!G$101:G$142, 'Inputs - post FS and RPEs'!$J$101:$J$142, $B33) -> 0 | M33: Sludge treatment thickening | N33: =SUMIFS('23-24 APR data'!$F$8:$F$95, '23-24 APR data'!$G$8:$G$95, B33) -> 0 | O33: =SUMIFS('24-25 ADD data'!$F$8:$F$118, '24-25 ADD data'!$G$8:$G$118, B33) -> 0 | P33: 0 | Q33: 0 | R33: 0 | S33: 0
B34: Sludge treatment other | G34: =SUMIFS('Inputs - post FS and RPEs'!F$101:F$142, 'Inputs - post FS and RPEs'!$J$101:$J$142, $B34) -> 0 | H34: =SUMIFS('Inputs - post FS and RPEs'!G$101:G$142, 'Inputs - post FS and RPEs'!$J$101:$J$142, $B34) -> 0 | M34: Sludge treatment other | N34: =SUMIFS('23-24 APR data'!$F$8:$F$95, '23-24 APR data'!$G$8:$G$95, B34) -> 0 | O34: =SUMIFS('24-25 ADD data'!$F$8:$F$118, '24-25 ADD data'!$G$8:$G$118, B34) -> 0 | P34: 0 | Q34: 0 | R34: 0 | S34: 0
B35: Sludge investigations | G35: =SUMIFS('Inputs - post FS and RPEs'!F$101:F$142, 'Inputs - post FS and RPEs'!$J$101:$J$142, $B35) -> 0 | H35: =SUMIFS('Inputs - post FS and RPEs'!G$101:G$142, 'Inputs - post FS and RPEs'!$J$101:$J$142, $B35) -> 0 | M35: Sludge investigations | N35: =SUMIFS('23-24 APR data'!$F$8:$F$95, '23-24 APR data'!$G$8:$G$95, B35) -> 0 | O35: =SUMIFS('24-25 ADD data'!$F$8:$F$118, '24-25 ADD data'!$G$8:$G$118, B35) -> 0 | P35: 0 | Q35: 0 | R35: 0 | S35: 0
B36: Growth at STW | G36: =SUMIFS('Inputs - post FS and RPEs'!F$101:F$142, 'Inputs - post FS and RPEs'!$J$101:$J$142, $B36) -> 0 | H36: =SUMIFS('Inputs - post FS and RPEs'!G$101:G$142, 'Inputs - post FS and RPEs'!$J$101:$J$142, $B36) -> 0 | M36: Growth at STW | N36: =SUMIFS('23-24 APR data'!$F$8:$F$95, '23-24 APR data'!$G$8:$G$95, B36) -> 0 | O36: =SUMIFS('24-25 ADD data'!$F$8:$F$118, '24-25 ADD data'!$G$8:$G$118, B36) -> 0 | P36: 0 | Q36: 0 | R36: 0 | S36: 0
B37: First time sewerage | G37: =SUMIFS('Inputs - post FS and RPEs'!F$101:F$142, 'Inputs - post FS and RPEs'!$J$101:$J$142, $B37) -> 0 | H37: =SUMIFS('Inputs - post FS and RPEs'!G$101:G$142, 'Inputs - post FS and RPEs'!$J$101:$J$142, $B37) -> 0 | M37: First time sewerage | N37: =SUMIFS('23-24 APR data'!$F$8:$F$95, '23-24 APR data'!$G$8:$G$95, B37) -> 0 | O37: =SUMIFS('24-25 ADD data'!$F$8:$F$118, '24-25 ADD data'!$G$8:$G$118, B37) -> 0 | P37: 0 | Q37: 0 | R37: 0 | S37: 0
B38: Odour and nuisance | G38: =SUMIFS('Inputs - post FS and RPEs'!F$101:F$142, 'Inputs - post FS and RPEs'!$J$101:$J$142, $B38) -> 0 | H38: =SUMIFS('Inputs - post FS and RPEs'!G$101:G$142, 'Inputs - post FS and RPEs'!$J$101:$J$142, $B38) -> 0 | M38: Odour and nuisance | N38: =SUMIFS('23-24 APR data'!$F$8:$F$95, '23-24 APR data'!$G$8:$G$95, B38) -> 0 | O38: =SUMIFS('24-25 ADD data'!$F$8:$F$118, '24-25 ADD data'!$G$8:$G$118, B38) -> 0 | P38: 0 | Q38: 0 | R38: 0 | S38: 0
B39: Net zero wastewater | G39: =SUMIFS('Inputs - post FS and RPEs'!F$101:F$142, 'Inputs - post FS and RPEs'!$J$101:$J$142, $B39) -> 0 | H39: =SUMIFS('Inputs - post FS and RPEs'!G$101:G$142, 'Inputs - post FS and RPEs'!$J$101:$J$142, $B39) -> 0 | M39: Net zero wastewater | N39: =SUMIFS('23-24 APR data'!$F$8:$F$95, '23-24 APR data'!$G$8:$G$95, B39) -> 0 | O39: =SUMIFS('24-25 ADD data'!$F$8:$F$118, '24-25 ADD data'!$G$8:$G$118, B39) -> 0 | P39: 0 | Q39: 0 | R39: 0 | S39: 0
B40: IED | G40: =SUMIFS('Inputs - post FS and RPEs'!F$101:F$142, 'Inputs - post FS and RPEs'!$J$101:$J$142, $B40) -> 0 | H40: =SUMIFS('Inputs - post FS and RPEs'!G$101:G$142, 'Inputs - post FS and RPEs'!$J$101:$J$142, $B40) -> 0 | M40: IED | N40: =SUMIFS('23-24 APR data'!$F$8:$F$95, '23-24 APR data'!$G$8:$G$95, B40) -> 0 | O40: =SUMIFS('24-25 ADD data'!$F$8:$F$118, '24-25 ADD data'!$G$8:$G$118, B40) -> 0 | P40: 0 | Q40: 0 | R40: 0 | S40: 0
B41: Waste - resilience | G41: =SUMIFS('Inputs - post FS and RPEs'!F$101:F$142, 'Inputs - post FS and RPEs'!$J$101:$J$142, $B41) -> 0 | H41: =SUMIFS('Inputs - post FS and RPEs'!G$101:G$142, 'Inputs - post FS and RPEs'!$J$101:$J$142, $B41) -> 0 | M41: Waste - resilience | N41: =SUMIFS('23-24 APR data'!$F$8:$F$95, '23-24 APR data'!$G$8:$G$95, B41) -> 0 | O41: =SUMIFS('24-25 ADD data'!$F$8:$F$118, '24-25 ADD data'!$G$8:$G$118, B41) -> 0 | P41: 0 | Q41: 0 | R41: 0 | S41: 0
B42: Security cyber | G42: =SUMIFS('Inputs - post FS and RPEs'!F$101:F$142, 'Inputs - post FS and RPEs'!$J$101:$J$142, $B42) -> 0 | H42: =SUMIFS('Inputs - post FS and RPEs'!G$101:G$142, 'Inputs - post FS and RPEs'!$J$101:$J$142, $B42) -> 0 | M42: Security cyber | N42: =SUMIFS('23-24 APR data'!$F$8:$F$95, '23-24 APR data'!$G$8:$G$95, B42) -> 0 | O42: =SUMIFS('24-25 ADD data'!$F$8:$F$118, '24-25 ADD data'!$G$8:$G$118, B42) -> 0 | P42: 0 | Q42: 0 | R42: 0 | S42: 0
Q43: WWN | R43: =SUM(R3:R42) -> 0 | S43: =SUM(S3:S42) -> 61.83696968

Sheet InpS
A1: =RIGHT(CELL("filename", A1), LEN(CELL("filename", A1)) - SEARCH("]", CELL("filename", A1))) -> 
E2: Model period ending | F2: ='Model Checks and Alerts'!F76 -> 0 | G2: Error chks | J2: =Time!J$124 -> 2024-03-31 | K2: =Time!K$124 -> 2025-03-31
E3: Timeline label | J3: =Time!J$130 -> Transition Period | K3: =Time!K$130 -> Transition Period
E4: Model column counter | J4: =Time!J$134 -> 1 | K4: =Time!K$134 -> 2
F5: Constant | G5: Unit | H5: Total
A8: Inputs
E10: Company acronym | F10: SWB | G10: text
A12: TIME INPUTS
E13: First model column start date | F13: 2023-04-01 | G13: date
E14: Last Pre Forecast Date | F14: 2023-03-31 | G14: date
E15: First modelling column financial year | F15: 2023 | G15: year #
E16: Financial year end month | F16: 3 | G16: month #
E17: Forecast start date | F17: 2023-04-01 | G17: date
E18: Last Forecast date | F18: 2025-03-31 | G18: date
A20: COST ALLOWANCE INPUTS
B22: Accelerated programme
C24: Accelerated programme - Scheme 1 - Colliford smart metering
E25: Accelerated programme - Scheme 1 control allocation - WR | G25: %
E26: Accelerated programme - Scheme 1 control allocation - WN+ | F26: 1 | G26: %
E27: Accelerated programme - Scheme 1 control allocation - WWN+ | G27: %
E28: Accelerated programme - Scheme 1 control allocation - BR | G28: %
D30: Component 1 - Metering
E31: Accelerated programme - Scheme 1 component 1 cost allowance - real | G31: £m | H31: =SUM( J31:K31 ) -> 1.399342526 | J31: ='Accelerated schemes'!C11 -> 0.03716269304 | K31: ='Accelerated schemes'!D11 -> 1.362179833
E32: Accelerated programme - Scheme 1 component 1 percentage completion | F32: 1 | G32: %
D34: Component 2
E35: Accelerated programme - Scheme 1 component 2 cost allowance - real | G35: £m | H35: =SUM( J35:K35 ) -> 0
E36: Accelerated programme - Scheme 1 component 2 percentage completion | G36: %
D38: Component 3
E39: Accelerated programme - Scheme 1 component 3 cost allowance - real | G39: £m | H39: =SUM( J39:K39 ) -> 0
E40: Accelerated programme - Scheme 1 component 3 percentage completion | G40: %
D42: Component 4
E43: Accelerated programme - Scheme 1 component 4 cost allowance - real | G43: £m | H43: =SUM( J43:K43 ) -> 0
E44: Accelerated programme - Scheme 1 component 4 percentage completion | G44: %
D46: Component 5
E47: Accelerated programme - Scheme 1 component 5 cost allowance - real | G47: £m | H47: =SUM( J47:K47 ) -> 0
E48: Accelerated programme - Scheme 1 component 5 percentage completion | G48: %
D50: Component 6
E51: Accelerated programme - Scheme 1 component 6 cost allowance - real | G51: £m | H51: =SUM( J51:K51 ) -> 0
E52: Accelerated programme - Scheme 1 component 6 percentage completion | G52: %
D54: Component 7
E55: Accelerated programme - Scheme 1 component 7 cost allowance - real | G55: £m | H55: =SUM( J55:K55 ) -> 0
E56: Accelerated programme - Scheme 1 component 7 percentage completion | G56: %
D58: Component 8
E59: Accelerated programme - Scheme 1 component 8 cost allowance - real | G59: £m | H59: =SUM( J59:K59 ) -> 0
E60: Accelerated programme - Scheme 1 component 8 percentage completion | G60: %
D62: Component 9
E63: Accelerated programme - Scheme 1 component 9 cost allowance - real | G63: £m | H63: =SUM( J63:K63 ) -> 0
E64: Accelerated programme - Scheme 1 component 9 percentage completion | G64: %
D66: Component 10
E67: Accelerated programme - Scheme 1 component 10 cost allowance - real | G67: £m | H67: =SUM( J67:K67 ) -> 0
E68: Accelerated programme - Scheme 1 component 10 percentage completion | G68: %
D70: Component 11
E71: Accelerated programme - Scheme 1 component 11 cost allowance - real | G71: £m | H71: =SUM( J71:K71 ) -> 0
E72: Accelerated programme - Scheme 1 component 11 percentage completion | G72: %
D74: Component 12
E75: Accelerated programme - Scheme 1 component 12 cost allowance - real | G75: £m | H75: =SUM( J75:K75 ) -> 0
E76: Accelerated programme - Scheme 1 component 12 percentage completion | G76: %
C78: Accelerated programme - Scheme 2 - supply pipe leakage
E79: Accelerated programme - Scheme 2 control allocation - WR | G79: %
E80: Accelerated programme - Scheme 2 control allocation - WN+ | F80: 1 | G80: %
E81: Accelerated programme - Scheme 2 control allocation - WWN+ | G81: %
E82: Accelerated programme - Scheme 2 control allocation - BR | G82: %
D84: Component 1 - Metering
E85: Accelerated programme - Scheme 2 component 1 cost allowance - real | G85: £m | H85: =SUM( J85:K85 ) -> 2.107682282 | J85: ='Accelerated schemes'!C12 -> 0.05597425093 | K85: ='Accelerated schemes'!D12 -> 2.051708031
E86: Accelerated programme - Scheme 2 component 1 percentage completion | F86: 1 | G86: %
D88: Component 2
E89: Accelerated programme - Scheme 2 component 2 cost allowance - real | G89: £m | H89: =SUM( J89:K89 ) -> 0
E90: Accelerated programme - Scheme 2 component 2 percentage completion | G90: %
D92: Component 3
E93: Accelerated programme - Scheme 2 component 3 cost allowance - real | G93: £m | H93: =SUM( J93:K93 ) -> 0
E94: Accelerated programme - Scheme 2 component 3 percentage completion | G94: %
D96: Component 4
E97: Accelerated programme - Scheme 2 component 4 cost allowance - real | G97: £m | H97: =SUM( J97:K97 ) -> 0
E98: Accelerated programme - Scheme 2 component 4 percentage completion | G98: %
D100: Component 5
E101: Accelerated programme - Scheme 2 component 5 cost allowance - real | G101: £m | H101: =SUM( J101:K101 ) -> 0
E102: Accelerated programme - Scheme 2 component 5 percentage completion | G102: %
D104: Component 6
E105: Accelerated programme - Scheme 2 component 6 cost allowance - real | G105: £m | H105: =SUM( J105:K105 ) -> 0
E106: Accelerated programme - Scheme 2 component 6 percentage completion | G106: %
D108: Component 7
E109: Accelerated programme - Scheme 2 component 7 cost allowance - real | G109: £m | H109: =SUM( J109:K109 ) -> 0
E110: Accelerated programme - Scheme 2 component 7 percentage completion | G110: %
D112: Component 8
E113: Accelerated programme - Scheme 2 component 8 cost allowance - real | G113: £m | H113: =SUM( J113:K113 ) -> 0
E114: Accelerated programme - Scheme 2 component 8 percentage completion | G114: %
D116: Component 9
E117: Accelerated programme - Scheme 2 component 9 cost allowance - real | G117: £m | H117: =SUM( J117:K117 ) -> 0
E118: Accelerated programme - Scheme 2 component 9 percentage completion | G118: %
D120: Component 10
E121: Accelerated programme - Scheme 2 component 10 cost allowance - real | G121: £m | H121: =SUM( J121:K121 ) -> 0
E122: Accelerated programme - Scheme 2 component 10 percentage completion | G122: %
D124: Component 11
E125: Accelerated programme - Scheme 2 component 11 cost allowance - real | G125: £m | H125: =SUM( J125:K125 ) -> 0
E126: Accelerated programme - Scheme 2 component 11 percentage completion | G126: %
D128: Component 12
E129: Accelerated programme - Scheme 2 component 12 cost allowance - real | G129: £m | H129: =SUM( J129:K129 ) -> 0
E130: Accelerated programme - Scheme 2 component 12 percentage completion | G130: %
C132: Accelerated programme - Scheme 3 - DWMP Delivery Acceleration– Storm Overflows
E133: Accelerated programme - Scheme 3 control allocation - WR | G133: %
E134: Accelerated programme - Scheme 3 control allocation - WN+ | G134: %
E135: Accelerated programme - Scheme 3 control allocation - WWN+ | F135: 1 | G135: %
E136: Accelerated programme - Scheme 3 control allocation - BR | G136: %
D138: Component 1 - Storm Overflows
E139: Accelerated programme - Scheme 3 component 1 cost allowance - real | G139: £m | H139: =SUM( J139:K139 ) -> 8.616379591 | J139: ='Inputs - post FS and RPEs'!F39 -> 0.1250981242 | K139: ='Inputs - post FS and RPEs'!G39 -> 8.491281466
E140: Accelerated programme - Scheme 3 component 1 percentage completion | F140: 1 | G140: %
D142: Component 2
E143: Accelerated programme - Scheme 3 component 2 cost allowance - real | G143: £m | H143: =SUM( J143:K143 ) -> 0
E144: Accelerated programme - Scheme 3 component 2 percentage completion | G144: %
D146: Component 3
E147: Accelerated programme - Scheme 3 component 3 cost allowance - real | G147: £m | H147: =SUM( J147:K147 ) -> 0
E148: Accelerated programme - Scheme 3 component 3 percentage completion | G148: %
D150: Component 4
E151: Accelerated programme - Scheme 3 component 4 cost allowance - real | G151: £m | H151: =SUM( J151:K151 ) -> 0
E152: Accelerated programme - Scheme 3 component 4 percentage completion | G152: %
D154: Component 5
E155: Accelerated programme - Scheme 3 component 5 cost allowance - real | G155: £m | H155: =SUM( J155:K155 ) -> 0
E156: Accelerated programme - Scheme 3 component 5 percentage completion | G156: %
D158: Component 6
E159: Accelerated programme - Scheme 3 component 6 cost allowance - real | G159: £m | H159: =SUM( J159:K159 ) -> 0
E160: Accelerated programme - Scheme 3 component 6 percentage completion | G160: %
D162: Component 7
E163: Accelerated programme - Scheme 3 component 7 cost allowance - real | G163: £m | H163: =SUM( J163:K163 ) -> 0
E164: Accelerated programme - Scheme 3 component 7 percentage completion | G164: %
D166: Component 8
E167: Accelerated programme - Scheme 3 component 8 cost allowance - real | G167: £m | H167: =SUM( J167:K167 ) -> 0
E168: Accelerated programme - Scheme 3 component 8 percentage completion | G168: %
D170: Component 9
E171: Accelerated programme - Scheme 3 component 9 cost allowance - real | G171: £m | H171: =SUM( J171:K171 ) -> 0
E172: Accelerated programme - Scheme 3 component 9 percentage completion | G172: %
D174: Component 10
E175: Accelerated programme - Scheme 3 component 10 cost allowance - real | G175: £m | H175: =SUM( J175:K175 ) -> 0
E176: Accelerated programme - Scheme 3 component 10 percentage completion | G176: %
D178: Component 11
E179: Accelerated programme - Scheme 3 component 11 cost allowance - real | G179: £m | H179: =SUM( J179:K179 ) -> 0
E180: Accelerated programme - Scheme 3 component 11 percentage completion | G180: %
D182: Component 12
E183: Accelerated programme - Scheme 3 component 12 cost allowance - real | G183: £m | H183: =SUM( J183:K183 ) -> 0
E184: Accelerated programme - Scheme 3 component 12 percentage completion | G184: %
C186: Accelerated programme - Scheme 4 - DWMP Delivery Acceleration– Nutrient Neutrality
E187: Accelerated programme - Scheme 4 control allocation - WR | G187: %
E188: Accelerated programme - Scheme 4 control allocation - WN+ | G188: %
E189: Accelerated programme - Scheme 4 control allocation - WWN+ | F189: 1 | G189: %
E190: Accelerated programme - Scheme 4 control allocation - BR | G190: %
D192: Component 1 - P-removal
E193: Accelerated programme - Scheme 4 component 1 cost allowance - real | G193: £m | H193: =SUM( J193:K193 ) -> 10.79744605 | J193: ='Inputs - post FS and RPEs'!F44 -> 0 | K193: ='Inputs - post FS and RPEs'!G44 -> 10.79744605
E194: Accelerated programme - Scheme 4 component 1 percentage completion | F194: 1 | G194: %
D196: Component 2
E197: Accelerated programme - Scheme 4 component 2 cost allowance - real | G197: £m | H197: =SUM( J197:K197 ) -> 0
E198: Accelerated programme - Scheme 4 component 2 percentage completion | G198: %
D200: Component 3
E201: Accelerated programme - Scheme 4 component 3 cost allowance - real | G201: £m | H201: =SUM( J201:K201 ) -> 0
E202: Accelerated programme - Scheme 4 component 3 percentage completion | G202: %
D204: Component 4
E205: Accelerated programme - Scheme 4 component 4 cost allowance - real | G205: £m | H205: =SUM( J205:K205 ) -> 0
E206: Accelerated programme - Scheme 4 component 4 percentage completion | G206: %
D208: Component 5
E209: Accelerated programme - Scheme 4 component 5 cost allowance - real | G209: £m | H209: =SUM( J209:K209 ) -> 0
E210: Accelerated programme - Scheme 4 component 5 percentage completion | G210: %
D212: Component 6
E213: Accelerated programme - Scheme 4 component 6 cost allowance - real | G213: £m | H213: =SUM( J213:K213 ) -> 0
E214: Accelerated programme - Scheme 4 component 6 percentage completion | G214: %
D216: Component 7
E217: Accelerated programme - Scheme 4 component 7 cost allowance - real | G217: £m | H217: =SUM( J217:K217 ) -> 0
E218: Accelerated programme - Scheme 4 component 7 percentage completion | G218: %
D220: Component 8
E221: Accelerated programme - Scheme 4 component 8 cost allowance - real | G221: £m | H221: =SUM( J221:K221 ) -> 0
E222: Accelerated programme - Scheme 4 component 8 percentage completion | G222: %
D224: Component 9
E225: Accelerated programme - Scheme 4 component 9 cost allowance - real | G225: £m | H225: =SUM( J225:K225 ) -> 0
E226: Accelerated programme - Scheme 4 component 9 percentage completion | G226: %
D228: Component 10
E229: Accelerated programme - Scheme 4 component 10 cost allowance - real | G229: £m | H229: =SUM( J229:K229 ) -> 0
E230: Accelerated programme - Scheme 4 component 10 percentage completion | G230: %
D232: Component 11
E233: Accelerated programme - Scheme 4 component 11 cost allowance - real | G233: £m | H233: =SUM( J233:K233 ) -> 0
E234: Accelerated programme - Scheme 4 component 11 percentage completion | G234: %
D236: Component 12
E237: Accelerated programme - Scheme 4 component 12 cost allowance - real | G237: £m | H237: =SUM( J237:K237 ) -> 0
E238: Accelerated programme - Scheme 4 component 12 percentage completion | G238: %
C240: Accelerated programme - Scheme 5
E241: Accelerated programme - Scheme 5 control allocation - WR | G241: %
E242: Accelerated programme - Scheme 5 control allocation - WN+ | G242: %
E243: Accelerated programme - Scheme 5 control allocation - WWN+ | G243: %
E244: Accelerated programme - Scheme 5 control allocation - BR | G244: %
D246: Component 1
E247: Accelerated programme - Scheme 5 component 1 cost allowance - real | G247: £m | H247: =SUM( J247:K247 ) -> 0
E248: Accelerated programme - Scheme 5 component 1 percentage completion | G248: %
D250: Component 2
E251: Accelerated programme - Scheme 5 component 2 cost allowance - real | G251: £m | H251: =SUM( J251:K251 ) -> 0
E252: Accelerated programme - Scheme 5 component 2 percentage completion | G252: %
D254: Component 3
E255: Accelerated programme - Scheme 5 component 3 cost allowance - real | G255: £m | H255: =SUM( J255:K255 ) -> 0
E256: Accelerated programme - Scheme 5 component 3 percentage completion | G256: %
D258: Component 4
E259: Accelerated programme - Scheme 5 component 4 cost allowance - real | G259: £m | H259: =SUM( J259:K259 ) -> 0
E260: Accelerated programme - Scheme 5 component 4 percentage completion | G260: %
D262: Component 5
E263: Accelerated programme - Scheme 5 component 5 cost allowance - real | G263: £m | H263: =SUM( J263:K263 ) -> 0
E264: Accelerated programme - Scheme 5 component 5 percentage completion | G264: %
... 272 more rows

Sheet Time
A1: =RIGHT(CELL("filename", A1), LEN(CELL("filename", A1)) - SEARCH("]", CELL("filename", A1))) -> 
E2: Model period ending | F2: ='Model Checks and Alerts'!F76 -> 0 | G2: Error chks | J2: =J$124 -> 2024-03-31 | K2: 2025-03-31
E3: Timeline label | J3: =J$130 -> Transition Period | K3: Transition Period
E4: Model column counter | J4: =J$134 -> 1 | K4: 2
F5: Constant | G5: Unit | H5: Total
A8: MODEL PERIOD
A9: Model Column Counter
B10: Model Column Total
E11: =E$134 -> Model column counter | F11: 0 | G11: counter | H11: 0 | I11: 0 | J11: 1 | K11: 2
E12: Model Column Total | F12: =MAX( $J11:$K11 ) -> 2 | G12: columns
B15: First model column flag
E16: =E$134 -> Model column counter | F16: 0 | G16: counter | H16: 0 | I16: 0 | J16: 1 | K16: 2
E17: First model column flag | G17: flag | H17: =SUM( J17:K17 ) -> 1 | J17: =IF( J16 = 1, 1, 0 ) -> 1 | K17: 0
B20: First model period beginning
E21: =InpS!E$13 -> First model column start date | F21: =InpS!F$13 -> 2023-04-01 | G21: =InpS!G$13 -> date
E22: First model period beginning | F22: =DATE( YEAR( $F21 ), MONTH( $F21 ), 1 ) -> 2023-04-01 | G22: date
B25: Model Year Beginning
E26: =E$17 -> First model column flag | F26: 0 | G26: flag | H26: 1 | I26: 0 | J26: 1 | K26: 0
E27: =E$22 -> First model period beginning | F27: 2023-04-01 | G27: date
E28: =E$124 -> Model Year Ending | F28: 00:00:00 | G28: date | H28: 00:00:00 | I28: 00:00:00 | J28: 2024-03-31 | K28: 2025-03-31
E29: Model Year Beginning | G29: date | J29: =IF( J26 = 1, $F27, I28 + 1 ) -> 2023-04-01 | K29: 2024-04-01
A32: PRE FORECAST PERIOD
B33: Last Pre Forecast Flag
E34: =E$124 -> Model Year Ending | F34: 00:00:00 | G34: date | H34: 00:00:00 | I34: 00:00:00 | J34: 2024-03-31 | K34: 2025-03-31
E35: =InpS!E$14 -> Last Pre Forecast Date | F35: =InpS!F$14 -> 2023-03-31 | G35: =InpS!G$14 -> date
E36: Last Pre Forecast Flag | G36: flag | H36: =SUM( J36:K36 ) -> 0 | J36: =IF( J34 = $F35, 1, 0 ) -> 0 | K36: 0
B39: Pre Forecast Period Flag
E40: =InpS!E$14 -> Last Pre Forecast Date | F40: =InpS!F$14 -> 2023-03-31 | G40: =InpS!G$14 -> date
E41: =E$124 -> Model Year Ending | F41: 00:00:00 | G41: date | H41: 00:00:00 | I41: 00:00:00 | J41: 2024-03-31 | K41: 2025-03-31
E42: Pre Forecast Period Flag | G42: flag | H42: =SUM( J42:K42 ) -> 0 | J42: =IF( $F40 >= J41, 1, 0 ) -> 0 | K42: 0
B45: Pre Forecast Period Total
E46: =E$42 -> Pre Forecast Period Flag | F46: 0 | G46: flag | H46: 0 | I46: 0 | J46: 0 | K46: 0
E47: Pre Forecast Period Total | F47: =SUM( $J46:$K46 ) -> 0 | G47: columns
A50: FORECAST PERIOD
B51: 1st Forecast Period Flag
E52: =E$29 -> Model Year Beginning | F52: 00:00:00 | G52: date | H52: 00:00:00 | I52: 00:00:00 | J52: 2023-04-01 | K52: 2024-04-01
E53: =InpS!E$17 -> Forecast start date | F53: =InpS!F$17 -> 2023-04-01 | G53: =InpS!G$17 -> date
E54: 1st Forecast Period Flag | G54: flag | H54: =SUM( J54:K54 ) -> 1 | J54: =IF( J52 = $F53, 1, 0 ) -> 1 | K54: 0
B57: Last Forecast Period Flag
E58: =InpS!E$18 -> Last Forecast date | F58: =InpS!F$18 -> 2025-03-31 | G58: =InpS!G$18 -> date
E59: =E$124 -> Model Year Ending | F59: 00:00:00 | G59: date | H59: 00:00:00 | I59: 00:00:00 | J59: 2024-03-31 | K59: 2025-03-31
E60: Last Forecast Period Flag | G60: flag | H60: =SUM( J60:K60 ) -> 1 | J60: =IF( AND( $F58 > I59, $F58 <= J59 ), 1, 0 ) -> 0 | K60: 1
B63: Forecast Period Flag
E64: =E$54 -> 1st Forecast Period Flag | F64: 0 | G64: flag | H64: 1 | I64: 0 | J64: 1 | K64: 0
E65: =E$60 -> Last Forecast Period Flag | F65: 0 | G65: flag | H65: 1 | I65: 0 | J65: 0 | K65: 1
E66: Forecast Period Flag | G66: flag | H66: =SUM( J66:K66 ) -> 2 | J66: =J64 - I65 + I66 -> 1 | K66: 1
B69: Forecast Period Total
E70: =E$66 -> Forecast Period Flag | F70: 0 | G70: flag | H70: 2 | I70: 0 | J70: 1 | K70: 1
E71: Forecast Period Total | F71: =SUM( $J70:$K70 ) -> 2 | G71: columns
B74: Forecast period counter
E75: =E$66 -> Forecast Period Flag | F75: 0 | G75: flag | H75: 2 | I75: 0 | J75: 1 | K75: 1
E76: Forecast period counter | G76: counter | J76: =IF( J75 = 1, I76 + 1, 0 ) -> 1 | K76: 2
B79: Forecast period factor
E80: =E$66 -> Forecast Period Flag | F80: 0 | G80: flag | H80: 2 | I80: 0 | J80: 1 | K80: 1
E81: =E$76 -> Forecast period counter | F81: 0 | G81: counter | H81: 0 | I81: 0 | J81: 1 | K81: 2
E82: Forecast period factor | G82: factor | J82: =IF( J80 = 1, J81 - J81, 0 ) -> 0 | K82: 0
A85: POST FORECAST PERIOD
B86: Opening Post Forecast Period Flag
E87: =E$60 -> Last Forecast Period Flag | F87: 0 | G87: flag | H87: 1 | I87: 0 | J87: 0 | K87: 1
E88: Opening Post Forecast Period Flag | G88: flag | H88: =SUM( J88:K88 ) -> 0 | J88: =I87 -> 0 | K88: 0
B91: Post Forecast Period Total
E92: =E$100 -> Post Forecast Period Flag | F92: 0 | G92: flag | H92: 0 | I92: 0 | J92: 0 | K92: 0
E93: Post Forecast Period Total | F93: =SUM( $J92:$K92 ) -> 0 | G93: columns
B96: Post Forecast Period Flag
E97: =E$88 -> Opening Post Forecast Period Flag | F97: 0 | G97: flag | H97: 0 | I97: 0 | J97: 0 | K97: 0
E98: =E$134 -> Model column counter | F98: 0 | G98: counter | H98: 0 | I98: 0 | J98: 1 | K98: 2
E99: Post Forecast Period Flag BEG | G99: flag | J99: =I100 -> 0 | K99: 0
E100: Post Forecast Period Flag | G100: flag | I100: =IF( I98 = 0, I97, I99 ) -> 0 | J100: 0 | K100: 0
A102: MODELLING PERIOD CHECK
A103: less
B104: Modelling Period Check
E105: =E$12 -> Model Column Total | F105: 2 | G105: columns
E106: =E$47 -> Pre Forecast Period Total | F106: 0 | G106: columns
E107: =E$71 -> Forecast Period Total | F107: 2 | G107: columns
E108: =E$93 -> Post Forecast Period Total | F108: 0 | G108: columns
E109: Modelling Period Check | F109: =IF( $F105 - SUM( $F106:$F108 ) <> 0, 1, 0 ) -> 0 | G109: check
A112: FINANCIAL YEAR
B113: Financial Year Ending
E114: =E$17 -> First model column flag | F114: 0 | G114: flag | H114: 1 | I114: 0 | J114: 1 | K114: 0
E115: =InpS!E$15 -> First modelling column financial year | F115: =InpS!F$15 -> 2023 | G115: =InpS!G$15 -> year #
E116: =E$124 -> Model Year Ending | F116: 00:00:00 | G116: date | H116: 00:00:00 | I116: 00:00:00 | J116: 2024-03-31 | K116: 2025-03-31
E117: =InpS!E$16 -> Financial year end month | F117: =InpS!F$16 -> 3 | G117: =InpS!G$16 -> month #
E118: Financial Year Ending | G118: year # | H118: =SUM( J118:K118 ) -> 4047 | J118: =IF( J114 = 1, $F115, IF( J116 > ( DATE( I118, $F117 + 1, 1 ) - 1 ), I118 + 1, I118 ) ) -> 2023 | K118: 2024
A121: Headers
B122: Model Year Ending
E123: =E$29 -> Model Year Beginning | F123: 00:00:00 | G123: date | H123: 00:00:00 | I123: 00:00:00 | J123: 2023-04-01 | K123: 2024-04-01
E124: Model Year Ending | G124: date | J124: =DATE( YEAR( J123 ), MONTH( J123 ) + 12, DAY( 1 ) - 1 ) -> 2024-03-31 | K124: 2025-03-31
B127: Time label bar
E128: =E$42 -> Pre Forecast Period Flag | F128: 0 | G128: flag | H128: 0 | I128: 0 | J128: 0 | K128: 0
E129: =E$66 -> Forecast Period Flag | F129: 0 | G129: flag | H129: 2 | I129: 0 | J129: 1 | K129: 1
E130: Time label bar | G130: flag | H130: =SUM( J130:K130 ) -> 0 | J130: =IF( J128 = 1, "Pre Fcst", IF( J129 = 1, "Transition Period", "Post-Fcst" ) ) -> Transition Period | K130: Transition Period
B133: Model column counter
E134: Model column counter | G134: counter | J134: =I134 + 1 -> 1 | K134: 2
B138: END

Sheet Calcs
A1: =RIGHT(CELL("filename", A1), LEN(CELL("filename", A1)) - SEARCH("]", CELL("filename", A1))) -> 
E2: Model period ending | F2: ='Model Checks and Alerts'!F76 -> 0 | G2: Error chks | J2: =Time!J$124 -> 2024-03-31 | K2: =Time!K$124 -> 2025-03-31
E3: Timeline label | J3: =Time!J$130 -> Transition Period | K3: =Time!K$130 -> Transition Period
E4: Model column counter | J4: =Time!J$134 -> 1 | K4: =Time!K$134 -> 2
F5: Constant | G5: Unit | H5: Total
A8: COST ALLOWANCES
A9: Accelerated programme
A10: Accelerated programme - Scheme 1
B11: Accelerated programme - Scheme 1 component 1 adjusted cost allowance - real
E12: =Time!E$66 -> Forecast Period Flag | F12: =Time!F$66 -> 0 | G12: =Time!G$66 -> flag | H12: =Time!H$66 -> 2 | I12: =Time!I$66 -> 0 | J12: =Time!J$66 -> 1 | K12: =Time!K$66 -> 1
E13: =InpS!E$31 -> Accelerated programme - Scheme 1 component 1 cost allowance - real | F13: =InpS!F$31 -> 0 | G13: =InpS!G$31 -> £m | H13: =InpS!H$31 -> 1.399342526 | I13: =InpS!I$31 -> 0 | J13: =InpS!J$31 -> 0.03716269304 | K13: =InpS!K$31 -> 1.362179833
E14: =InpS!E$32 -> Accelerated programme - Scheme 1 component 1 percentage completion | F14: =InpS!F$32 -> 1 | G14: =InpS!G$32 -> %
E15: Accelerated programme - Scheme 1 component 1 adjusted cost allowance - real | G15: £m | H15: =SUM( J15:K15 ) -> 1.399342526 | J15: =IF( J12 = 1, J13 * $F14, 0 ) -> 0.03716269304 | K15: 1.362179833
B18: Accelerated programme - Scheme 1 component 2 adjusted cost allowance - real
E19: =Time!E$66 -> Forecast Period Flag | F19: =Time!F$66 -> 0 | G19: =Time!G$66 -> flag | H19: =Time!H$66 -> 2 | I19: =Time!I$66 -> 0 | J19: =Time!J$66 -> 1 | K19: =Time!K$66 -> 1
E20: =InpS!E$35 -> Accelerated programme - Scheme 1 component 2 cost allowance - real | F20: =InpS!F$35 -> 0 | G20: =InpS!G$35 -> £m | H20: =InpS!H$35 -> 0 | I20: =InpS!I$35 -> 0 | J20: =InpS!J$35 -> 0 | K20: =InpS!K$35 -> 0
E21: =InpS!E$36 -> Accelerated programme - Scheme 1 component 2 percentage completion | F21: =InpS!F$36 -> 0 | G21: =InpS!G$36 -> %
E22: Accelerated programme - Scheme 1 component 2 adjusted cost allowance - real | G22: £m | H22: =SUM( J22:K22 ) -> 0 | J22: =IF( J19 = 1, J20 * $F21, 0 ) -> 0 | K22: 0
B25: Accelerated programme - Scheme 1 component 3 adjusted cost allowance - real
E26: =Time!E$66 -> Forecast Period Flag | F26: =Time!F$66 -> 0 | G26: =Time!G$66 -> flag | H26: =Time!H$66 -> 2 | I26: =Time!I$66 -> 0 | J26: =Time!J$66 -> 1 | K26: =Time!K$66 -> 1
E27: =InpS!E$39 -> Accelerated programme - Scheme 1 component 3 cost allowance - real | F27: =InpS!F$39 -> 0 | G27: =InpS!G$39 -> £m | H27: =InpS!H$39 -> 0 | I27: =InpS!I$39 -> 0 | J27: =InpS!J$39 -> 0 | K27: =InpS!K$39 -> 0
E28: =InpS!E$40 -> Accelerated programme - Scheme 1 component 3 percentage completion | F28: =InpS!F$40 -> 0 | G28: =InpS!G$40 -> %
E29: Accelerated programme - Scheme 1 component 3 adjusted cost allowance - real | G29: £m | H29: =SUM( J29:K29 ) -> 0 | J29: =IF( J26 = 1, J27 * $F28, 0 ) -> 0 | K29: 0
B32: Accelerated programme - Scheme 1 component 4 adjusted cost allowance - real
E33: =Time!E$66 -> Forecast Period Flag | F33: =Time!F$66 -> 0 | G33: =Time!G$66 -> flag | H33: =Time!H$66 -> 2 | I33: =Time!I$66 -> 0 | J33: =Time!J$66 -> 1 | K33: =Time!K$66 -> 1
E34: =InpS!E$43 -> Accelerated programme - Scheme 1 component 4 cost allowance - real | F34: =InpS!F$43 -> 0 | G34: =InpS!G$43 -> £m | H34: =InpS!H$43 -> 0 | I34: =InpS!I$43 -> 0 | J34: =InpS!J$43 -> 0 | K34: =InpS!K$43 -> 0
E35: =InpS!E$44 -> Accelerated programme - Scheme 1 component 4 percentage completion | F35: =InpS!F$44 -> 0 | G35: =InpS!G$44 -> %
E36: Accelerated programme - Scheme 1 component 4 adjusted cost allowance - real | G36: £m | H36: =SUM( J36:K36 ) -> 0 | J36: =IF( J33 = 1, J34 * $F35, 0 ) -> 0 | K36: 0
B39: Accelerated programme - Scheme 1 component 5 adjusted cost allowance - real
E40: =Time!E$66 -> Forecast Period Flag | F40: =Time!F$66 -> 0 | G40: =Time!G$66 -> flag | H40: =Time!H$66 -> 2 | I40: =Time!I$66 -> 0 | J40: =Time!J$66 -> 1 | K40: =Time!K$66 -> 1
E41: =InpS!E$47 -> Accelerated programme - Scheme 1 component 5 cost allowance - real | F41: =InpS!F$47 -> 0 | G41: =InpS!G$47 -> £m | H41: =InpS!H$47 -> 0 | I41: =InpS!I$47 -> 0 | J41: =InpS!J$47 -> 0 | K41: =InpS!K$47 -> 0
E42: =InpS!E$48 -> Accelerated programme - Scheme 1 component 5 percentage completion | F42: =InpS!F$48 -> 0 | G42: =InpS!G$48 -> %
E43: Accelerated programme - Scheme 1 component 5 adjusted cost allowance - real | G43: £m | H43: =SUM( J43:K43 ) -> 0 | J43: =IF( J40 = 1, J41 * $F42, 0 ) -> 0 | K43: 0
B46: Accelerated programme - Scheme 1 component 6 adjusted cost allowance - real
E47: =Time!E$66 -> Forecast Period Flag | F47: =Time!F$66 -> 0 | G47: =Time!G$66 -> flag | H47: =Time!H$66 -> 2 | I47: =Time!I$66 -> 0 | J47: =Time!J$66 -> 1 | K47: =Time!K$66 -> 1
E48: =InpS!E$51 -> Accelerated programme - Scheme 1 component 6 cost allowance - real | F48: =InpS!F$51 -> 0 | G48: =InpS!G$51 -> £m | H48: =InpS!H$51 -> 0 | I48: =InpS!I$51 -> 0 | J48: =InpS!J$51 -> 0 | K48: =InpS!K$51 -> 0
E49: =InpS!E$52 -> Accelerated programme - Scheme 1 component 6 percentage completion | F49: =InpS!F$52 -> 0 | G49: =InpS!G$52 -> %
E50: Accelerated programme - Scheme 1 component 6 adjusted cost allowance - real | G50: £m | H50: =SUM( J50:K50 ) -> 0 | J50: =IF( J47 = 1, J48 * $F49, 0 ) -> 0 | K50: 0
B53: Accelerated programme - Scheme 1 component 7 adjusted cost allowance - real
E54: =Time!E$66 -> Forecast Period Flag | F54: =Time!F$66 -> 0 | G54: =Time!G$66 -> flag | H54: =Time!H$66 -> 2 | I54: =Time!I$66 -> 0 | J54: =Time!J$66 -> 1 | K54: =Time!K$66 -> 1
E55: =InpS!E$55 -> Accelerated programme - Scheme 1 component 7 cost allowance - real | F55: =InpS!F$55 -> 0 | G55: =InpS!G$55 -> £m | H55: =InpS!H$55 -> 0 | I55: =InpS!I$55 -> 0 | J55: =InpS!J$55 -> 0 | K55: =InpS!K$55 -> 0
E56: =InpS!E$56 -> Accelerated programme - Scheme 1 component 7 percentage completion | F56: =InpS!F$56 -> 0 | G56: =InpS!G$56 -> %
E57: Accelerated programme - Scheme 1 component 7 adjusted cost allowance - real | G57: £m | H57: =SUM( J57:K57 ) -> 0 | J57: =IF( J54 = 1, J55 * $F56, 0 ) -> 0 | K57: 0
B60: Accelerated programme - Scheme 1 component 8 adjusted cost allowance - real
E61: =Time!E$66 -> Forecast Period Flag | F61: =Time!F$66 -> 0 | G61: =Time!G$66 -> flag | H61: =Time!H$66 -> 2 | I61: =Time!I$66 -> 0 | J61: =Time!J$66 -> 1 | K61: =Time!K$66 -> 1
E62: =InpS!E$59 -> Accelerated programme - Scheme 1 component 8 cost allowance - real | F62: =InpS!F$59 -> 0 | G62: =InpS!G$59 -> £m | H62: =InpS!H$59 -> 0 | I62: =InpS!I$59 -> 0 | J62: =InpS!J$59 -> 0 | K62: =InpS!K$59 -> 0
E63: =InpS!E$60 -> Accelerated programme - Scheme 1 component 8 percentage completion | F63: =InpS!F$60 -> 0 | G63: =InpS!G$60 -> %
E64: Accelerated programme - Scheme 1 component 8 adjusted cost allowance - real | G64: £m | H64: =SUM( J64:K64 ) -> 0 | J64: =IF( J61 = 1, J62 * $F63, 0 ) -> 0 | K64: 0
B67: Accelerated programme - Scheme 1 component 9 adjusted cost allowance - real
E68: =Time!E$66 -> Forecast Period Flag | F68: =Time!F$66 -> 0 | G68: =Time!G$66 -> flag | H68: =Time!H$66 -> 2 | I68: =Time!I$66 -> 0 | J68: =Time!J$66 -> 1 | K68: =Time!K$66 -> 1
E69: =InpS!E$63 -> Accelerated programme - Scheme 1 component 9 cost allowance - real | F69: =InpS!F$63 -> 0 | G69: =InpS!G$63 -> £m | H69: =InpS!H$63 -> 0 | I69: =InpS!I$63 -> 0 | J69: =InpS!J$63 -> 0 | K69: =InpS!K$63 -> 0
E70: =InpS!E$64 -> Accelerated programme - Scheme 1 component 9 percentage completion | F70: =InpS!F$64 -> 0 | G70: =InpS!G$64 -> %
E71: Accelerated programme - Scheme 1 component 9 adjusted cost allowance - real | G71: £m | H71: =SUM( J71:K71 ) -> 0 | J71: =IF( J68 = 1, J69 * $F70, 0 ) -> 0 | K71: 0
B74: Accelerated programme - Scheme 1 component 10 adjusted cost allowance - real
E75: =Time!E$66 -> Forecast Period Flag | F75: =Time!F$66 -> 0 | G75: =Time!G$66 -> flag | H75: =Time!H$66 -> 2 | I75: =Time!I$66 -> 0 | J75: =Time!J$66 -> 1 | K75: =Time!K$66 -> 1
E76: =InpS!E$67 -> Accelerated programme - Scheme 1 component 10 cost allowance - real | F76: =InpS!F$67 -> 0 | G76: =InpS!G$67 -> £m | H76: =InpS!H$67 -> 0 | I76: =InpS!I$67 -> 0 | J76: =InpS!J$67 -> 0 | K76: =InpS!K$67 -> 0
E77: =InpS!E$68 -> Accelerated programme - Scheme 1 component 10 percentage completion | F77: =InpS!F$68 -> 0 | G77: =InpS!G$68 -> %
E78: Accelerated programme - Scheme 1 component 10 adjusted cost allowance - real | G78: £m | H78: =SUM( J78:K78 ) -> 0 | J78: =IF( J75 = 1, J76 * $F77, 0 ) -> 0 | K78: 0
B81: Accelerated programme - Scheme 1 component 11 adjusted cost allowance - real
E82: =Time!E$66 -> Forecast Period Flag | F82: =Time!F$66 -> 0 | G82: =Time!G$66 -> flag | H82: =Time!H$66 -> 2 | I82: =Time!I$66 -> 0 | J82: =Time!J$66 -> 1 | K82: =Time!K$66 -> 1
E83: =InpS!E$71 -> Accelerated programme - Scheme 1 component 11 cost allowance - real | F83: =InpS!F$71 -> 0 | G83: =InpS!G$71 -> £m | H83: =InpS!H$71 -> 0 | I83: =InpS!I$71 -> 0 | J83: =InpS!J$71 -> 0 | K83: =InpS!K$71 -> 0
E84: =InpS!E$72 -> Accelerated programme - Scheme 1 component 11 percentage completion | F84: =InpS!F$72 -> 0 | G84: =InpS!G$72 -> %
E85: Accelerated programme - Scheme 1 component 11 adjusted cost allowance - real | G85: £m | H85: =SUM( J85:K85 ) -> 0 | J85: =IF( J82 = 1, J83 * $F84, 0 ) -> 0 | K85: 0
B88: Accelerated programme - Scheme 1 component 12 adjusted cost allowance - real
E89: =Time!E$66 -> Forecast Period Flag | F89: =Time!F$66 -> 0 | G89: =Time!G$66 -> flag | H89: =Time!H$66 -> 2 | I89: =Time!I$66 -> 0 | J89: =Time!J$66 -> 1 | K89: =Time!K$66 -> 1
E90: =InpS!E$75 -> Accelerated programme - Scheme 1 component 12 cost allowance - real | F90: =InpS!F$75 -> 0 | G90: =InpS!G$75 -> £m | H90: =InpS!H$75 -> 0 | I90: =InpS!I$75 -> 0 | J90: =InpS!J$75 -> 0 | K90: =InpS!K$75 -> 0
E91: =InpS!E$76 -> Accelerated programme - Scheme 1 component 12 percentage completion | F91: =InpS!F$76 -> 0 | G91: =InpS!G$76 -> %
E92: Accelerated programme - Scheme 1 component 12 adjusted cost allowance - real | G92: £m | H92: =SUM( J92:K92 ) -> 0 | J92: =IF( J89 = 1, J90 * $F91, 0 ) -> 0 | K92: 0
B95: Accelerated programme - Scheme 1 adjusted cost allowance - real
E96: =E$15 -> Accelerated programme - Scheme 1 component 1 adjusted cost allowance - real | F96: 0 | G96: £m | H96: 1.399342526 | I96: 0 | J96: 0.03716269304 | K96: 1.362179833
E97: =E$22 -> Accelerated programme - Scheme 1 component 2 adjusted cost allowance - real | F97: 0 | G97: £m | H97: 0 | I97: 0 | J97: 0 | K97: 0
E98: =E$29 -> Accelerated programme - Scheme 1 component 3 adjusted cost allowance - real | F98: 0 | G98: £m | H98: 0 | I98: 0 | J98: 0 | K98: 0
E99: =E$36 -> Accelerated programme - Scheme 1 component 4 adjusted cost allowance - real | F99: 0 | G99: £m | H99: 0 | I99: 0 | J99: 0 | K99: 0
E100: =E$43 -> Accelerated programme - Scheme 1 component 5 adjusted cost allowance - real | F100: 0 | G100: £m | H100: 0 | I100: 0 | J100: 0 | K100: 0
E101: =E$50 -> Accelerated programme - Scheme 1 component 6 adjusted cost allowance - real | F101: 0 | G101: £m | H101: 0 | I101: 0 | J101: 0 | K101: 0
E102: =E$57 -> Accelerated programme - Scheme 1 component 7 adjusted cost allowance - real | F102: 0 | G102: £m | H102: 0 | I102: 0 | J102: 0 | K102: 0
E103: =E$64 -> Accelerated programme - Scheme 1 component 8 adjusted cost allowance - real | F103: 0 | G103: £m | H103: 0 | I103: 0 | J103: 0 | K103: 0
E104: =E$71 -> Accelerated programme - Scheme 1 component 9 adjusted cost allowance - real | F104: 0 | G104: £m | H104: 0 | I104: 0 | J104: 0 | K104: 0
E105: =E$78 -> Accelerated programme - Scheme 1 component 10 adjusted cost allowance - real | F105: 0 | G105: £m | H105: 0 | I105: 0 | J105: 0 | K105: 0
E106: =E$85 -> Accelerated programme - Scheme 1 component 11 adjusted cost allowance - real | F106: 0 | G106: £m | H106: 0 | I106: 0 | J106: 0 | K106: 0
E107: =E$92 -> Accelerated programme - Scheme 1 component 12 adjusted cost allowance - real | F107: 0 | G107: £m | H107: 0 | I107: 0 | J107: 0 | K107: 0
E108: Accelerated programme - Scheme 1 adjusted cost allowance - real | G108: £m | H108: =SUM( J108:K108 ) -> 1.399342526 | J108: =SUM( J96:J107 ) -> 0.03716269304 | K108: 1.362179833
B111: Accelerated programme - Scheme 1 adjusted cost allowance - real - WR
E112: =InpS!E$25 -> Accelerated programme - Scheme 1 control allocation - WR | F112: =InpS!F$25 -> 0 | G112: =InpS!G$25 -> %
E113: =E$108 -> Accelerated programme - Scheme 1 adjusted cost allowance - real | F113: 0 | G113: £m | H113: 1.399342526 | I113: 0 | J113: 0.03716269304 | K113: 1.362179833
E114: Accelerated programme - Scheme 1 adjusted cost allowance - real - WR | G114: £m | H114: =SUM( J114:K114 ) -> 0 | J114: =$F112 * J113 -> 0 | K114: 0
B117: Accelerated programme - Scheme 1 adjusted cost allowance - real - WN+
E118: =InpS!E$26 -> Accelerated programme - Scheme 1 control allocation - WN+ | F118: =InpS!F$26 -> 1 | G118: =InpS!G$26 -> %
E119: =E$108 -> Accelerated programme - Scheme 1 adjusted cost allowance - real | F119: 0 | G119: £m | H119: 1.399342526 | I119: 0 | J119: 0.03716269304 | K119: 1.362179833
E120: Accelerated programme - Scheme 1 adjusted cost allowance - real - WN+ | G120: £m | H120: =SUM( J120:K120 ) -> 1.399342526 | J120: =$F118 * J119 -> 0.03716269304 | K120: 1.362179833
B123: Accelerated programme - Scheme 1 adjusted cost allowance - real - WWN+
E124: =InpS!E$27 -> Accelerated programme - Scheme 1 control allocation - WWN+ | F124: =InpS!F$27 -> 0 | G124: =InpS!G$27 -> %
E125: =E$108 -> Accelerated programme - Scheme 1 adjusted cost allowance - real | F125: 0 | G125: £m | H125: 1.399342526 | I125: 0 | J125: 0.03716269304 | K125: 1.362179833
E126: Accelerated programme - Scheme 1 adjusted cost allowance - real - WWN+ | G126: £m | H126: =SUM( J126:K126 ) -> 0 | J126: =$F124 * J125 -> 0 | K126: 0
B129: Accelerated programme - Scheme 1 adjusted cost allowance - real - BR
E130: =InpS!E$28 -> Accelerated programme - Scheme 1 control allocation - BR | F130: =InpS!F$28 -> 0 | G130: =InpS!G$28 -> %
E131: =E$108 -> Accelerated programme - Scheme 1 adjusted cost allowance - real | F131: 0 | G131: £m | H131: 1.399342526 | I131: 0 | J131: 0.03716269304 | K131: 1.362179833
E132: Accelerated programme - Scheme 1 adjusted cost allowance - real - BR | G132: £m | H132: =SUM( J132:K132 ) -> 0 | J132: =$F130 * J131 -> 0 | K132: 0
A135: Accelerated programme - Scheme 2
B136: Accelerated programme - Scheme 2 component 1 adjusted cost allowance - real
E137: =Time!E$66 -> Forecast Period Flag | F137: =Time!F$66 -> 0 | G137: =Time!G$66 -> flag | H137: =Time!H$66 -> 2 | I137: =Time!I$66 -> 0 | J137: =Time!J$66 -> 1 | K137: =Time!K$66 -> 1
E138: =InpS!E$85 -> Accelerated programme - Scheme 2 component 1 cost allowance - real | F138: =InpS!F$85 -> 0 | G138: =InpS!G$85 -> £m | H138: =InpS!H$85 -> 2.107682282 | I138: =InpS!I$85 -> 0 | J138: =InpS!J$85 -> 0.05597425093 | K138: =InpS!K$85 -> 2.051708031
E139: =InpS!E$86 -> Accelerated programme - Scheme 2 component 1 percentage completion | F139: =InpS!F$86 -> 1 | G139: =InpS!G$86 -> %
E140: Accelerated programme - Scheme 2 component 1 adjusted cost allowance - real | G140: £m | H140: =SUM( J140:K140 ) -> 2.107682282 | J140: =IF( J137 = 1, J138 * $F139, 0 ) -> 0.05597425093 | K140: 2.051708031
B143: Accelerated programme - Scheme 2 component 2 adjusted cost allowance - real
E144: =Time!E$66 -> Forecast Period Flag | F144: =Time!F$66 -> 0 | G144: =Time!G$66 -> flag | H144: =Time!H$66 -> 2 | I144: =Time!I$66 -> 0 | J144: =Time!J$66 -> 1 | K144: =Time!K$66 -> 1
E145: =InpS!E$89 -> Accelerated programme - Scheme 2 component 2 cost allowance - real | F145: =InpS!F$89 -> 0 | G145: =InpS!G$89 -> £m | H145: =InpS!H$89 -> 0 | I145: =InpS!I$89 -> 0 | J145: =InpS!J$89 -> 0 | K145: =InpS!K$89 -> 0
E146: =InpS!E$90 -> Accelerated programme - Scheme 2 component 2 percentage completion | F146: =InpS!F$90 -> 0 | G146: =InpS!G$90 -> %
E147: Accelerated programme - Scheme 2 component 2 adjusted cost allowance - real | G147: £m | H147: =SUM( J147:K147 ) -> 0 | J147: =IF( J144 = 1, J145 * $F146, 0 ) -> 0 | K147: 0
B150: Accelerated programme - Scheme 2 component 3 adjusted cost allowance - real
E151: =Time!E$66 -> Forecast Period Flag | F151: =Time!F$66 -> 0 | G151: =Time!G$66 -> flag | H151: =Time!H$66 -> 2 | I151: =Time!I$66 -> 0 | J151: =Time!J$66 -> 1 | K151: =Time!K$66 -> 1
E152: =InpS!E$93 -> Accelerated programme - Scheme 2 component 3 cost allowance - real | F152: =InpS!F$93 -> 0 | G152: =InpS!G$93 -> £m | H152: =InpS!H$93 -> 0 | I152: =InpS!I$93 -> 0 | J152: =InpS!J$93 -> 0 | K152: =InpS!K$93 -> 0
E153: =InpS!E$94 -> Accelerated programme - Scheme 2 component 3 percentage completion | F153: =InpS!F$94 -> 0 | G153: =InpS!G$94 -> %
E154: Accelerated programme - Scheme 2 component 3 adjusted cost allowance - real | G154: £m | H154: =SUM( J154:K154 ) -> 0 | J154: =IF( J151 = 1, J152 * $F153, 0 ) -> 0 | K154: 0
B157: Accelerated programme - Scheme 2 component 4 adjusted cost allowance - real
E158: =Time!E$66 -> Forecast Period Flag | F158: =Time!F$66 -> 0 | G158: =Time!G$66 -> flag | H158: =Time!H$66 -> 2 | I158: =Time!I$66 -> 0 | J158: =Time!J$66 -> 1 | K158: =Time!K$66 -> 1
E159: =InpS!E$97 -> Accelerated programme - Scheme 2 component 4 cost allowance - real | F159: =InpS!F$97 -> 0 | G159: =InpS!G$97 -> £m | H159: =InpS!H$97 -> 0 | I159: =InpS!I$97 -> 0 | J159: =InpS!J$97 -> 0 | K159: =InpS!K$97 -> 0
E160: =InpS!E$98 -> Accelerated programme - Scheme 2 component 4 percentage completion | F160: =InpS!F$98 -> 0 | G160: =InpS!G$98 -> %
E161: Accelerated programme - Scheme 2 component 4 adjusted cost allowance - real | G161: £m | H161: =SUM( J161:K161 ) -> 0 | J161: =IF( J158 = 1, J159 * $F160, 0 ) -> 0 | K161: 0
B164: Accelerated programme - Scheme 2 component 5 adjusted cost allowance - real
E165: =Time!E$66 -> Forecast Period Flag | F165: =Time!F$66 -> 0 | G165: =Time!G$66 -> flag | H165: =Time!H$66 -> 2 | I165: =Time!I$66 -> 0 | J165: =Time!J$66 -> 1 | K165: =Time!K$66 -> 1
E166: =InpS!E$101 -> Accelerated programme - Scheme 2 component 5 cost allowance - real | F166: =InpS!F$101 -> 0 | G166: =InpS!G$101 -> £m | H166: =InpS!H$101 -> 0 | I166: =InpS!I$101 -> 0 | J166: =InpS!J$101 -> 0 | K166: =InpS!K$101 -> 0
E167: =InpS!E$102 -> Accelerated programme - Scheme 2 component 5 percentage completion | F167: =InpS!F$102 -> 0 | G167: =InpS!G$102 -> %
E168: Accelerated programme - Scheme 2 component 5 adjusted cost allowance - real | G168: £m | H168: =SUM( J168:K168 ) -> 0 | J168: =IF( J165 = 1, J166 * $F167, 0 ) -> 0 | K168: 0
B171: Accelerated programme - Scheme 2 component 6 adjusted cost allowance - real
E172: =Time!E$66 -> Forecast Period Flag | F172: =Time!F$66 -> 0 | G172: =Time!G$66 -> flag | H172: =Time!H$66 -> 2 | I172: =Time!I$66 -> 0 | J172: =Time!J$66 -> 1 | K172: =Time!K$66 -> 1
E173: =InpS!E$105 -> Accelerated programme - Scheme 2 component 6 cost allowance - real | F173: =InpS!F$105 -> 0 | G173: =InpS!G$105 -> £m | H173: =InpS!H$105 -> 0 | I173: =InpS!I$105 -> 0 | J173: =InpS!J$105 -> 0 | K173: =InpS!K$105 -> 0
E174: =InpS!E$106 -> Accelerated programme - Scheme 2 component 6 percentage completion | F174: =InpS!F$106 -> 0 | G174: =InpS!G$106 -> %
E175: Accelerated programme - Scheme 2 component 6 adjusted cost allowance - real | G175: £m | H175: =SUM( J175:K175 ) -> 0 | J175: =IF( J172 = 1, J173 * $F174, 0 ) -> 0 | K175: 0
B178: Accelerated programme - Scheme 2 component 7 adjusted cost allowance - real
E179: =Time!E$66 -> Forecast Period Flag | F179: =Time!F$66 -> 0 | G179: =Time!G$66 -> flag | H179: =Time!H$66 -> 2 | I179: =Time!I$66 -> 0 | J179: =Time!J$66 -> 1 | K179: =Time!K$66 -> 1
E180: =InpS!E$109 -> Accelerated programme - Scheme 2 component 7 cost allowance - real | F180: =InpS!F$109 -> 0 | G180: =InpS!G$109 -> £m | H180: =InpS!H$109 -> 0 | I180: =InpS!I$109 -> 0 | J180: =InpS!J$109 -> 0 | K180: =InpS!K$109 -> 0
E181: =InpS!E$110 -> Accelerated programme - Scheme 2 component 7 percentage completion | F181: =InpS!F$110 -> 0 | G181: =InpS!G$110 -> %
E182: Accelerated programme - Scheme 2 component 7 adjusted cost allowance - real | G182: £m | H182: =SUM( J182:K182 ) -> 0 | J182: =IF( J179 = 1, J180 * $F181, 0 ) -> 0 | K182: 0
B185: Accelerated programme - Scheme 2 component 8 adjusted cost allowance - real
E186: =Time!E$66 -> Forecast Period Flag | F186: =Time!F$66 -> 0 | G186: =Time!G$66 -> flag | H186: =Time!H$66 -> 2 | I186: =Time!I$66 -> 0 | J186: =Time!J$66 -> 1 | K186: =Time!K$66 -> 1
E187: =InpS!E$113 -> Accelerated programme - Scheme 2 component 8 cost allowance - real | F187: =InpS!F$113 -> 0 | G187: =InpS!G$113 -> £m | H187: =InpS!H$113 -> 0 | I187: =InpS!I$113 -> 0 | J187: =InpS!J$113 -> 0 | K187: =InpS!K$113 -> 0
E188: =InpS!E$114 -> Accelerated programme - Scheme 2 component 8 percentage completion | F188: =InpS!F$114 -> 0 | G188: =InpS!G$114 -> %
E189: Accelerated programme - Scheme 2 component 8 adjusted cost allowance - real | G189: £m | H189: =SUM( J189:K189 ) -> 0 | J189: =IF( J186 = 1, J187 * $F188, 0 ) -> 0 | K189: 0
B192: Accelerated programme - Scheme 2 component 9 adjusted cost allowance - real
E193: =Time!E$66 -> Forecast Period Flag | F193: =Time!F$66 -> 0 | G193: =Time!G$66 -> flag | H193: =Time!H$66 -> 2 | I193: =Time!I$66 -> 0 | J193: =Time!J$66 -> 1 | K193: =Time!K$66 -> 1
E194: =InpS!E$117 -> Accelerated programme - Scheme 2 component 9 cost allowance - real | F194: =InpS!F$117 -> 0 | G194: =InpS!G$117 -> £m | H194: =InpS!H$117 -> 0 | I194: =InpS!I$117 -> 0 | J194: =InpS!J$117 -> 0 | K194: =InpS!K$117 -> 0
E195: =InpS!E$118 -> Accelerated programme - Scheme 2 component 9 percentage completion | F195: =InpS!F$118 -> 0 | G195: =InpS!G$118 -> %
E196: Accelerated programme - Scheme 2 component 9 adjusted cost allowance - real | G196: £m | H196: =SUM( J196:K196 ) -> 0 | J196: =IF( J193 = 1, J194 * $F195, 0 ) -> 0 | K196: 0
B199: Accelerated programme - Scheme 2 component 10 adjusted cost allowance - real
E200: =Time!E$66 -> Forecast Period Flag | F200: =Time!F$66 -> 0 | G200: =Time!G$66 -> flag | H200: =Time!H$66 -> 2 | I200: =Time!I$66 -> 0 | J200: =Time!J$66 -> 1 | K200: =Time!K$66 -> 1
E201: =InpS!E$121 -> Accelerated programme - Scheme 2 component 10 cost allowance - real | F201: =InpS!F$121 -> 0 | G201: =InpS!G$121 -> £m | H201: =InpS!H$121 -> 0 | I201: =InpS!I$121 -> 0 | J201: =InpS!J$121 -> 0 | K201: =InpS!K$121 -> 0
E202: =InpS!E$122 -> Accelerated programme - Scheme 2 component 10 percentage completion | F202: =InpS!F$122 -> 0 | G202: =InpS!G$122 -> %
E203: Accelerated programme - Scheme 2 component 10 adjusted cost allowance - real | G203: £m | H203: =SUM( J203:K203 ) -> 0 | J203: =IF( J200 = 1, J201 * $F202, 0 ) -> 0 | K203: 0
B206: Accelerated programme - Scheme 2 component 11 adjusted cost allowance - real
E207: =Time!E$66 -> Forecast Period Flag | F207: =Time!F$66 -> 0 | G207: =Time!G$66 -> flag | H207: =Time!H$66 -> 2 | I207: =Time!I$66 -> 0 | J207: =Time!J$66 -> 1 | K207: =Time!K$66 -> 1
E208: =InpS!E$125 -> Accelerated programme - Scheme 2 component 11 cost allowance - real | F208: =InpS!F$125 -> 0 | G208: =InpS!G$125 -> £m | H208: =InpS!H$125 -> 0 | I208: =InpS!I$125 -> 0 | J208: =InpS!J$125 -> 0 | K208: =InpS!K$125 -> 0
E209: =InpS!E$126 -> Accelerated programme - Scheme 2 component 11 percentage completion | F209: =InpS!F$126 -> 0 | G209: =InpS!G$126 -> %
E210: Accelerated programme - Scheme 2 component 11 adjusted cost allowance - real | G210: £m | H210: =SUM( J210:K210 ) -> 0 | J210: =IF( J207 = 1, J208 * $F209, 0 ) -> 0 | K210: 0
B213: Accelerated programme - Scheme 2 component 12 adjusted cost allowance - real
E214: =Time!E$66 -> Forecast Period Flag | F214: =Time!F$66 -> 0 | G214: =Time!G$66 -> flag | H214: =Time!H$66 -> 2 | I214: =Time!I$66 -> 0 | J214: =Time!J$66 -> 1 | K214: =Time!K$66 -> 1
E215: =InpS!E$129 -> Accelerated programme - Scheme 2 component 12 cost allowance - real | F215: =InpS!F$129 -> 0 | G215: =InpS!G$129 -> £m | H215: =InpS!H$129 -> 0 | I215: =InpS!I$129 -> 0 | J215: =InpS!J$129 -> 0 | K215: =InpS!K$129 -> 0
E216: =InpS!E$130 -> Accelerated programme - Scheme 2 component 12 percentage completion | F216: =InpS!F$130 -> 0 | G216: =InpS!G$130 -> %
E217: Accelerated programme - Scheme 2 component 12 adjusted cost allowance - real | G217: £m | H217: =SUM( J217:K217 ) -> 0 | J217: =IF( J214 = 1, J215 * $F216, 0 ) -> 0 | K217: 0
B220: Accelerated programme - Scheme 2 adjusted cost allowance - real
E221: =E$140 -> Accelerated programme - Scheme 2 component 1 adjusted cost allowance - real | F221: 0 | G221: £m | H221: 2.107682282 | I221: 0 | J221: 0.05597425093 | K221: 2.051708031
E222: =E$147 -> Accelerated programme - Scheme 2 component 2 adjusted cost allowance - real | F222: 0 | G222: £m | H222: 0 | I222: 0 | J222: 0 | K222: 0
E223: =E$154 -> Accelerated programme - Scheme 2 component 3 adjusted cost allowance - real | F223: 0 | G223: £m | H223: 0 | I223: 0 | J223: 0 | K223: 0
E224: =E$161 -> Accelerated programme - Scheme 2 component 4 adjusted cost allowance - real | F224: 0 | G224: £m | H224: 0 | I224: 0 | J224: 0 | K224: 0
E225: =E$168 -> Accelerated programme - Scheme 2 component 5 adjusted cost allowance - real | F225: 0 | G225: £m | H225: 0 | I225: 0 | J225: 0 | K225: 0
E226: =E$175 -> Accelerated programme - Scheme 2 component 6 adjusted cost allowance - real | F226: 0 | G226: £m | H226: 0 | I226: 0 | J226: 0 | K226: 0
E227: =E$182 -> Accelerated programme - Scheme 2 component 7 adjusted cost allowance - real | F227: 0 | G227: £m | H227: 0 | I227: 0 | J227: 0 | K227: 0
E228: =E$189 -> Accelerated programme - Scheme 2 component 8 adjusted cost allowance - real | F228: 0 | G228: £m | H228: 0 | I228: 0 | J228: 0 | K228: 0
E229: =E$196 -> Accelerated programme - Scheme 2 component 9 adjusted cost allowance - real | F229: 0 | G229: £m | H229: 0 | I229: 0 | J229: 0 | K229: 0
E230: =E$203 -> Accelerated programme - Scheme 2 component 10 adjusted cost allowance - real | F230: 0 | G230: £m | H230: 0 | I230: 0 | J230: 0 | K230: 0
E231: =E$210 -> Accelerated programme - Scheme 2 component 11 adjusted cost allowance - real | F231: 0 | G231: £m | H231: 0 | I231: 0 | J231: 0 | K231: 0
E232: =E$217 -> Accelerated programme - Scheme 2 component 12 adjusted cost allowance - real | F232: 0 | G232: £m | H232: 0 | I232: 0 | J232: 0 | K232: 0
E233: Accelerated programme - Scheme 2 adjusted cost allowance - real | G233: £m | H233: =SUM( J233:K233 ) -> 2.107682282 | J233: =SUM( J221:J232 ) -> 0.05597425093 | K233: 2.051708031
B236: Accelerated programme - Scheme 2 adjusted cost allowance - real - WR
E237: =InpS!E$79 -> Accelerated programme - Scheme 2 control allocation - WR | F237: =InpS!F$79 -> 0 | G237: =InpS!G$79 -> %
E238: =E$233 -> Accelerated programme - Scheme 2 adjusted cost allowance - real | F238: 0 | G238: £m | H238: 2.107682282 | I238: 0 | J238: 0.05597425093 | K238: 2.051708031
E239: Accelerated programme - Scheme 2 adjusted cost allowance - real - WR | G239: £m | H239: =SUM( J239:K239 ) -> 0 | J239: =$F237 * J238 -> 0 | K239: 0
B242: Accelerated programme - Scheme 2 adjusted cost allowance - real - WN+
E243: =InpS!E$80 -> Accelerated programme - Scheme 2 control allocation - WN+ | F243: =InpS!F$80 -> 1 | G243: =InpS!G$80 -> %
E244: =E$233 -> Accelerated programme - Scheme 2 adjusted cost allowance - real | F244: 0 | G244: £m | H244: 2.107682282 | I244: 0 | J244: 0.05597425093 | K244: 2.051708031
E245: Accelerated programme - Scheme 2 adjusted cost allowance - real - WN+ | G245: £m | H245: =SUM( J245:K245 ) -> 2.107682282 | J245: =$F243 * J244 -> 0.05597425093 | K245: 2.051708031
B248: Accelerated programme - Scheme 2 adjusted cost allowance - real - WWN+
E249: =InpS!E$81 -> Accelerated programme - Scheme 2 control allocation - WWN+ | F249: =InpS!F$81 -> 0 | G249: =InpS!G$81 -> %
E250: =E$233 -> Accelerated programme - Scheme 2 adjusted cost allowance - real | F250: 0 | G250: £m | H250: 2.107682282 | I250: 0 | J250: 0.05597425093 | K250: 2.051708031
E251: Accelerated programme - Scheme 2 adjusted cost allowance - real - WWN+ | G251: £m | H251: =SUM( J251:K251 ) -> 0 | J251: =$F249 * J250 -> 0 | K251: 0
B254: Accelerated programme - Scheme 2 adjusted cost allowance - real - BR
E255: =InpS!E$82 -> Accelerated programme - Scheme 2 control allocation - BR | F255: =InpS!F$82 -> 0 | G255: =InpS!G$82 -> %
E256: =E$233 -> Accelerated programme - Scheme 2 adjusted cost allowance - real | F256: 0 | G256: £m | H256: 2.107682282 | I256: 0 | J256: 0.05597425093 | K256: 2.051708031
E257: Accelerated programme - Scheme 2 adjusted cost allowance - real - BR | G257: £m | H257: =SUM( J257:K257 ) -> 0 | J257: =$F255 * J256 -> 0 | K257: 0
A260: Accelerated programme - Scheme 3
B261: Accelerated programme - Scheme 3 component 1 adjusted cost allowance - real
E262: =Time!E$66 -> Forecast Period Flag | F262: =Time!F$66 -> 0 | G262: =Time!G$66 -> flag | H262: =Time!H$66 -> 2 | I262: =Time!I$66 -> 0 | J262: =Time!J$66 -> 1 | K262: =Time!K$66 -> 1
E263: =InpS!E$139 -> Accelerated programme - Scheme 3 component 1 cost allowance - real | F263: =InpS!F$139 -> 0 | G263: =InpS!G$139 -> £m | H263: =InpS!H$139 -> 8.616379591 | I263: =InpS!I$139 -> 0 | J263: =InpS!J$139 -> 0.1250981242 | K263: =InpS!K$139 -> 8.491281466
E264: =InpS!E$140 -> Accelerated programme - Scheme 3 component 1 percentage completion | F264: =InpS!F$140 -> 1 | G264: =InpS!G$140 -> %
E265: Accelerated programme - Scheme 3 component 1 adjusted cost allowance - real | G265: £m | H265: =SUM( J265:K265 ) -> 8.616379591 | J265: =IF( J262 = 1, J263 * $F264, 0 ) -> 0.1250981242 | K265: 8.491281466
B268: Accelerated programme - Scheme 3 component 2 adjusted cost allowance - real
E269: =Time!E$66 -> Forecast Period Flag | F269: =Time!F$66 -> 0 | G269: =Time!G$66 -> flag | H269: =Time!H$66 -> 2 | I269: =Time!I$66 -> 0 | J269: =Time!J$66 -> 1 | K269: =Time!K$66 -> 1
E270: =InpS!E$143 -> Accelerated programme - Scheme 3 component 2 cost allowance - real | F270: =InpS!F$143 -> 0 | G270: =InpS!G$143 -> £m | H270: =InpS!H$143 -> 0 | I270: =InpS!I$143 -> 0 | J270: =InpS!J$143 -> 0 | K270: =InpS!K$143 -> 0
E271: =InpS!E$144 -> Accelerated programme - Scheme 3 component 2 percentage completion | F271: =InpS!F$144 -> 0 | G271: =InpS!G$144 -> %
E272: Accelerated programme - Scheme 3 component 2 adjusted cost allowance - real | G272: £m | H272: =SUM( J272:K272 ) -> 0 | J272: =IF( J269 = 1, J270 * $F271, 0 ) -> 0 | K272: 0
... 1344 more rows

Sheet Outputs
A1: =RIGHT(CELL("filename", A1), LEN(CELL("filename", A1)) - SEARCH("]", CELL("filename", A1))) -> 
E2: Model period ending | F2: ='Model Checks and Alerts'!F76 -> 0 | G2: Error chks | J2: =Time!J$124 -> 2024-03-31 | K2: =Time!K$124 -> 2025-03-31
E3: Timeline label | J3: =Time!J$130 -> Transition Period | K3: =Time!K$130 -> Transition Period
E4: Model column counter | J4: =Time!J$134 -> 1 | K4: =Time!K$134 -> 2
F5: Constant | G5: Unit | H5: Total
B8: RCV adjustment
C10: Accelerated programme
E11: =Calcs!E$2116 -> Accelerated programme - Total RCV adjustment - WR - real | F11: =Calcs!$F$2116 -> 0 | G11: =Calcs!G$2116 -> £m
E12: =Calcs!E$2122 -> Accelerated programme - Total RCV adjustment - WN+ - real | F12: =Calcs!$F$2122 -> 4.13450479 | G12: =Calcs!G$2122 -> £m
E13: =Calcs!E$2128 -> Accelerated programme - Total RCV adjustment - WWN+ - real | F13: =Calcs!$F$2128 -> 20.7384176 | G13: =Calcs!G$2128 -> £m
E14: =Calcs!E$2134 -> Accelerated programme - Total RCV adjustment - BR - real | F14: =Calcs!$F$2134 -> 0 | G14: =Calcs!G$2134 -> £m
C16: Transition expenditure
E17: =Calcs!E$2141 -> Transition expenditure - Total RCV adjustment - WR - real | F17: =Calcs!$F$2141 -> 0 | G17: =Calcs!G$2141 -> £m
E18: =Calcs!E$2147 -> Transition expenditure - Total RCV adjustment - WN+ - real | F18: =Calcs!$F$2147 -> 0 | G18: =Calcs!G$2147 -> £m
E19: =Calcs!E$2153 -> Transition expenditure - Total RCV adjustment - WWN+ - real | F19: =Calcs!$F$2153 -> 70.80643529 | G19: =Calcs!G$2153 -> £m
E20: =Calcs!E$2159 -> Transition expenditure - Total RCV adjustment - BR - real | F20: =Calcs!$F$2159 -> 0 | G20: =Calcs!G$2159 -> £m

Sheet F_Outputs
C1: PR24 Accelereated and transition expenditure RCV adjustment
A2: Acronym | B2: Reference | C2: Item description | D2: Unit | E2: Model | F2: 2024-25
B4: C_PR24CA01_PD11_20WR_PR24 | C4: PR24 Transitional expenditure programme RCV adjustment in 2022-23 FYA (CPIH deflated) prices (WR) | D4: £m | E4: Price Review 2024 | F4: =Outputs!F17 -> 0
B5: C_PR24CA01_PD11_20WN_PR24 | C5: PR24 Transitional expenditure programme RCV adjustment in 2022-23 FYA (CPIH deflated) prices (WN) | D5: £m | E5: Price Review 2024 | F5: =Outputs!F18 -> 0
B6: C_PR24CA01_PD11_20WWN_PR24 | C6: PR24 Transitional expenditure programme RCV adjustment in 2022-23 FYA (CPIH deflated) prices (WWN) | D6: £m | E6: Price Review 2024 | F6: =Outputs!F19 -> 70.80643529
B7: C_PR24CA01_PD11_20BIO_PR24 | C7: PR24 Transitional expenditure programme RCV adjustment in 2022-23 FYA (CPIH deflated) prices (BR) | D7: £m | E7: Price Review 2024 | F7: =Outputs!F20 -> 0
B8: C_PR24CA01_PD11_20ADDN1_PR24 | C8: PR24 Transitional expenditure programme RCV adjustment in 2022-23 FYA (CPIH deflated) prices (ADDN1) | D8: £m | E8: Price Review 2024
B9: C_PR24CA01_PD11_20ADDN2_PR24 | C9: PR24 Transitional expenditure programme RCV adjustment in 2022-23 FYA (CPIH deflated) prices (ADDN2) | D9: £m | E9: Price Review 2024
B10: C_PR24CA01_PD11_21WR_PR24 | C10: PR24 Defra accelerated programme RCV adjustment in 2022-23 FYA (CPIH deflated) prices (WR) | D10: £m | E10: Price Review 2024 | F10: =Outputs!F11 -> 0
B11: C_PR24CA01_PD11_21WN_PR24 | C11: PR24 Defra accelerated programme RCV adjustment in 2022-23 FYA (CPIH deflated) prices (WN) | D11: £m | E11: Price Review 2024 | F11: =Outputs!F12 -> 4.13450479
B12: C_PR24CA01_PD11_21WWN_PR24 | C12: PR24 Defra accelerated programme RCV adjustment in 2022-23 FYA (CPIH deflated) prices (WWN) | D12: £m | E12: Price Review 2024 | F12: =Outputs!F13 -> 20.7384176
B13: C_PR24CA01_PD11_21BIO_PR24 | C13: PR24 Defra accelerated programme RCV adjustment in 2022-23 FYA (CPIH deflated) prices (BR) | D13: £m | E13: Price Review 2024 | F13: =Outputs!F14 -> 0
B14: C_PR24CA01_PD11_21ADDN1_PR24 | C14: PR24 Defra accelerated programme RCV adjustment in 2022-23 FYA (CPIH deflated) prices (ADDN1) | D14: £m | E14: Price Review 2024
B15: C_PR24CA01_PD11_21ADDN2_PR24 | C15: PR24 Defra accelerated programme RCV adjustment in 2022-23 FYA (CPIH deflated) prices (ADDN2) | D15: £m | E15: Price Review 2024
B16: PR24QA_PR24CA01_OUT1 | C16: Date & Time for Model - PR24CA01 | D16: Text | E16: Price Review 2024 | F16: =CONCATENATE("[…]", TEXT(NOW(),"dd/mm/yyy hh:mm:ss")) -> […]16/12/2024 11:30:06
B17: PR24QA_PR24CA01_OUT2 | C17: Name of Model - PR24CA01 | D17: Text | E17: Price Review 2024 | F17: =MID(CELL("filename"),SEARCH("[",CELL("filename"))+1,SEARCH("]",CELL("filename"))-SEARCH("[",CELL("filename"))-1) -> 
B18: PR24QA_PR24CA01_OUT3 | C18: F_Inputs time stamp - PR24CA01 | D18: Text | E18: Price Review 2024 | F18: N/A
B19: PR24QA_PR24CA01_OUT4 | C19: Model override switch for - PR24CA01 | D19: nr | E19: Price Review 2024 | F19: 0

Sheet Model Checks and Alerts
A1: =RIGHT(CELL("filename", A1), LEN(CELL("filename", A1)) - SEARCH("]", CELL("filename", A1))) -> 
E2: Model period ending | F2: =F76 -> 0 | G2: Error chks | J2: =Time!J$124 -> 2024-03-31 | K2: =Time!K$124 -> 2025-03-31
E3: Timeline label | J3: =Time!J$130 -> Transition Period | K3: =Time!K$130 -> Transition Period
E4: Model column counter | J4: =Time!J$134 -> 1 | K4: =Time!K$134 -> 2
F5: Constant | G5: Unit | H5: Total
A8: Model Checks
B9: Checks breached any period
E10: =E$433 -> Modelling Period Check overall | F10: 0 | G10: 0
E11: =E$438 -> Scheme 1 control allocation - check overall | F11: 0 | G11: 0
E12: =E$443 -> Scheme 2 control allocation - check overall | F12: 0 | G12: 0
E13: =E$448 -> Scheme 3 control allocation - check overall | F13: 0 | G13: 0
E14: =E$453 -> Scheme 4 control allocation - check overall | F14: 0 | G14: 0
E15: =E$458 -> Scheme 5 control allocation - check overall | F15: 0 | G15: 0
E16: =E$463 -> Scheme 1 component 1 percentage completion - check overall | F16: 0 | G16: 0
E17: =E$468 -> Scheme 1 component 2 percentage completion - check overall | F17: 0 | G17: 0
E18: =E$473 -> Scheme 1 component 3 percentage completion - check overall | F18: 0 | G18: 0
E19: =E$478 -> Scheme 1 component 4 percentage completion - check overall | F19: 0 | G19: 0
E20: =E$483 -> Scheme 1 component 5 percentage completion - check overall | F20: 0 | G20: 0
E21: =E$488 -> Scheme 1 component 6 percentage completion - check overall | F21: 0 | G21: 0
E22: =E$493 -> Scheme 1 component 7 percentage completion - check overall | F22: 0 | G22: 0
E23: =E$498 -> Scheme 1 component 8 percentage completion - check overall | F23: 0 | G23: 0
E24: =E$503 -> Scheme 1 component 9 percentage completion - check overall | F24: 0 | G24: 0
E25: =E$508 -> Scheme 1 component 10 percentage completion - check overall | F25: 0 | G25: 0
E26: =E$513 -> Scheme 1 component 11 percentage completion - check overall | F26: 0 | G26: 0
E27: =E$518 -> Scheme 1 component 12 percentage completion - check overall | F27: 0 | G27: 0
E28: =E$523 -> Scheme 2 component 1 percentage completion - check overall | F28: 0 | G28: 0
E29: =E$528 -> Scheme 2 component 2 percentage completion - check overall | F29: 0 | G29: 0
E30: =E$533 -> Scheme 2 component 3 percentage completion - check overall | F30: 0 | G30: 0
E31: =E$538 -> Scheme 2 component 4 percentage completion - check overall | F31: 0 | G31: 0
E32: =E$543 -> Scheme 2 component 5 percentage completion - check overall | F32: 0 | G32: 0
E33: =E$548 -> Scheme 2 component 6 percentage completion - check overall | F33: 0 | G33: 0
E34: =E$553 -> Scheme 2 component 7 percentage completion - check overall | F34: 0 | G34: 0
E35: =E$558 -> Scheme 2 component 8 percentage completion - check overall | F35: 0 | G35: 0
E36: =E$563 -> Scheme 2 component 9 percentage completion - check overall | F36: 0 | G36: 0
E37: =E$568 -> Scheme 2 component 10 percentage completion - check overall | F37: 0 | G37: 0
E38: =E$573 -> Scheme 2 component 11 percentage completion - check overall | F38: 0 | G38: 0
E39: =E$578 -> Scheme 2 component 12 percentage completion - check overall | F39: 0 | G39: 0
E40: =E$583 -> Scheme 3 component 1 percentage completion - check overall | F40: 0 | G40: 0
E41: =E$588 -> Scheme 3 component 2 percentage completion - check overall | F41: 0 | G41: 0
E42: =E$593 -> Scheme 3 component 3 percentage completion - check overall | F42: 0 | G42: 0
E43: =E$598 -> Scheme 3 component 4 percentage completion - check overall | F43: 0 | G43: 0
E44: =E$603 -> Scheme 3 component 5 percentage completion - check overall | F44: 0 | G44: 0
E45: =E$608 -> Scheme 3 component 6 percentage completion - check overall | F45: 0 | G45: 0
E46: =E$613 -> Scheme 3 component 7 percentage completion - check overall | F46: 0 | G46: 0
E47: =E$618 -> Scheme 3 component 8 percentage completion - check overall | F47: 0 | G47: 0
E48: =E$623 -> Scheme 3 component 9 percentage completion - check overall | F48: 0 | G48: 0
E49: =E$628 -> Scheme 3 component 10 percentage completion - check overall | F49: 0 | G49: 0
E50: =E$633 -> Scheme 3 component 11 percentage completion - check overall | F50: 0 | G50: 0
E51: =E$638 -> Scheme 3 component 12 percentage completion - check overall | F51: 0 | G51: 0
E52: =E$643 -> Scheme 4 component 1 percentage completion - check overall | F52: 0 | G52: 0
E53: =E$648 -> Scheme 4 component 2 percentage completion - check overall | F53: 0 | G53: 0
E54: =E$653 -> Scheme 4 component 3 percentage completion - check overall | F54: 0 | G54: 0
E55: =E$658 -> Scheme 4 component 4 percentage completion - check overall | F55: 0 | G55: 0
E56: =E$663 -> Scheme 4 component 5 percentage completion - check overall | F56: 0 | G56: 0
E57: =E$668 -> Scheme 4 component 6 percentage completion - check overall | F57: 0 | G57: 0
E58: =E$673 -> Scheme 4 component 7 percentage completion - check overall | F58: 0 | G58: 0
E59: =E$678 -> Scheme 4 component 8 percentage completion - check overall | F59: 0 | G59: 0
E60: =E$683 -> Scheme 4 component 9 percentage completion - check overall | F60: 0 | G60: 0
E61: =E$688 -> Scheme 4 component 10 percentage completion - check overall | F61: 0 | G61: 0
E62: =E$693 -> Scheme 4 component 11 percentage completion - check overall | F62: 0 | G62: 0
E63: =E$698 -> Scheme 4 component 12 percentage completion - check overall | F63: 0 | G63: 0
E64: =E$703 -> Scheme 5 component 1 percentage completion - check overall | F64: 0 | G64: 0
E65: =E$708 -> Scheme 5 component 2 percentage completion - check overall | F65: 0 | G65: 0
E66: =E$713 -> Scheme 5 component 3 percentage completion - check overall | F66: 0 | G66: 0
E67: =E$718 -> Scheme 5 component 4 percentage completion - check overall | F67: 0 | G67: 0
E68: =E$723 -> Scheme 5 component 5 percentage completion - check overall | F68: 0 | G68: 0
E69: =E$728 -> Scheme 5 component 6 percentage completion - check overall | F69: 0 | G69: 0
E70: =E$733 -> Scheme 5 component 7 percentage completion - check overall | F70: 0 | G70: 0
E71: =E$738 -> Scheme 5 component 8 percentage completion - check overall | F71: 0 | G71: 0
E72: =E$743 -> Scheme 5 component 9 percentage completion - check overall | F72: 0 | G72: 0
E73: =E$748 -> Scheme 5 component 10 percentage completion - check overall | F73: 0 | G73: 0
E74: =E$753 -> Scheme 5 component 11 percentage completion - check overall | F74: 0 | G74: 0
E75: =E$758 -> Scheme 5 component 12 percentage completion - check overall | F75: 0 | G75: 0
E76: Checks breached any period | F76: =SUM( $F10 ) + SUM( $F11 ) + SUM( $F12 ) + SUM( $F13 ) + SUM( $F14 ) + SUM( $F15 ) + SUM( $F16 ) + SUM( $F17 ) + SUM( $F18 ) + SUM( $F19 ) + SUM( $F20 ) + SUM( $F21 ) + SUM( $F22 ) + SUM( $F23 ) + SUM( $F24 ) + SUM( $F25 ) + SUM( $F26 ) + SUM( $F27 ) + SUM( $F28 ) + SUM( $F29 ) + SUM( $F30 ) + SUM( $F31 ) + SUM( $F32 ) + SUM( $F33 ) + SUM( $F34 ) + SUM( $F35 ) + SUM( $F36 ) + SUM( $F37 ) + SUM( $F38 ) + SUM( $F39 ) + SUM( $F40 ) + SUM( $F41 ) + SUM( $F42 ) + SUM( $F43 ) + SUM( $F44 ) + SUM( $F45 ) + SUM( $F46 ) + SUM( $F47 ) + SUM( $F48 ) + SUM( $F49 ) + SUM( $F50 ) + SUM( $F51 ) + SUM( $F52 ) + SUM( $F53 ) + SUM( $F54 ) + SUM( $F55 ) + SUM( $F56 ) + SUM( $F57 ) + SUM( $F58 ) + SUM( $F59 ) + SUM( $F60 ) + SUM( $F61 ) + SUM( $F62 ) + SUM( $F63 ) + SUM( $F64 ) + SUM( $F65 ) + SUM( $F66 ) + SUM( $F67 ) + SUM( $F68 ) + SUM( $F69 ) + SUM( $F70 ) + SUM( $F71 ) + SUM( $F72 ) + SUM( $F73 ) + SUM( $F74 ) + SUM( $F75 ) -> 0
A79: Control allocation - check
B80: Scheme 1 control allocation - check
E81: =InpS!E$25 -> Accelerated programme - Scheme 1 control allocation - WR | F81: =InpS!F$25 -> 0 | G81: =InpS!G$25 -> %
E82: =InpS!E$26 -> Accelerated programme - Scheme 1 control allocation - WN+ | F82: =InpS!F$26 -> 1 | G82: =InpS!G$26 -> %
E83: =InpS!E$27 -> Accelerated programme - Scheme 1 control allocation - WWN+ | F83: =InpS!F$27 -> 0 | G83: =InpS!G$27 -> %
E84: =InpS!E$28 -> Accelerated programme - Scheme 1 control allocation - BR | F84: =InpS!F$28 -> 0 | G84: =InpS!G$28 -> %
E85: =InpS!E$612 -> Tolerance check | F85: =InpS!F$612 -> 0.0001 | G85: =InpS!G$612 -> Tolerance
E86: Scheme 1 control allocation - check | F86: =IF( AND( ABS( $F81 + $F82 + $F83 + $F84 - 1 ) > $F85, ( $F81 + $F82 + $F83 + $F84 ) <> 0 ), 1, 0 ) -> 0 | G86: check
B89: Scheme 2 control allocation - check
E90: =InpS!E$79 -> Accelerated programme - Scheme 2 control allocation - WR | F90: =InpS!F$79 -> 0 | G90: =InpS!G$79 -> %
E91: =InpS!E$80 -> Accelerated programme - Scheme 2 control allocation - WN+ | F91: =InpS!F$80 -> 1 | G91: =InpS!G$80 -> %
E92: =InpS!E$81 -> Accelerated programme - Scheme 2 control allocation - WWN+ | F92: =InpS!F$81 -> 0 | G92: =InpS!G$81 -> %
E93: =InpS!E$82 -> Accelerated programme - Scheme 2 control allocation - BR | F93: =InpS!F$82 -> 0 | G93: =InpS!G$82 -> %
E94: =InpS!E$612 -> Tolerance check | F94: =InpS!F$612 -> 0.0001 | G94: =InpS!G$612 -> Tolerance
E95: Scheme 2 control allocation - check | F95: =IF( AND( ABS( $F90 + $F91 + $F92 + $F93 - 1 ) > $F94, ( $F90 + $F91 + $F92 + $F93 ) <> 0 ), 1, 0 ) -> 0 | G95: check
B98: Scheme 3 control allocation - check
E99: =InpS!E$133 -> Accelerated programme - Scheme 3 control allocation - WR | F99: =InpS!F$133 -> 0 | G99: =InpS!G$133 -> %
E100: =InpS!E$134 -> Accelerated programme - Scheme 3 control allocation - WN+ | F100: =InpS!F$134 -> 0 | G100: =InpS!G$134 -> %
E101: =InpS!E$135 -> Accelerated programme - Scheme 3 control allocation - WWN+ | F101: =InpS!F$135 -> 1 | G101: =InpS!G$135 -> %
E102: =InpS!E$136 -> Accelerated programme - Scheme 3 control allocation - BR | F102: =InpS!F$136 -> 0 | G102: =InpS!G$136 -> %
E103: =InpS!E$612 -> Tolerance check | F103: =InpS!F$612 -> 0.0001 | G103: =InpS!G$612 -> Tolerance
E104: Scheme 3 control allocation - check | F104: =IF( AND( ABS( $F99 + $F100 + $F101 + $F102 - 1 ) > $F103, ( $F99 + $F100 + $F101 + $F102 ) <> 0 ), 1, 0 ) -> 0 | G104: check
B107: Scheme 4 control allocation - check
E108: =InpS!E$187 -> Accelerated programme - Scheme 4 control allocation - WR | F108: =InpS!F$187 -> 0 | G108: =InpS!G$187 -> %
E109: =InpS!E$188 -> Accelerated programme - Scheme 4 control allocation - WN+ | F109: =InpS!F$188 -> 0 | G109: =InpS!G$188 -> %
E110: =InpS!E$189 -> Accelerated programme - Scheme 4 control allocation - WWN+ | F110: =InpS!F$189 -> 1 | G110: =InpS!G$189 -> %
E111: =InpS!E$190 -> Accelerated programme - Scheme 4 control allocation - BR | F111: =InpS!F$190 -> 0 | G111: =InpS!G$190 -> %
E112: =InpS!E$612 -> Tolerance check | F112: =InpS!F$612 -> 0.0001 | G112: =InpS!G$612 -> Tolerance
E113: Scheme 4 control allocation - check | F113: =IF( AND( ABS( $F108 + $F109 + $F110 + $F111 - 1 ) > $F112, ( $F108 + $F109 + $F110 + $F111 ) <> 0 ), 1, 0 ) -> 0 | G113: check
B116: Scheme 5 control allocation - check
E117: =InpS!E$241 -> Accelerated programme - Scheme 5 control allocation - WR | F117: =InpS!F$241 -> 0 | G117: =InpS!G$241 -> %
E118: =InpS!E$242 -> Accelerated programme - Scheme 5 control allocation - WN+ | F118: =InpS!F$242 -> 0 | G118: =InpS!G$242 -> %
E119: =InpS!E$243 -> Accelerated programme - Scheme 5 control allocation - WWN+ | F119: =InpS!F$243 -> 0 | G119: =InpS!G$243 -> %
E120: =InpS!E$244 -> Accelerated programme - Scheme 5 control allocation - BR | F120: =InpS!F$244 -> 0 | G120: =InpS!G$244 -> %
E121: =InpS!E$612 -> Tolerance check | F121: =InpS!F$612 -> 0.0001 | G121: =InpS!G$612 -> Tolerance
E122: Scheme 5 control allocation - check | F122: =IF( AND( ABS( $F117 + $F118 + $F119 + $F120 - 1 ) > $F121, ( $F117 + $F118 + $F119 + $F120 ) <> 0 ), 1, 0 ) -> 0 | G122: check
A125: Percentage completion - check
A126: Scheme 1
B127: Scheme 1 component 1 percentage completion - check
E128: =InpS!E$32 -> Accelerated programme - Scheme 1 component 1 percentage completion | F128: =InpS!F$32 -> 1 | G128: =InpS!G$32 -> %
E129: Scheme 1 component 1 percentage completion - check | F129: =IF( $F128 > 1, 1, 0 ) -> 0 | G129: check
B132: Scheme 1 component 2 percentage completion - check
E133: =InpS!E$36 -> Accelerated programme - Scheme 1 component 2 percentage completion | F133: =InpS!F$36 -> 0 | G133: =InpS!G$36 -> %
E134: Scheme 1 component 2 percentage completion - check | F134: =IF( $F133 > 1, 1, 0 ) -> 0 | G134: check
B137: Scheme 1 component 3 percentage completion - check
E138: =InpS!E$40 -> Accelerated programme - Scheme 1 component 3 percentage completion | F138: =InpS!F$40 -> 0 | G138: =InpS!G$40 -> %
E139: Scheme 1 component 3 percentage completion - check | F139: =IF( $F138 > 1, 1, 0 ) -> 0 | G139: check
B142: Scheme 1 component 4 percentage completion - check
E143: =InpS!E$44 -> Accelerated programme - Scheme 1 component 4 percentage completion | F143: =InpS!F$44 -> 0 | G143: =InpS!G$44 -> %
E144: Scheme 1 component 4 percentage completion - check | F144: =IF( $F143 > 1, 1, 0 ) -> 0 | G144: check
B147: Scheme 1 component 5 percentage completion - check
E148: =InpS!E$48 -> Accelerated programme - Scheme 1 component 5 percentage completion | F148: =InpS!F$48 -> 0 | G148: =InpS!G$48 -> %
E149: Scheme 1 component 5 percentage completion - check | F149: =IF( $F148 > 1, 1, 0 ) -> 0 | G149: check
B152: Scheme 1 component 6 percentage completion - check
E153: =InpS!E$52 -> Accelerated programme - Scheme 1 component 6 percentage completion | F153: =InpS!F$52 -> 0 | G153: =InpS!G$52 -> %
E154: Scheme 1 component 6 percentage completion - check | F154: =IF( $F153 > 1, 1, 0 ) -> 0 | G154: check
B157: Scheme 1 component 7 percentage completion - check
E158: =InpS!E$56 -> Accelerated programme - Scheme 1 component 7 percentage completion | F158: =InpS!F$56 -> 0 | G158: =InpS!G$56 -> %
E159: Scheme 1 component 7 percentage completion - check | F159: =IF( $F158 > 1, 1, 0 ) -> 0 | G159: check
B162: Scheme 1 component 8 percentage completion - check
E163: =InpS!E$60 -> Accelerated programme - Scheme 1 component 8 percentage completion | F163: =InpS!F$60 -> 0 | G163: =InpS!G$60 -> %
E164: Scheme 1 component 8 percentage completion - check | F164: =IF( $F163 > 1, 1, 0 ) -> 0 | G164: check
B167: Scheme 1 component 9 percentage completion - check
E168: =InpS!E$64 -> Accelerated programme - Scheme 1 component 9 percentage completion | F168: =InpS!F$64 -> 0 | G168: =InpS!G$64 -> %
E169: Scheme 1 component 9 percentage completion - check | F169: =IF( $F168 > 1, 1, 0 ) -> 0 | G169: check
B172: Scheme 1 component 10 percentage completion - check
E173: =InpS!E$68 -> Accelerated programme - Scheme 1 component 10 percentage completion | F173: =InpS!F$68 -> 0 | G173: =InpS!G$68 -> %
E174: Scheme 1 component 10 percentage completion - check | F174: =IF( $F173 > 1, 1, 0 ) -> 0 | G174: check
B177: Scheme 1 component 11 percentage completion - check
E178: =InpS!E$72 -> Accelerated programme - Scheme 1 component 11 percentage completion | F178: =InpS!F$72 -> 0 | G178: =InpS!G$72 -> %
E179: Scheme 1 component 11 percentage completion - check | F179: =IF( $F178 > 1, 1, 0 ) -> 0 | G179: check
B182: Scheme 1 component 12 percentage completion - check
E183: =InpS!E$76 -> Accelerated programme - Scheme 1 component 12 percentage completion | F183: =InpS!F$76 -> 0 | G183: =InpS!G$76 -> %
E184: Scheme 1 component 12 percentage completion - check | F184: =IF( $F183 > 1, 1, 0 ) -> 0 | G184: check
A187: Scheme 2
B188: Scheme 2 component 1 percentage completion - check
E189: =InpS!E$86 -> Accelerated programme - Scheme 2 component 1 percentage completion | F189: =InpS!F$86 -> 1 | G189: =InpS!G$86 -> %
E190: Scheme 2 component 1 percentage completion - check | F190: =IF( $F189 > 1, 1, 0 ) -> 0 | G190: check
B193: Scheme 2 component 2 percentage completion - check
E194: =InpS!E$90 -> Accelerated programme - Scheme 2 component 2 percentage completion | F194: =InpS!F$90 -> 0 | G194: =InpS!G$90 -> %
E195: Scheme 2 component 2 percentage completion - check | F195: =IF( $F194 > 1, 1, 0 ) -> 0 | G195: check
B198: Scheme 2 component 3 percentage completion - check
E199: =InpS!E$94 -> Accelerated programme - Scheme 2 component 3 percentage completion | F199: =InpS!F$94 -> 0 | G199: =InpS!G$94 -> %
E200: Scheme 2 component 3 percentage completion - check | F200: =IF( $F199 > 1, 1, 0 ) -> 0 | G200: check
B203: Scheme 2 component 4 percentage completion - check
E204: =InpS!E$98 -> Accelerated programme - Scheme 2 component 4 percentage completion | F204: =InpS!F$98 -> 0 | G204: =InpS!G$98 -> %
E205: Scheme 2 component 4 percentage completion - check | F205: =IF( $F204 > 1, 1, 0 ) -> 0 | G205: check
B208: Scheme 2 component 5 percentage completion - check
E209: =InpS!E$102 -> Accelerated programme - Scheme 2 component 5 percentage completion | F209: =InpS!F$102 -> 0 | G209: =InpS!G$102 -> %
E210: Scheme 2 component 5 percentage completion - check | F210: =IF( $F209 > 1, 1, 0 ) -> 0 | G210: check
B213: Scheme 2 component 6 percentage completion - check
E214: =InpS!E$106 -> Accelerated programme - Scheme 2 component 6 percentage completion | F214: =InpS!F$106 -> 0 | G214: =InpS!G$106 -> %
E215: Scheme 2 component 6 percentage completion - check | F215: =IF( $F214 > 1, 1, 0 ) -> 0 | G215: check
B218: Scheme 2 component 7 percentage completion - check
E219: =InpS!E$110 -> Accelerated programme - Scheme 2 component 7 percentage completion | F219: =InpS!F$110 -> 0 | G219: =InpS!G$110 -> %
E220: Scheme 2 component 7 percentage completion - check | F220: =IF( $F219 > 1, 1, 0 ) -> 0 | G220: check
B223: Scheme 2 component 8 percentage completion - check
E224: =InpS!E$114 -> Accelerated programme - Scheme 2 component 8 percentage completion | F224: =InpS!F$114 -> 0 | G224: =InpS!G$114 -> %
E225: Scheme 2 component 8 percentage completion - check | F225: =IF( $F224 > 1, 1, 0 ) -> 0 | G225: check
B228: Scheme 2 component 9 percentage completion - check
E229: =InpS!E$118 -> Accelerated programme - Scheme 2 component 9 percentage completion | F229: =InpS!F$118 -> 0 | G229: =InpS!G$118 -> %
E230: Scheme 2 component 9 percentage completion - check | F230: =IF( $F229 > 1, 1, 0 ) -> 0 | G230: check
B233: Scheme 2 component 10 percentage completion - check
E234: =InpS!E$122 -> Accelerated programme - Scheme 2 component 10 percentage completion | F234: =InpS!F$122 -> 0 | G234: =InpS!G$122 -> %
E235: Scheme 2 component 10 percentage completion - check | F235: =IF( $F234 > 1, 1, 0 ) -> 0 | G235: check
B238: Scheme 2 component 11 percentage completion - check
E239: =InpS!E$126 -> Accelerated programme - Scheme 2 component 11 percentage completion | F239: =InpS!F$126 -> 0 | G239: =InpS!G$126 -> %
E240: Scheme 2 component 11 percentage completion - check | F240: =IF( $F239 > 1, 1, 0 ) -> 0 | G240: check
B243: Scheme 2 component 12 percentage completion - check
E244: =InpS!E$130 -> Accelerated programme - Scheme 2 component 12 percentage completion | F244: =InpS!F$130 -> 0 | G244: =InpS!G$130 -> %
E245: Scheme 2 component 12 percentage completion - check | F245: =IF( $F244 > 1, 1, 0 ) -> 0 | G245: check
A248: Scheme 3
B249: Scheme 3 component 1 percentage completion - check
E250: =InpS!E$140 -> Accelerated programme - Scheme 3 component 1 percentage completion | F250: =InpS!F$140 -> 1 | G250: =InpS!G$140 -> %
E251: Scheme 3 component 1 percentage completion - check | F251: =IF( $F250 > 1, 1, 0 ) -> 0 | G251: check
B254: Scheme 3 component 2 percentage completion - check
E255: =InpS!E$144 -> Accelerated programme - Scheme 3 component 2 percentage completion | F255: =InpS!F$144 -> 0 | G255: =InpS!G$144 -> %
E256: Scheme 3 component 2 percentage completion - check | F256: =IF( $F255 > 1, 1, 0 ) -> 0 | G256: check
B259: Scheme 3 component 3 percentage completion - check
E260: =InpS!E$148 -> Accelerated programme - Scheme 3 component 3 percentage completion | F260: =InpS!F$148 -> 0 | G260: =InpS!G$148 -> %
E261: Scheme 3 component 3 percentage completion - check | F261: =IF( $F260 > 1, 1, 0 ) -> 0 | G261: check
B264: Scheme 3 component 4 percentage completion - check
E265: =InpS!E$152 -> Accelerated programme - Scheme 3 component 4 percentage completion | F265: =InpS!F$152 -> 0 | G265: =InpS!G$152 -> %
E266: Scheme 3 component 4 percentage completion - check | F266: =IF( $F265 > 1, 1, 0 ) -> 0 | G266: check
B269: Scheme 3 component 5 percentage completion - check
E270: =InpS!E$156 -> Accelerated programme - Scheme 3 component 5 percentage completion | F270: =InpS!F$156 -> 0 | G270: =InpS!G$156 -> %
... 295 more rows
